Department family,Entity,Date,Expense type,Expense area,Supplier,Supplier type,Description,Transaction number,Amount
DEPARTMENT FOR EDUCATION,DEPARTMENT FOR EDUCATION,03/07/2013,Office Solutions,Chief Information Officer Group,DATAQUEST UK LTD,Commercial,Office machines,4000133763,"34,782"
DEPARTMENT FOR EDUCATION,DEPARTMENT FOR EDUCATION,04/07/2013,Professional Services Consultancy and Contingent Labour,Chief Information Officer Group,CAPITA RESOURCING LTD,Commercial,Costs related to temporary workers,4000134241,"1,679"
DEPARTMENT FOR EDUCATION,DEPARTMENT FOR EDUCATION,04/07/2013,Professional Services Consultancy and Contingent Labour,Chief Information Officer Group,CAPITA RESOURCING LTD,Commercial,Costs related to temporary workers,4000134241,"2,521"
DEPARTMENT FOR EDUCATION,DEPARTMENT FOR EDUCATION,04/07/2013,Professional Services Consultancy and Contingent Labour,Chief Information Officer Group,CAPITA RESOURCING LTD,Commercial,Costs related to temporary workers,4000134241,"40,615"
DEPARTMENT FOR EDUCATION,DEPARTMENT FOR EDUCATION,05/07/2013,ICT,Chief Information Officer Group,EDUSERV,Public Sector,ICT Services,4000134519,"6,336"
DEPARTMENT FOR EDUCATION,DEPARTMENT FOR EDUCATION,05/07/2013,ICT,Chief Information Officer Group,EDUSERV,Public Sector,ICT Services,4000134519,"4,393"
DEPARTMENT FOR EDUCATION,DEPARTMENT FOR EDUCATION,05/07/2013,ICT,Chief Information Officer Group,EDUSERV,Public Sector,ICT Services,4000134519,"22,332"
DEPARTMENT FOR EDUCATION,DEPARTMENT FOR EDUCATION,10/07/2013,ICT,Chief Information Officer Group,ACTICA CONSULTING LTD,Commercial,ICT Hardware,4000135005,"39,096"
DEPARTMENT FOR EDUCATION,DEPARTMENT FOR EDUCATION,11/07/2013,ICT,Chief Information Officer Group,EDUSERV,Public Sector,ICT Services,4000135156,"188,621"
DEPARTMENT FOR EDUCATION,DEPARTMENT FOR EDUCATION,12/07/2013,Office Solutions,Chief Information Officer Group,THE DANWOOD GROUP LTD,Commercial,Office machines,4000135226,"36,000"
DEPARTMENT FOR EDUCATION,DEPARTMENT FOR EDUCATION,12/07/2013,ICT,Chief Information Officer Group,EDUSERV,Public Sector,ICT Services,4000135238,"90,713"
DEPARTMENT FOR EDUCATION,DEPARTMENT FOR EDUCATION,15/07/2013,ICT,Chief Information Officer Group,SKILLS FUNDING AGENCY,Central Government,ICT Services,4000135493,"1,244,882"
DEPARTMENT FOR EDUCATION,DEPARTMENT FOR EDUCATION,15/07/2013,ICT,Chief Information Officer Group,SKILLS FUNDING AGENCY,Central Government,ICT Services,4000135493,"234,583"
DEPARTMENT FOR EDUCATION,DEPARTMENT FOR EDUCATION,15/07/2013,Office Solutions,Chief Information Officer Group,THE DANWOOD GROUP LTD,Commercial,Office machines,4000135498,"99,975"
DEPARTMENT FOR EDUCATION,DEPARTMENT FOR EDUCATION,15/07/2013,Office Solutions,Chief Information Officer Group,THE DANWOOD GROUP LTD,Commercial,Office Supplies,4000135498,175
DEPARTMENT FOR EDUCATION,DEPARTMENT FOR EDUCATION,16/07/2013,ICT,Chief Information Officer Group,ATKINS MANTIX LTD,Commercial,ICT Services,4000135531,"27,125"
DEPARTMENT FOR EDUCATION,DEPARTMENT FOR EDUCATION,16/07/2013,ICT,Chief Information Officer Group,ATKINS MANTIX LTD,Commercial,ICT Services,4000135531,"35,495"
DEPARTMENT FOR EDUCATION,DEPARTMENT FOR EDUCATION,16/07/2013,ICT,Chief Information Officer Group,SPECIALIST COMPUTER CENTRES PLC,Commercial,ICT Software,4000135534,"37,453"
DEPARTMENT FOR EDUCATION,DEPARTMENT FOR EDUCATION,16/07/2013,ICT,Chief Information Officer Group,ACTICA CONSULTING LTD,Commercial,ICT Hardware,4000135543,"13,500"
DEPARTMENT FOR EDUCATION,DEPARTMENT FOR EDUCATION,16/07/2013,ICT,Chief Information Officer Group,ACTICA CONSULTING LTD,Commercial,ICT Hardware,4000135543,"34,680"
DEPARTMENT FOR EDUCATION,DEPARTMENT FOR EDUCATION,16/07/2013,Travel,Chief Information Officer Group,REDFERN TRAVEL LTD,Commercial,"Staff business travel including air, coach, ferry, rail and taxi",4000135658,"2,066"
DEPARTMENT FOR EDUCATION,DEPARTMENT FOR EDUCATION,16/07/2013,Travel,Chief Information Officer Group,REDFERN TRAVEL LTD,Commercial,"Staff business travel including air, coach, ferry, rail and taxi",4000135658,"1,839"
DEPARTMENT FOR EDUCATION,DEPARTMENT FOR EDUCATION,16/07/2013,Travel,Chief Information Officer Group,REDFERN TRAVEL LTD,Commercial,"Staff business travel including air, coach, ferry, rail and taxi",4000135658,444
DEPARTMENT FOR EDUCATION,DEPARTMENT FOR EDUCATION,16/07/2013,Travel,Chief Information Officer Group,REDFERN TRAVEL LTD,Commercial,"Staff business travel including air, coach, ferry, rail and taxi",4000135658,"3,243"
DEPARTMENT FOR EDUCATION,DEPARTMENT FOR EDUCATION,16/07/2013,Travel,Chief Information Officer Group,REDFERN TRAVEL LTD,Commercial,"Staff business travel including air, coach, ferry, rail and taxi",4000135658,915
DEPARTMENT FOR EDUCATION,DEPARTMENT FOR EDUCATION,16/07/2013,Travel,Chief Information Officer Group,REDFERN TRAVEL LTD,Commercial,"Staff business travel including air, coach, ferry, rail and taxi",4000135658,"5,033"
DEPARTMENT FOR EDUCATION,DEPARTMENT FOR EDUCATION,16/07/2013,Travel,Chief Information Officer Group,REDFERN TRAVEL LTD,Commercial,"Staff business travel including air, coach, ferry, rail and taxi",4000135658,"3,046"
DEPARTMENT FOR EDUCATION,DEPARTMENT FOR EDUCATION,16/07/2013,Personnel Related,Chief Information Officer Group,REDFERN TRAVEL LTD,Commercial,Subsistence and lodging allowances for official duty,4000135658,0
DEPARTMENT FOR EDUCATION,DEPARTMENT FOR EDUCATION,16/07/2013,Travel,Chief Information Officer Group,REDFERN TRAVEL LTD,Commercial,"Staff business travel including air, coach, ferry, rail and taxi",4000135658,122
DEPARTMENT FOR EDUCATION,DEPARTMENT FOR EDUCATION,16/07/2013,Travel,Chief Information Officer Group,REDFERN TRAVEL LTD,Commercial,"Staff business travel including air, coach, ferry, rail and taxi",4000135658,"3,342"
DEPARTMENT FOR EDUCATION,DEPARTMENT FOR EDUCATION,16/07/2013,Travel,Chief Information Officer Group,REDFERN TRAVEL LTD,Commercial,"Staff business travel including air, coach, ferry, rail and taxi",4000135658,"2,873"
DEPARTMENT FOR EDUCATION,DEPARTMENT FOR EDUCATION,16/07/2013,Personnel Related,Chief Information Officer Group,REDFERN TRAVEL LTD,Commercial,Subsistence and lodging allowances for official duty,4000135658,1
DEPARTMENT FOR EDUCATION,DEPARTMENT FOR EDUCATION,16/07/2013,Travel,Chief Information Officer Group,REDFERN TRAVEL LTD,Commercial,"Staff business travel including air, coach, ferry, rail and taxi",4000135658,568
DEPARTMENT FOR EDUCATION,DEPARTMENT FOR EDUCATION,16/07/2013,Travel,Chief Information Officer Group,REDFERN TRAVEL LTD,Commercial,"Staff business travel including air, coach, ferry, rail and taxi",4000135658,203
DEPARTMENT FOR EDUCATION,DEPARTMENT FOR EDUCATION,16/07/2013,Travel,Chief Information Officer Group,REDFERN TRAVEL LTD,Commercial,"Staff business travel including air, coach, ferry, rail and taxi",4000135658,257
DEPARTMENT FOR EDUCATION,DEPARTMENT FOR EDUCATION,16/07/2013,Travel,Chief Information Officer Group,REDFERN TRAVEL LTD,Commercial,"Staff business travel including air, coach, ferry, rail and taxi",4000135658,"1,303"
DEPARTMENT FOR EDUCATION,DEPARTMENT FOR EDUCATION,16/07/2013,Travel,Chief Information Officer Group,REDFERN TRAVEL LTD,Commercial,"Staff business travel including air, coach, ferry, rail and taxi",4000135658,366
DEPARTMENT FOR EDUCATION,DEPARTMENT FOR EDUCATION,16/07/2013,Travel,Chief Information Officer Group,REDFERN TRAVEL LTD,Commercial,"Staff business travel including air, coach, ferry, rail and taxi",4000135658,"1,114"
DEPARTMENT FOR EDUCATION,DEPARTMENT FOR EDUCATION,16/07/2013,Travel,Chief Information Officer Group,REDFERN TRAVEL LTD,Commercial,"Staff business travel including air, coach, ferry, rail and taxi",4000135658,"3,208"
DEPARTMENT FOR EDUCATION,DEPARTMENT FOR EDUCATION,16/07/2013,Travel,Chief Information Officer Group,REDFERN TRAVEL LTD,Commercial,"Staff business travel including air, coach, ferry, rail and taxi",4000135658,326
DEPARTMENT FOR EDUCATION,DEPARTMENT FOR EDUCATION,16/07/2013,ICT,Chief Information Officer Group,BT GLOBAL SERVICES,Commercial,ICT Services,4000135746,748
DEPARTMENT FOR EDUCATION,DEPARTMENT FOR EDUCATION,17/07/2013,Professional Services Consultancy and Contingent Labour,Chief Information Officer Group,CAPITA RESOURCING LTD,Commercial,Costs related to temporary workers,4000135835,"3,562"
DEPARTMENT FOR EDUCATION,DEPARTMENT FOR EDUCATION,17/07/2013,Professional Services Consultancy and Contingent Labour,Chief Information Officer Group,CAPITA RESOURCING LTD,Commercial,Costs related to temporary workers,4000135835,"40,733"
DEPARTMENT FOR EDUCATION,DEPARTMENT FOR EDUCATION,17/07/2013,Print and Print Management,Chief Information Officer Group,PROLOG,Commercial,"Reprographic, photo and design goods and services (excluding photocopiers, multifunctional devices and printers)",4000135836,"1,386"
DEPARTMENT FOR EDUCATION,DEPARTMENT FOR EDUCATION,17/07/2013,Communications,Chief Information Officer Group,PROLOG,Commercial,Digital media and web production,4000135836,"32,461"
DEPARTMENT FOR EDUCATION,DEPARTMENT FOR EDUCATION,17/07/2013,Communications,Chief Information Officer Group,PROLOG,Commercial,Digital media and web production,4000135836,"34,410"
DEPARTMENT FOR EDUCATION,DEPARTMENT FOR EDUCATION,17/07/2013,Communications,Chief Information Officer Group,PROLOG,Commercial,Digital media and web production,4000135836,"56,460"
DEPARTMENT FOR EDUCATION,DEPARTMENT FOR EDUCATION,17/07/2013,Communications,Chief Information Officer Group,PROLOG,Commercial,Digital media and web production,4000135836,"42,205"
DEPARTMENT FOR EDUCATION,DEPARTMENT FOR EDUCATION,18/07/2013,Professional Services Consultancy and Contingent Labour,Chief Information Officer Group,CAPITA RESOURCING LTD,Commercial,Costs related to temporary workers,4000135917,"3,562"
DEPARTMENT FOR EDUCATION,DEPARTMENT FOR EDUCATION,18/07/2013,Professional Services Consultancy and Contingent Labour,Chief Information Officer Group,CAPITA RESOURCING LTD,Commercial,Costs related to temporary workers,4000135917,"29,945"
DEPARTMENT FOR EDUCATION,DEPARTMENT FOR EDUCATION,18/07/2013,ICT,Chief Information Officer Group,MICROSOFT LTD,Commercial,ICT Software,4000135942,"295,752"
DEPARTMENT FOR EDUCATION,DEPARTMENT FOR EDUCATION,22/07/2013,ICT,Chief Information Officer Group,REDWEB,Commercial,ICT Software,4000136537,"5,880"
DEPARTMENT FOR EDUCATION,DEPARTMENT FOR EDUCATION,22/07/2013,ICT,Chief Information Officer Group,REDWEB,Commercial,ICT Services,4000136537,"98,116"
DEPARTMENT FOR EDUCATION,DEPARTMENT FOR EDUCATION,23/07/2013,ICT,Chief Information Officer Group,EDUSERV,Public Sector,ICT Services,4000136829,"33,073"
DEPARTMENT FOR EDUCATION,DEPARTMENT FOR EDUCATION,25/07/2013,ICT,Chief Information Officer Group,EDUSERV,Public Sector,ICT Services,4000137342,"79,240"
DEPARTMENT FOR EDUCATION,DEPARTMENT FOR EDUCATION,25/07/2013,ICT,Chief Information Officer Group,CAPGEMINI UK PLC,Commercial,ICT Services,4000137344,111
DEPARTMENT FOR EDUCATION,DEPARTMENT FOR EDUCATION,25/07/2013,ICT,Chief Information Officer Group,CAPGEMINI UK PLC,Commercial,Capital licences and intangible work in progress,4000137344,"28,021"
DEPARTMENT FOR EDUCATION,DEPARTMENT FOR EDUCATION,25/07/2013,ICT,Chief Information Officer Group,TOTAL ENTERPRISE SOLUTIONS,Commercial,ICT Software,4000137584,"34,684"
DEPARTMENT FOR EDUCATION,DEPARTMENT FOR EDUCATION,25/07/2013,Professional Services Consultancy and Contingent Labour,Chief Information Officer Group,CAPITA RESOURCING LTD,Commercial,Costs related to temporary workers,4000137609,"2,620"
DEPARTMENT FOR EDUCATION,DEPARTMENT FOR EDUCATION,25/07/2013,Professional Services Consultancy and Contingent Labour,Chief Information Officer Group,CAPITA RESOURCING LTD,Commercial,Costs related to temporary workers,4000137609,"30,637"
DEPARTMENT FOR EDUCATION,DEPARTMENT FOR EDUCATION,26/07/2013,ICT,Chief Information Officer Group,CAPGEMINI UK PLC,Commercial,ICT Services,4000137803,"150,858"
DEPARTMENT FOR EDUCATION,DEPARTMENT FOR EDUCATION,26/07/2013,ICT,Chief Information Officer Group,CAPGEMINI UK PLC,Commercial,ICT Services,4000137803,"19,259"
DEPARTMENT FOR EDUCATION,DEPARTMENT FOR EDUCATION,26/07/2013,ICT,Chief Information Officer Group,CAPGEMINI UK PLC,Commercial,ICT Services,4000137803,"11,843"
DEPARTMENT FOR EDUCATION,DEPARTMENT FOR EDUCATION,26/07/2013,ICT,Chief Information Officer Group,CAPGEMINI UK PLC,Commercial,Capital licences and intangible work in progress,4000137803,"64,824"
DEPARTMENT FOR EDUCATION,DEPARTMENT FOR EDUCATION,26/07/2013,ICT,Chief Information Officer Group,CAPGEMINI UK PLC,Commercial,ICT Services,4000137803,850
DEPARTMENT FOR EDUCATION,DEPARTMENT FOR EDUCATION,26/07/2013,ICT,Chief Information Officer Group,CAPGEMINI UK PLC,Commercial,ICT Services,4000137803,"18,556"
DEPARTMENT FOR EDUCATION,DEPARTMENT FOR EDUCATION,29/07/2013,ICT,Chief Information Officer Group,VODAFONE CORPORATE,Commercial,Telecoms Facilities and Services,4000138092,38
DEPARTMENT FOR EDUCATION,DEPARTMENT FOR EDUCATION,29/07/2013,ICT,Chief Information Officer Group,VODAFONE CORPORATE,Commercial,Telecoms Facilities and Services,4000138092,117
DEPARTMENT FOR EDUCATION,DEPARTMENT FOR EDUCATION,29/07/2013,ICT,Chief Information Officer Group,VODAFONE CORPORATE,Commercial,Telecoms Facilities and Services,4000138092,26
DEPARTMENT FOR EDUCATION,DEPARTMENT FOR EDUCATION,29/07/2013,ICT,Chief Information Officer Group,VODAFONE CORPORATE,Commercial,Telecoms Facilities and Services,4000138092,68
DEPARTMENT FOR EDUCATION,DEPARTMENT FOR EDUCATION,29/07/2013,ICT,Chief Information Officer Group,VODAFONE CORPORATE,Commercial,Telecoms Facilities and Services,4000138092,101
DEPARTMENT FOR EDUCATION,DEPARTMENT FOR EDUCATION,29/07/2013,ICT,Chief Information Officer Group,VODAFONE CORPORATE,Commercial,Telecoms Facilities and Services,4000138092,78
DEPARTMENT FOR EDUCATION,DEPARTMENT FOR EDUCATION,29/07/2013,ICT,Chief Information Officer Group,VODAFONE CORPORATE,Commercial,Telecoms Facilities and Services,4000138092,43
DEPARTMENT FOR EDUCATION,DEPARTMENT FOR EDUCATION,29/07/2013,ICT,Chief Information Officer Group,VODAFONE CORPORATE,Commercial,Telecoms Facilities and Services,4000138092,77
DEPARTMENT FOR EDUCATION,DEPARTMENT FOR EDUCATION,29/07/2013,ICT,Chief Information Officer Group,VODAFONE CORPORATE,Commercial,Telecoms Facilities and Services,4000138092,116
DEPARTMENT FOR EDUCATION,DEPARTMENT FOR EDUCATION,29/07/2013,ICT,Chief Information Officer Group,VODAFONE CORPORATE,Commercial,Telecoms Facilities and Services,4000138092,"5,035"
DEPARTMENT FOR EDUCATION,DEPARTMENT FOR EDUCATION,29/07/2013,ICT,Chief Information Officer Group,VODAFONE CORPORATE,Commercial,Telecoms Facilities and Services,4000138092,269
DEPARTMENT FOR EDUCATION,DEPARTMENT FOR EDUCATION,29/07/2013,ICT,Chief Information Officer Group,VODAFONE CORPORATE,Commercial,Telecoms Facilities and Services,4000138092,"2,002"
DEPARTMENT FOR EDUCATION,DEPARTMENT FOR EDUCATION,29/07/2013,ICT,Chief Information Officer Group,VODAFONE CORPORATE,Commercial,Telecoms Facilities and Services,4000138092,38
DEPARTMENT FOR EDUCATION,DEPARTMENT FOR EDUCATION,29/07/2013,Office Solutions,Chief Information Officer Group,DATAQUEST UK LTD,Commercial,Office machines,4000138190,"70,811"
DEPARTMENT FOR EDUCATION,DEPARTMENT FOR EDUCATION,29/07/2013,Office Solutions,Chief Information Officer Group,DATAQUEST UK LTD,Commercial,Office Supplies,4000138190,"7,200"
DEPARTMENT FOR EDUCATION,DEPARTMENT FOR EDUCATION,29/07/2013,ICT,Chief Information Officer Group,VODAFONE LTD,Commercial,Telecoms Facilities and Services,4000138224,"10,027"
DEPARTMENT FOR EDUCATION,DEPARTMENT FOR EDUCATION,29/07/2013,ICT,Chief Information Officer Group,VODAFONE LTD,Commercial,ICT Services,4000138224,"10,664"
DEPARTMENT FOR EDUCATION,DEPARTMENT FOR EDUCATION,29/07/2013,ICT,Chief Information Officer Group,VODAFONE LTD,Commercial,Telecoms Facilities and Services,4000138224,"88,191"
DEPARTMENT FOR EDUCATION,DEPARTMENT FOR EDUCATION,30/07/2013,ICT,Chief Information Officer Group,CAPGEMINI UK PLC,Commercial,ICT Services,4000138469,"4,127"
DEPARTMENT FOR EDUCATION,DEPARTMENT FOR EDUCATION,30/07/2013,ICT,Chief Information Officer Group,CAPGEMINI UK PLC,Commercial,Capital licences and intangible work in progress,4000138469,"81,824"
DEPARTMENT FOR EDUCATION,DEPARTMENT FOR EDUCATION,16/07/2013,Grants,Children's Services and Departmental Strategy Safeguarding Group,DIANA PRINCESS  MEMORIAL AWARD,VCS,Grants to third sector organisations / not for profit organisations,1001189,"100,095"
DEPARTMENT FOR EDUCATION,DEPARTMENT FOR EDUCATION,30/07/2013,Grants,Children's Services and Departmental Strategy Early Years Extended Schools and Special Needs Group,BRITISH DYSLEXIA ASSOCIATION,VCS,Grants to third sector organisations / not for profit organisations,1001207,"25,154"
DEPARTMENT FOR EDUCATION,DEPARTMENT FOR EDUCATION,03/07/2013,Grants,Families Group,CAFCASS,Central Government,Current grant funding to arms length bodies for DfE's contribution to fund activity,2000802,"9,709,934"
DEPARTMENT FOR EDUCATION,DEPARTMENT FOR EDUCATION,10/07/2013,Grants,Supporting Delivery Group,OFFICE OF THE CHILDRENS COMMISSIONER,Central Government,Current grant funding to arms length bodies for DfE's contribution to fund activity,2000804,"140,172"
DEPARTMENT FOR EDUCATION,DEPARTMENT FOR EDUCATION,01/07/2013,Professional Services Other,Strategic Analysis and Research and Policy Impact Group,RM DATA SOLUTIONS,Commercial,Research and evaluation activities,4000133205,"40,000"
DEPARTMENT FOR EDUCATION,DEPARTMENT FOR EDUCATION,01/07/2013,Programme costs,Families Group,ONE PLUS ONE,VCS,Funding to deliver policies (excluding consultancy) paid to third parties via a service delivery contract,4000133248,"31,682"
DEPARTMENT FOR EDUCATION,DEPARTMENT FOR EDUCATION,01/07/2013,Programme costs,Families Group,ONE PLUS ONE,VCS,Funding to deliver policies (excluding consultancy) paid to third parties via a service delivery contract,4000133248,"71,640"
DEPARTMENT FOR EDUCATION,DEPARTMENT FOR EDUCATION,01/07/2013,Grants,Families Group,BRITISH ASSOCIATION FOR ADOPTION & FOSTERING,VCS,Grants to third sector organisations / not for profit organisations,4000133261,"83,022"
DEPARTMENT FOR EDUCATION,DEPARTMENT FOR EDUCATION,01/07/2013,Learning and Development,People and Change,CIVIL SERVICE LEARNING,Public Sector,Staff training and development including materials and courses,4000133287,"1,405"
DEPARTMENT FOR EDUCATION,DEPARTMENT FOR EDUCATION,01/07/2013,Learning and Development,People and Change,CIVIL SERVICE LEARNING,Public Sector,Staff training and development including materials and courses,4000133287,"3,666"
DEPARTMENT FOR EDUCATION,DEPARTMENT FOR EDUCATION,01/07/2013,Travel,People and Change,CIVIL SERVICE LEARNING,Public Sector,"Staff business travel including air, coach, ferry, rail and taxi to attend training events",4000133287,"5,492"
DEPARTMENT FOR EDUCATION,DEPARTMENT FOR EDUCATION,01/07/2013,Learning and Development,People and Change,CIVIL SERVICE LEARNING,Public Sector,Staff training and development including materials and courses,4000133287,"12,818"
DEPARTMENT FOR EDUCATION,DEPARTMENT FOR EDUCATION,01/07/2013,Personnel Related,Children's Services and Departmental Strategy Supporting Delivery Group,HMRC,Central Government,Staff subscriptions including publications and organisation subscription charges,4000133396,793
DEPARTMENT FOR EDUCATION,DEPARTMENT FOR EDUCATION,02/07/2013,Travel,Families Group,EXPOTEL HOTEL RESERVATIONS LTD,Commercial,"Staff business travel including air, coach, ferry, rail and taxi",4000133448,409
DEPARTMENT FOR EDUCATION,DEPARTMENT FOR EDUCATION,02/07/2013,Grants,Children's Services and Departmental Strategy Early Years Extended Schools and Special Needs Group,THE FAMILY FUND TRUST,VCS,Grants to third sector organisations / not for profit organisations,4000133551,"2,043,000"
DEPARTMENT FOR EDUCATION,DEPARTMENT FOR EDUCATION,02/07/2013,Programme costs,Families Group,ECORYS UK LTD,Commercial,Funding to deliver policies (excluding consultancy) paid to third parties via a service delivery contract,4000133553,"41,017"
DEPARTMENT FOR EDUCATION,DEPARTMENT FOR EDUCATION,04/07/2013,Programme costs,Families Group,RELATE,VCS,Funding to deliver policies (excluding consultancy) paid to third parties via a service delivery contract,4000134212,"34,149"
DEPARTMENT FOR EDUCATION,DEPARTMENT FOR EDUCATION,04/07/2013,Grants,Families Group,DEPARTMENT OF HEALTH,Central Government,"Grants paid to organisations including agencies, arms length bodies and educational establishments",4000134214,"200,000"
DEPARTMENT FOR EDUCATION,DEPARTMENT FOR EDUCATION,05/07/2013,Programme costs,Families Group,CORAM,VCS,Funding to deliver policies (excluding consultancy) paid to third parties via a service delivery contract,4000134415,"28,967"
DEPARTMENT FOR EDUCATION,DEPARTMENT FOR EDUCATION,05/07/2013,Programme costs,Children's Services and Departmental Strategy Early Years Extended Schools and Special Needs Group,ACHIEVEMENT FOR ALL 3AS LTD,VCS,Funding to deliver policies (excluding consultancy) paid to third parties via a service delivery contract,4000134427,"318,033"
DEPARTMENT FOR EDUCATION,DEPARTMENT FOR EDUCATION,05/07/2013,Programme costs,Children's Services and Departmental Strategy Early Years Extended Schools and Special Needs Group,BRITISH DYSLEXIA ASSOCIATION,VCS,Funding to deliver policies (excluding consultancy) paid to third parties via a service delivery contract,4000134471,"26,369"
DEPARTMENT FOR EDUCATION,DEPARTMENT FOR EDUCATION,08/07/2013,Programme costs,Children's Services and Departmental Strategy Early Years Extended Schools and Special Needs Group,NDTI,VCS,Funding to deliver policies (excluding consultancy) paid to third parties via a service delivery contract,4000134632,"50,521"
DEPARTMENT FOR EDUCATION,DEPARTMENT FOR EDUCATION,08/07/2013,Programme costs,Families Group,RELATE,VCS,Funding to deliver policies (excluding consultancy) paid to third parties via a service delivery contract,4000134641,"55,750"
DEPARTMENT FOR EDUCATION,DEPARTMENT FOR EDUCATION,08/07/2013,Grants,Children's Services and Departmental Strategy Early Years Extended Schools and Special Needs Group,THE MOVEMENT FOR NON MOBILE,VCS,Grants to third sector organisations / not for profit organisations,4000134657,"60,066"
DEPARTMENT FOR EDUCATION,DEPARTMENT FOR EDUCATION,08/07/2013,Programme costs,Children's Services and Departmental Strategy Early Years Extended Schools and Special Needs Group,MOTT MACDONALD LTD,Commercial,Funding to deliver policies (excluding consultancy) paid to third parties via a service delivery contract,4000134666,"31,362"
DEPARTMENT FOR EDUCATION,DEPARTMENT FOR EDUCATION,10/07/2013,Grants,Children's Services and Departmental Strategy Safeguarding Group,THE ANNA FREUD CENTRE,VCS,Grants to third sector organisations / not for profit organisations,4000134896,"85,255"
DEPARTMENT FOR EDUCATION,DEPARTMENT FOR EDUCATION,10/07/2013,Grants,Families Group,PRISON ADVICE & CARE TRUST,VCS,Grants to third sector organisations / not for profit organisations,4000134912,"91,702"
DEPARTMENT FOR EDUCATION,DEPARTMENT FOR EDUCATION,10/07/2013,Grants,Supporting Delivery Group,BRITISH YOUTH COUNCIL,VCS,Grants to third sector organisations / not for profit organisations,4000134943,"44,171"
DEPARTMENT FOR EDUCATION,DEPARTMENT FOR EDUCATION,10/07/2013,Grants,Children's Services and Departmental Strategy Supporting Delivery Group,VIRTUAL STAFF COLLEGE,Commercial,Grants to third sector organisations / not for profit organisations,4000135022,"234,252"
DEPARTMENT FOR EDUCATION,DEPARTMENT FOR EDUCATION,10/07/2013,Grants,Children's Services and Departmental Strategy Early Years Extended Schools and Special Needs Group,NATIONAL DAY NURSERIES ASSOCIATION,VCS,Grants to third sector organisations / not for profit organisations,4000135025,"53,306"
DEPARTMENT FOR EDUCATION,DEPARTMENT FOR EDUCATION,11/07/2013,Grants,Children's Services and Departmental Strategy Safeguarding Group,VICTIM SUPPORT,VCS,Grants to third sector organisations / not for profit organisations,4000135034,"91,568"
DEPARTMENT FOR EDUCATION,DEPARTMENT FOR EDUCATION,11/07/2013,Travel,People and Change,MYCSP LTD,Commercial,"Staff business travel including air, coach, ferry, rail and taxi to attend training events",4000135035,"31,906"
DEPARTMENT FOR EDUCATION,DEPARTMENT FOR EDUCATION,11/07/2013,Programme costs,Families Group,KINGS COLLEGE LONDON,Public Sector,Funding to deliver policies (excluding consultancy) paid to third parties via a service delivery contract,4000135064,"588,958"
DEPARTMENT FOR EDUCATION,DEPARTMENT FOR EDUCATION,11/07/2013,Programme costs,Children's Services and Departmental Strategy Early Years Extended Schools and Special Needs Group,COUNCIL FOR DISABLED,VCS,Funding to deliver policies (excluding consultancy) paid to third parties via a service delivery contract,4000135081,"73,646"
DEPARTMENT FOR EDUCATION,DEPARTMENT FOR EDUCATION,11/07/2013,Professional Services Other,Children's Services and Departmental Strategy Early Years Extended Schools and Special Needs Group,ATLANTIC DATA LTD,Commercial,"Fees / expenses of professionals from the private sector, for example to implement advice or changes",4000135146,"65,952"
DEPARTMENT FOR EDUCATION,DEPARTMENT FOR EDUCATION,12/07/2013,Grants,Children's Services and Departmental Strategy Safeguarding Group,THE COLLEGE OF SOCIAL WORK,VCS,Grants to third sector organisations / not for profit organisations,4000135249,"50,000"
DEPARTMENT FOR EDUCATION,DEPARTMENT FOR EDUCATION,12/07/2013,Grants,Children's Services and Departmental Strategy Early Years Extended Schools and Special Needs Group,BIRMINGHAM COMMUNITY HEALTH CARE NHS TRUST,Public Sector,Grants to third sector organisations / not for profit organisations,4000135300,"77,959"
DEPARTMENT FOR EDUCATION,DEPARTMENT FOR EDUCATION,12/07/2013,Grants,Children's Services and Departmental Strategy Safeguarding Group,YOUTH ACCESS,VCS,Grants to third sector organisations / not for profit organisations,4000135301,"95,775"
DEPARTMENT FOR EDUCATION,DEPARTMENT FOR EDUCATION,12/07/2013,Grants,Supporting Delivery Group,TOMORROWS PEOPLE TRUST LTD,VCS,Grants to third sector organisations / not for profit organisations,4000135367,"70,862"
DEPARTMENT FOR EDUCATION,DEPARTMENT FOR EDUCATION,12/07/2013,Grants,Children's Services and Departmental Strategy Safeguarding Group,INTERNATIONAL SOCIAL SERVICE OF THE UNITED KINGDOM,VCS,Grants to third sector organisations / not for profit organisations,4000135379,"34,429"
DEPARTMENT FOR EDUCATION,DEPARTMENT FOR EDUCATION,15/07/2013,Professional Services Other,Children's Services and Departmental Strategy Early Years Extended Schools and Special Needs Group,MOTT MACDONALD LTD,Commercial,"Fees / expenses of professionals from the private sector, for example to implement advice or changes",4000135392,"51,896"
DEPARTMENT FOR EDUCATION,DEPARTMENT FOR EDUCATION,15/07/2013,Grants,Families Group,TAVISTOCK CENTRE FOR COUPLE RELATIONSHIPS,VCS,Grants to third sector organisations / not for profit organisations,4000135472,"25,000"
DEPARTMENT FOR EDUCATION,DEPARTMENT FOR EDUCATION,16/07/2013,Programme costs,Families Group,ONE PLUS ONE,VCS,Funding to deliver policies (excluding consultancy) paid to third parties via a service delivery contract,4000135532,"31,682"
DEPARTMENT FOR EDUCATION,DEPARTMENT FOR EDUCATION,16/07/2013,Grants,Families Group,CAFCASS,Central Government,"Grants paid to organisations including agencies, arms length bodies and educational establishments",4000135568,"306,252"
DEPARTMENT FOR EDUCATION,DEPARTMENT FOR EDUCATION,16/07/2013,Grants,Children's Services and Departmental Strategy Early Years Extended Schools and Special Needs Group,KIDS,VCS,Grants to third sector organisations / not for profit organisations,4000135641,"26,188"
DEPARTMENT FOR EDUCATION,DEPARTMENT FOR EDUCATION,16/07/2013,Travel,Children's Services and Departmental Strategy Directorate Support,REDFERN TRAVEL LTD,Commercial,"Staff business travel including air, coach, ferry, rail and taxi",4000135658,439
DEPARTMENT FOR EDUCATION,DEPARTMENT FOR EDUCATION,16/07/2013,Travel,Families Group,REDFERN TRAVEL LTD,Commercial,"Staff business travel including air, coach, ferry, rail and taxi",4000135658,134
DEPARTMENT FOR EDUCATION,DEPARTMENT FOR EDUCATION,16/07/2013,Travel,Families Group,REDFERN TRAVEL LTD,Commercial,"Staff business travel including air, coach, ferry, rail and taxi",4000135658,590
DEPARTMENT FOR EDUCATION,DEPARTMENT FOR EDUCATION,16/07/2013,Travel,Families Group,REDFERN TRAVEL LTD,Commercial,"Staff business travel including air, coach, ferry, rail and taxi",4000135658,-57
DEPARTMENT FOR EDUCATION,DEPARTMENT FOR EDUCATION,16/07/2013,Travel,Families Group,REDFERN TRAVEL LTD,Commercial,"Staff business travel including air, coach, ferry, rail and taxi",4000135658,684
DEPARTMENT FOR EDUCATION,DEPARTMENT FOR EDUCATION,16/07/2013,Travel,Families Group,REDFERN TRAVEL LTD,Commercial,"Staff business travel including air, coach, ferry, rail and taxi",4000135658,"3,507"
DEPARTMENT FOR EDUCATION,DEPARTMENT FOR EDUCATION,16/07/2013,Travel,Children's Services and Departmental Strategy Supporting Delivery Group,REDFERN TRAVEL LTD,Commercial,"Staff business travel including air, coach, ferry, rail and taxi",4000135658,"2,166"
DEPARTMENT FOR EDUCATION,DEPARTMENT FOR EDUCATION,16/07/2013,Travel,Children's Services and Departmental Strategy Supporting Delivery Group,REDFERN TRAVEL LTD,Commercial,"Staff business travel including air, coach, ferry, rail and taxi",4000135658,"1,439"
DEPARTMENT FOR EDUCATION,DEPARTMENT FOR EDUCATION,16/07/2013,Travel,Children's Services and Departmental Strategy Supporting Delivery Group,REDFERN TRAVEL LTD,Commercial,"Staff business travel including air, coach, ferry, rail and taxi",4000135658,29
DEPARTMENT FOR EDUCATION,DEPARTMENT FOR EDUCATION,16/07/2013,Travel,Families Group,REDFERN TRAVEL LTD,Commercial,"Staff business travel including air, coach, ferry, rail and taxi",4000135658,"1,499"
DEPARTMENT FOR EDUCATION,DEPARTMENT FOR EDUCATION,16/07/2013,Travel,Supporting Delivery Group,REDFERN TRAVEL LTD,Commercial,"Staff business travel including air, coach, ferry, rail and taxi",4000135658,"1,179"
DEPARTMENT FOR EDUCATION,DEPARTMENT FOR EDUCATION,16/07/2013,Travel,Children's Services and Departmental Strategy Safeguarding Group,REDFERN TRAVEL LTD,Commercial,"Staff business travel including air, coach, ferry, rail and taxi",4000135658,"9,850"
DEPARTMENT FOR EDUCATION,DEPARTMENT FOR EDUCATION,16/07/2013,Travel,Children's Services and Departmental Strategy Early Years Extended Schools and Special Needs Group,REDFERN TRAVEL LTD,Commercial,"Staff business travel including air, coach, ferry, rail and taxi",4000135658,"1,128"
DEPARTMENT FOR EDUCATION,DEPARTMENT FOR EDUCATION,16/07/2013,Travel,Children's Services and Departmental Strategy Early Years Extended Schools and Special Needs Group,REDFERN TRAVEL LTD,Commercial,"Staff business travel including air, coach, ferry, rail and taxi",4000135658,285
DEPARTMENT FOR EDUCATION,DEPARTMENT FOR EDUCATION,16/07/2013,Travel,Children's Services and Departmental Strategy Early Years Extended Schools and Special Needs Group,REDFERN TRAVEL LTD,Commercial,"Staff business travel including air, coach, ferry, rail and taxi",4000135658,150
DEPARTMENT FOR EDUCATION,DEPARTMENT FOR EDUCATION,16/07/2013,Travel,Children's Services and Departmental Strategy Early Years Extended Schools and Special Needs Group,REDFERN TRAVEL LTD,Commercial,"Staff business travel including air, coach, ferry, rail and taxi",4000135658,"2,380"
DEPARTMENT FOR EDUCATION,DEPARTMENT FOR EDUCATION,16/07/2013,Travel,Children's Services and Departmental Strategy Early Years Extended Schools and Special Needs Group,REDFERN TRAVEL LTD,Commercial,"Staff business travel including air, coach, ferry, rail and taxi",4000135658,"2,774"
DEPARTMENT FOR EDUCATION,DEPARTMENT FOR EDUCATION,16/07/2013,Travel,Children's Services and Departmental Strategy Early Years Extended Schools and Special Needs Group,REDFERN TRAVEL LTD,Commercial,"Staff business travel including air, coach, ferry, rail and taxi",4000135658,66
DEPARTMENT FOR EDUCATION,DEPARTMENT FOR EDUCATION,16/07/2013,Travel,Children's Services and Departmental Strategy Supporting Delivery Group,REDFERN TRAVEL LTD,Commercial,"Staff business travel including air, coach, ferry, rail and taxi",4000135658,163
DEPARTMENT FOR EDUCATION,DEPARTMENT FOR EDUCATION,16/07/2013,Travel,Strategic Analysis and Research and Policy Impact Group,REDFERN TRAVEL LTD,Commercial,"Staff business travel including air, coach, ferry, rail and taxi",4000135658,"3,980"
DEPARTMENT FOR EDUCATION,DEPARTMENT FOR EDUCATION,16/07/2013,Travel,Strategy and Performance Group,REDFERN TRAVEL LTD,Commercial,"Staff business travel including air, coach, ferry, rail and taxi",4000135658,"1,169"
DEPARTMENT FOR EDUCATION,DEPARTMENT FOR EDUCATION,16/07/2013,Travel,Strategy and Performance Group,REDFERN TRAVEL LTD,Commercial,"Staff business travel including air, coach, ferry, rail and taxi",4000135658,731
DEPARTMENT FOR EDUCATION,DEPARTMENT FOR EDUCATION,16/07/2013,Travel,People and Change,REDFERN TRAVEL LTD,Commercial,"Staff business travel including air, coach, ferry, rail and taxi",4000135658,"18,578"
DEPARTMENT FOR EDUCATION,DEPARTMENT FOR EDUCATION,16/07/2013,Personnel Related,People and Change,REDFERN TRAVEL LTD,Commercial,Subsistence and lodging allowances for official duty,4000135658,5
DEPARTMENT FOR EDUCATION,DEPARTMENT FOR EDUCATION,16/07/2013,Travel,People and Change,REDFERN TRAVEL LTD,Commercial,"Staff business travel including air, coach, ferry, rail and taxi",4000135658,"1,353"
DEPARTMENT FOR EDUCATION,DEPARTMENT FOR EDUCATION,16/07/2013,Personnel Related,People and Change,REDFERN TRAVEL LTD,Commercial,Subsistence and lodging allowances for official duty,4000135658,2
DEPARTMENT FOR EDUCATION,DEPARTMENT FOR EDUCATION,16/07/2013,Travel,People and Change,REDFERN TRAVEL LTD,Commercial,"Staff business travel including air, coach, ferry, rail and taxi",4000135658,72
DEPARTMENT FOR EDUCATION,DEPARTMENT FOR EDUCATION,16/07/2013,Travel,People and Change,REDFERN TRAVEL LTD,Commercial,"Staff business travel including air, coach, ferry, rail and taxi",4000135658,267
DEPARTMENT FOR EDUCATION,DEPARTMENT FOR EDUCATION,16/07/2013,Travel,School Standards Group,REDFERN TRAVEL LTD,Commercial,"Staff business travel including air, coach, ferry, rail and taxi",4000135658,"1,216"
DEPARTMENT FOR EDUCATION,DEPARTMENT FOR EDUCATION,16/07/2013,Travel,School Standards Group,REDFERN TRAVEL LTD,Commercial,Staff travel expenses for travel overseas on official duty,4000135658,1
DEPARTMENT FOR EDUCATION,DEPARTMENT FOR EDUCATION,16/07/2013,Travel,Communications Group,REDFERN TRAVEL LTD,Commercial,"Staff business travel including air, coach, ferry, rail and taxi",4000135658,"2,980"
DEPARTMENT FOR EDUCATION,DEPARTMENT FOR EDUCATION,16/07/2013,Travel,Communications Group,REDFERN TRAVEL LTD,Commercial,"Staff business travel including air, coach, ferry, rail and taxi",4000135658,"6,174"
DEPARTMENT FOR EDUCATION,DEPARTMENT FOR EDUCATION,16/07/2013,Personnel Related,Communications Group,REDFERN TRAVEL LTD,Commercial,Subsistence and lodging allowances for official duty,4000135658,1
DEPARTMENT FOR EDUCATION,DEPARTMENT FOR EDUCATION,16/07/2013,Travel,Communications Group,REDFERN TRAVEL LTD,Commercial,"Staff business travel including air, coach, ferry, rail and taxi",4000135658,171
DEPARTMENT FOR EDUCATION,DEPARTMENT FOR EDUCATION,16/07/2013,Grants,Children's Services and Departmental Strategy Safeguarding Group,ARK UK PROGRAMMES,Public Sector,Grants to third sector organisations / not for profit organisations,4000135687,"58,964"
DEPARTMENT FOR EDUCATION,DEPARTMENT FOR EDUCATION,16/07/2013,Programme costs,Children's Services and Departmental Strategy Early Years Extended Schools and Special Needs Group,4 CHILDREN EARLY INTERVENTION,VCS,Funding to deliver policies (excluding consultancy) paid to third parties via a service delivery contract,4000135704,"83,357"
DEPARTMENT FOR EDUCATION,DEPARTMENT FOR EDUCATION,16/07/2013,Grants,Families Group,THE SHARE FOUNDATION 3RD PARTY TRUST,Public Sector,Grants to third sector organisations / not for profit organisations,4000135728,"63,200"
DEPARTMENT FOR EDUCATION,DEPARTMENT FOR EDUCATION,16/07/2013,Programme costs,Families Group,THE SHARE FOUNDATION 3RD PARTY TRUST,Public Sector,Funding to deliver policies (excluding consultancy) paid to third parties via a service delivery contract,4000135728,"63,354"
DEPARTMENT FOR EDUCATION,DEPARTMENT FOR EDUCATION,17/07/2013,Programme costs,Families Group,FAMILY RIGHTS GROUP LTD,VCS,Funding to deliver policies (excluding consultancy) paid to third parties via a service delivery contract,4000135770,"4,668"
DEPARTMENT FOR EDUCATION,DEPARTMENT FOR EDUCATION,17/07/2013,Professional Services Other,Families Group,FAMILY RIGHTS GROUP LTD,VCS,Research and evaluation activities,4000135770,"26,309"
DEPARTMENT FOR EDUCATION,DEPARTMENT FOR EDUCATION,17/07/2013,Programme costs,School Standards Group,NFER TRADING LIMITED INV T,Commercial,Funding to deliver policies (excluding consultancy) paid to third parties via a service delivery contract,4000135772,"60,960"
DEPARTMENT FOR EDUCATION,DEPARTMENT FOR EDUCATION,17/07/2013,Grants,Children's Services and Departmental Strategy Safeguarding Group,BEATBULLYING,VCS,Grants to third sector organisations / not for profit organisations,4000135778,"64,568"
DEPARTMENT FOR EDUCATION,DEPARTMENT FOR EDUCATION,17/07/2013,Professional Services Consultancy and Contingent Labour,Communications Group,CAPITA RESOURCING LTD,Commercial,Costs related to temporary workers,4000135835,"1,109"
DEPARTMENT FOR EDUCATION,DEPARTMENT FOR EDUCATION,17/07/2013,Communications,Children's Services and Departmental Strategy Early Years Extended Schools and Special Needs Group,PROLOG,Commercial,Marketing services,4000135836,"7,490"
DEPARTMENT FOR EDUCATION,DEPARTMENT FOR EDUCATION,17/07/2013,Communications,Children's Services and Departmental Strategy Early Years Extended Schools and Special Needs Group,PROLOG,Commercial,Marketing services,4000135836,8
DEPARTMENT FOR EDUCATION,DEPARTMENT FOR EDUCATION,17/07/2013,Communications,Families Group,PROLOG,Commercial,Marketing services,4000135836,21
DEPARTMENT FOR EDUCATION,DEPARTMENT FOR EDUCATION,17/07/2013,Communications,Communications Group,PROLOG,Commercial,Marketing services,4000135836,"15,360"
DEPARTMENT FOR EDUCATION,DEPARTMENT FOR EDUCATION,17/07/2013,Grants,Supporting Delivery Group,REACHFOR,Commercial,Grants to third sector organisations / not for profit organisations,4000135841,"48,955"
DEPARTMENT FOR EDUCATION,DEPARTMENT FOR EDUCATION,18/07/2013,Professional Services Consultancy and Contingent Labour,Communications Group,CAPITA RESOURCING LTD,Commercial,Costs related to temporary workers,4000135917,"1,996"
DEPARTMENT FOR EDUCATION,DEPARTMENT FOR EDUCATION,18/07/2013,Professional Services Other,Children's Services and Departmental Strategy Early Years Extended Schools and Special Needs Group,THE MEDIA GROUP TMG TV LTD,Commercial,"Fees / expenses of professionals from the private sector, for example to implement advice or changes",4000135929,"494,982"
DEPARTMENT FOR EDUCATION,DEPARTMENT FOR EDUCATION,18/07/2013,Professional Services Other,Families Group,UNIVERSITY OF WARWICK,Public Sector,Research and evaluation activities,4000135962,"40,400"
DEPARTMENT FOR EDUCATION,DEPARTMENT FOR EDUCATION,18/07/2013,Professional Services Other,Children's Services and Departmental Strategy Early Years Extended Schools and Special Needs Group,CAPITA EDUCATION RESOURCING,Commercial,"Fees / expenses of professionals from the private sector, for example to implement advice or changes",4000135992,"171,411"
DEPARTMENT FOR EDUCATION,DEPARTMENT FOR EDUCATION,18/07/2013,Programme costs,Children's Services and Departmental Strategy Early Years Extended Schools and Special Needs Group,CONTACT A FAMILY,VCS,Funding to deliver policies (excluding consultancy) paid to third parties via a service delivery contract,4000136067,"46,501"
DEPARTMENT FOR EDUCATION,DEPARTMENT FOR EDUCATION,18/07/2013,Grants,Children's Services and Departmental Strategy Early Years Extended Schools and Special Needs Group,CONTACT A FAMILY,VCS,Grants to third sector organisations / not for profit organisations,4000136067,"5,000"
DEPARTMENT FOR EDUCATION,DEPARTMENT FOR EDUCATION,18/07/2013,Programme costs,Families Group,UNIVERSITY OF ESSEX,Public Sector,Funding to deliver policies (excluding consultancy) paid to third parties via a service delivery contract,4000136070,"30,950"
DEPARTMENT FOR EDUCATION,DEPARTMENT FOR EDUCATION,18/07/2013,Programme costs,Children's Services and Departmental Strategy Safeguarding Group,PENNA PLC,Commercial,Funding to deliver policies (excluding consultancy) paid to third parties via a service delivery contract,4000136107,"90,421"
DEPARTMENT FOR EDUCATION,DEPARTMENT FOR EDUCATION,19/07/2013,Grants,Families Group,NATIONAL CHILDRENS BUREAU,VCS,Grants to third sector organisations / not for profit organisations,4000136203,"26,246"
DEPARTMENT FOR EDUCATION,DEPARTMENT FOR EDUCATION,19/07/2013,Grants,Supporting Delivery Group,KEEPING KIDS COMPANY,VCS,Grants to third sector organisations / not for profit organisations,4000136219,"1,000,000"
DEPARTMENT FOR EDUCATION,DEPARTMENT FOR EDUCATION,19/07/2013,Grants,Families Group,CAMBRIDGESHIRE COUNTY COUNCIL,Public Sector,Grants to local authorities within AEF/AEG (aggregate external funding/aggregate exchequer grant),4000136235,"47,636"
DEPARTMENT FOR EDUCATION,DEPARTMENT FOR EDUCATION,19/07/2013,Grants,Families Group,THE SHARE FOUNDATION 3RD PARTY TRUST,Public Sector,Grants to third sector organisations / not for profit organisations,4000136252,"73,600"
DEPARTMENT FOR EDUCATION,DEPARTMENT FOR EDUCATION,19/07/2013,Programme costs,Families Group,CONTACT A FAMILY,VCS,Funding to deliver policies (excluding consultancy) paid to third parties via a service delivery contract,4000136263,"39,904"
DEPARTMENT FOR EDUCATION,DEPARTMENT FOR EDUCATION,22/07/2013,Office Solutions,People and Change,CSSC SPORTS & LEISURE,Commercial,Office Supplies,4000136573,"27,000"
DEPARTMENT FOR EDUCATION,DEPARTMENT FOR EDUCATION,23/07/2013,Personnel Related,People and Change,EDENRED,Commercial,Childcare services provided for staff including the management fee and subsidy costs,4000136696,"90,668"
DEPARTMENT FOR EDUCATION,DEPARTMENT FOR EDUCATION,23/07/2013,Professional Services Other,Strategic Analysis and Research and Policy Impact Group,INSTITUTE OF EDUCATION,Public Sector,Research and evaluation activities,4000136771,"125,000"
DEPARTMENT FOR EDUCATION,DEPARTMENT FOR EDUCATION,24/07/2013,Grants,Children's Services and Departmental Strategy Early Years Extended Schools and Special Needs Group,THE PLACE2BE,VCS,Grants to third sector organisations / not for profit organisations,4000137054,"29,125"
DEPARTMENT FOR EDUCATION,DEPARTMENT FOR EDUCATION,24/07/2013,Programme costs,Families Group,FAMILY LIVES,VCS,Funding to deliver policies (excluding consultancy) paid to third parties via a service delivery contract,4000137079,"190,232"
DEPARTMENT FOR EDUCATION,DEPARTMENT FOR EDUCATION,24/07/2013,Programme costs,Children's Services and Departmental Strategy Early Years Extended Schools and Special Needs Group,BRITISH DYSLEXIA ASSOCIATION,VCS,Funding to deliver policies (excluding consultancy) paid to third parties via a service delivery contract,4000137144,"25,501"
DEPARTMENT FOR EDUCATION,DEPARTMENT FOR EDUCATION,25/07/2013,Grants,Supporting Delivery Group,AMBITION,Commercial,Grants to third sector organisations / not for profit organisations,4000137305,"132,452"
DEPARTMENT FOR EDUCATION,DEPARTMENT FOR EDUCATION,25/07/2013,Grants,Supporting Delivery Group,GROUNDWORK UK,VCS,Grants to third sector organisations / not for profit organisations,4000137373,"106,982"
DEPARTMENT FOR EDUCATION,DEPARTMENT FOR EDUCATION,25/07/2013,Programme costs,Families Group,RELATE,VCS,Funding to deliver policies (excluding consultancy) paid to third parties via a service delivery contract,4000137403,"203,245"
DEPARTMENT FOR EDUCATION,DEPARTMENT FOR EDUCATION,25/07/2013,Grants,Families Group,RELATE,VCS,Grants to third sector organisations / not for profit organisations,4000137404,"154,296"
DEPARTMENT FOR EDUCATION,DEPARTMENT FOR EDUCATION,25/07/2013,Grants,Children's Services and Departmental Strategy Early Years Extended Schools and Special Needs Group,SCOPE,VCS,Grants to third sector organisations / not for profit organisations,4000137500,"28,571"
DEPARTMENT FOR EDUCATION,DEPARTMENT FOR EDUCATION,25/07/2013,Professional Services Consultancy and Contingent Labour,Communications Group,CAPITA RESOURCING LTD,Commercial,Costs related to temporary workers,4000137609,"1,109"
DEPARTMENT FOR EDUCATION,DEPARTMENT FOR EDUCATION,26/07/2013,Grants,Supporting Delivery Group,REACHFOR,Commercial,Grants to third sector organisations / not for profit organisations,4000137727,"137,146"
DEPARTMENT FOR EDUCATION,DEPARTMENT FOR EDUCATION,26/07/2013,Operational Goods,Families Group,CAPGEMINI UK PLC,Commercial,Learning and Development Materials,4000137803,"9,053"
DEPARTMENT FOR EDUCATION,DEPARTMENT FOR EDUCATION,26/07/2013,Programme costs,Families Group,FAMILY RIGHTS GROUP LTD,VCS,Funding to deliver policies (excluding consultancy) paid to third parties via a service delivery contract,4000137848,"30,978"
DEPARTMENT FOR EDUCATION,DEPARTMENT FOR EDUCATION,26/07/2013,Grants,Families Group,CORAM,VCS,Grants to third sector organisations / not for profit organisations,4000137868,"40,709"
DEPARTMENT FOR EDUCATION,DEPARTMENT FOR EDUCATION,26/07/2013,Professional Services Other,Strategic Analysis and Research and Policy Impact Group,RM EDUCATION,Commercial,Research and evaluation activities,4000137872,"44,574"
DEPARTMENT FOR EDUCATION,DEPARTMENT FOR EDUCATION,26/07/2013,Grants,Supporting Delivery Group,BRITISH YOUTH COUNCIL,VCS,Grants to third sector organisations / not for profit organisations,4000137887,"37,792"
DEPARTMENT FOR EDUCATION,DEPARTMENT FOR EDUCATION,26/07/2013,Grants,Children's Services and Departmental Strategy Safeguarding Group,NSPCC,VCS,Grants to third sector organisations / not for profit organisations,4000137959,"550,000"
DEPARTMENT FOR EDUCATION,DEPARTMENT FOR EDUCATION,26/07/2013,Grants,Supporting Delivery Group,THE ANNA FREUD CENTRE,VCS,Grants to third sector organisations / not for profit organisations,4000137999,"57,955"
DEPARTMENT FOR EDUCATION,DEPARTMENT FOR EDUCATION,29/07/2013,ICT,Children's Services and Departmental Strategy Directorate Support,VODAFONE CORPORATE,Commercial,Telecoms Facilities and Services,4000138092,331
DEPARTMENT FOR EDUCATION,DEPARTMENT FOR EDUCATION,29/07/2013,ICT,Families Group,VODAFONE CORPORATE,Commercial,Telecoms Facilities and Services,4000138092,78
DEPARTMENT FOR EDUCATION,DEPARTMENT FOR EDUCATION,29/07/2013,ICT,Families Group,VODAFONE CORPORATE,Commercial,Telecoms Facilities and Services,4000138092,66
DEPARTMENT FOR EDUCATION,DEPARTMENT FOR EDUCATION,29/07/2013,ICT,Families Group,VODAFONE CORPORATE,Commercial,Telecoms Facilities and Services,4000138092,156
DEPARTMENT FOR EDUCATION,DEPARTMENT FOR EDUCATION,29/07/2013,ICT,Families Group,VODAFONE CORPORATE,Commercial,Telecoms Facilities and Services,4000138092,77
DEPARTMENT FOR EDUCATION,DEPARTMENT FOR EDUCATION,29/07/2013,ICT,Families Group,VODAFONE CORPORATE,Commercial,Telecoms Facilities and Services,4000138092,378
DEPARTMENT FOR EDUCATION,DEPARTMENT FOR EDUCATION,29/07/2013,ICT,Families Group,VODAFONE CORPORATE,Commercial,Telecoms Facilities and Services,4000138092,504
DEPARTMENT FOR EDUCATION,DEPARTMENT FOR EDUCATION,29/07/2013,ICT,Children's Services and Departmental Strategy Safeguarding Group,VODAFONE CORPORATE,Commercial,Telecoms Facilities and Services,4000138092,77
DEPARTMENT FOR EDUCATION,DEPARTMENT FOR EDUCATION,29/07/2013,ICT,Children's Services and Departmental Strategy Supporting Delivery Group,VODAFONE CORPORATE,Commercial,Telecoms Facilities and Services,4000138092,52
DEPARTMENT FOR EDUCATION,DEPARTMENT FOR EDUCATION,29/07/2013,ICT,Children's Services and Departmental Strategy Supporting Delivery Group,VODAFONE CORPORATE,Commercial,Telecoms Facilities and Services,4000138092,244
DEPARTMENT FOR EDUCATION,DEPARTMENT FOR EDUCATION,29/07/2013,ICT,Children's Services and Departmental Strategy Supporting Delivery Group,VODAFONE CORPORATE,Commercial,Telecoms Facilities and Services,4000138092,138
DEPARTMENT FOR EDUCATION,DEPARTMENT FOR EDUCATION,29/07/2013,ICT,Children's Services and Departmental Strategy Supporting Delivery Group,VODAFONE CORPORATE,Commercial,Telecoms Facilities and Services,4000138092,39
DEPARTMENT FOR EDUCATION,DEPARTMENT FOR EDUCATION,29/07/2013,ICT,Children's Services and Departmental Strategy Supporting Delivery Group,VODAFONE CORPORATE,Commercial,Telecoms Facilities and Services,4000138092,564
DEPARTMENT FOR EDUCATION,DEPARTMENT FOR EDUCATION,29/07/2013,ICT,Families Group,VODAFONE CORPORATE,Commercial,Telecoms Facilities and Services,4000138092,310
DEPARTMENT FOR EDUCATION,DEPARTMENT FOR EDUCATION,29/07/2013,ICT,Supporting Delivery Group,VODAFONE CORPORATE,Commercial,Telecoms Facilities and Services,4000138092,351
DEPARTMENT FOR EDUCATION,DEPARTMENT FOR EDUCATION,29/07/2013,ICT,Children's Services and Departmental Strategy Safeguarding Group,VODAFONE CORPORATE,Commercial,Telecoms Facilities and Services,4000138092,39
DEPARTMENT FOR EDUCATION,DEPARTMENT FOR EDUCATION,29/07/2013,ICT,Children's Services and Departmental Strategy Safeguarding Group,VODAFONE CORPORATE,Commercial,Telecoms Facilities and Services,4000138092,960
DEPARTMENT FOR EDUCATION,DEPARTMENT FOR EDUCATION,29/07/2013,ICT,Children's Services and Departmental Strategy Safeguarding Group,VODAFONE CORPORATE,Commercial,Telecoms Facilities and Services,4000138092,96
DEPARTMENT FOR EDUCATION,DEPARTMENT FOR EDUCATION,29/07/2013,ICT,Children's Services and Departmental Strategy Safeguarding Group,VODAFONE CORPORATE,Commercial,Telecoms Facilities and Services,4000138092,111
DEPARTMENT FOR EDUCATION,DEPARTMENT FOR EDUCATION,29/07/2013,ICT,Children's Services and Departmental Strategy Early Years Extended Schools and Special Needs Group,VODAFONE CORPORATE,Commercial,Telecoms Facilities and Services,4000138092,296
DEPARTMENT FOR EDUCATION,DEPARTMENT FOR EDUCATION,29/07/2013,ICT,Children's Services and Departmental Strategy Early Years Extended Schools and Special Needs Group,VODAFONE CORPORATE,Commercial,Telecoms Facilities and Services,4000138092,232
DEPARTMENT FOR EDUCATION,DEPARTMENT FOR EDUCATION,29/07/2013,ICT,Children's Services and Departmental Strategy Early Years Extended Schools and Special Needs Group,VODAFONE CORPORATE,Commercial,Telecoms Facilities and Services,4000138092,226
DEPARTMENT FOR EDUCATION,DEPARTMENT FOR EDUCATION,29/07/2013,ICT,Children's Services and Departmental Strategy Early Years Extended Schools and Special Needs Group,VODAFONE CORPORATE,Commercial,Telecoms Facilities and Services,4000138092,258
DEPARTMENT FOR EDUCATION,DEPARTMENT FOR EDUCATION,29/07/2013,ICT,Children's Services and Departmental Strategy Early Years Extended Schools and Special Needs Group,VODAFONE CORPORATE,Commercial,Telecoms Facilities and Services,4000138092,78
DEPARTMENT FOR EDUCATION,DEPARTMENT FOR EDUCATION,29/07/2013,ICT,Families Group,VODAFONE CORPORATE,Commercial,Telecoms Facilities and Services,4000138092,155
DEPARTMENT FOR EDUCATION,DEPARTMENT FOR EDUCATION,29/07/2013,ICT,Strategic Analysis and Research and Policy Impact Group,VODAFONE CORPORATE,Commercial,Telecoms Facilities and Services,4000138092,299
DEPARTMENT FOR EDUCATION,DEPARTMENT FOR EDUCATION,29/07/2013,ICT,Strategic Analysis and Research and Policy Impact Group,VODAFONE CORPORATE,Commercial,Telecoms Facilities and Services,4000138092,39
DEPARTMENT FOR EDUCATION,DEPARTMENT FOR EDUCATION,29/07/2013,ICT,Strategic Analysis and Research and Policy Impact Group,VODAFONE CORPORATE,Commercial,Telecoms Facilities and Services,4000138092,380
DEPARTMENT FOR EDUCATION,DEPARTMENT FOR EDUCATION,29/07/2013,ICT,Strategy and Performance Group,VODAFONE CORPORATE,Commercial,Telecoms Facilities and Services,4000138092,409
DEPARTMENT FOR EDUCATION,DEPARTMENT FOR EDUCATION,29/07/2013,ICT,Strategy and Performance Group,VODAFONE CORPORATE,Commercial,Telecoms Facilities and Services,4000138092,514
DEPARTMENT FOR EDUCATION,DEPARTMENT FOR EDUCATION,29/07/2013,ICT,People and Change,VODAFONE CORPORATE,Commercial,Telecoms Facilities and Services,4000138092,39
DEPARTMENT FOR EDUCATION,DEPARTMENT FOR EDUCATION,29/07/2013,ICT,People and Change,VODAFONE CORPORATE,Commercial,Telecoms Facilities and Services,4000138092,"1,536"
DEPARTMENT FOR EDUCATION,DEPARTMENT FOR EDUCATION,29/07/2013,ICT,People and Change,VODAFONE CORPORATE,Commercial,Telecoms Facilities and Services,4000138092,38
DEPARTMENT FOR EDUCATION,DEPARTMENT FOR EDUCATION,29/07/2013,ICT,People and Change,VODAFONE CORPORATE,Commercial,Telecoms Facilities and Services,4000138092,39
DEPARTMENT FOR EDUCATION,DEPARTMENT FOR EDUCATION,29/07/2013,ICT,School Standards Group,VODAFONE CORPORATE,Commercial,Telecoms Facilities and Services,4000138092,566
DEPARTMENT FOR EDUCATION,DEPARTMENT FOR EDUCATION,29/07/2013,ICT,Communications Group,VODAFONE CORPORATE,Commercial,Telecoms Facilities and Services,4000138092,643
DEPARTMENT FOR EDUCATION,DEPARTMENT FOR EDUCATION,29/07/2013,ICT,Communications Group,VODAFONE CORPORATE,Commercial,Telecoms Facilities and Services,4000138092,393
DEPARTMENT FOR EDUCATION,DEPARTMENT FOR EDUCATION,29/07/2013,ICT,Communications Group,VODAFONE CORPORATE,Commercial,Telecoms Facilities and Services,4000138092,911
DEPARTMENT FOR EDUCATION,DEPARTMENT FOR EDUCATION,29/07/2013,Communications,Families Group,DEPARTMENT OF HEALTH,Central Government,Marketing services,4000138168,"200,000"
DEPARTMENT FOR EDUCATION,DEPARTMENT FOR EDUCATION,29/07/2013,Grants,Families Group,LONDON BOROUGH OF HILLINGDON  COUNCIL,Public Sector,Grants to local authorities within AEF/AEG (aggregate external funding/aggregate exchequer grant),4000138176,"65,223"
DEPARTMENT FOR EDUCATION,DEPARTMENT FOR EDUCATION,29/07/2013,Programme costs,Families Group,FAMILY RIGHTS GROUP LTD,VCS,Funding to deliver policies (excluding consultancy) paid to third parties via a service delivery contract,4000138183,"28,116"
DEPARTMENT FOR EDUCATION,DEPARTMENT FOR EDUCATION,29/07/2013,Professional Services Other,Strategic Analysis and Research and Policy Impact Group,INSTITUTE OF FISCAL STUDIES,VCS,Research and evaluation activities,4000138249,"34,888"
DEPARTMENT FOR EDUCATION,DEPARTMENT FOR EDUCATION,29/07/2013,Grants,Children's Services and Departmental Strategy Early Years Extended Schools and Special Needs Group,THE NATIONAL AUTISTIC SOCIETY VCS,VCS,Grants to third sector organisations / not for profit organisations,4000138250,"37,437"
DEPARTMENT FOR EDUCATION,DEPARTMENT FOR EDUCATION,29/07/2013,Personnel Related,People and Change,EDENRED,Commercial,Childcare services provided for staff including the management fee and subsidy costs,4000138255,"2,105"
DEPARTMENT FOR EDUCATION,DEPARTMENT FOR EDUCATION,29/07/2013,Grants,Children's Services and Departmental Strategy Early Years Extended Schools and Special Needs Group,REMPLOY LTD,Commercial,Grants to third sector organisations / not for profit organisations,4000138296,"37,075"
DEPARTMENT FOR EDUCATION,DEPARTMENT FOR EDUCATION,29/07/2013,Programme costs,Families Group,NETMUMS COM,VCS,Funding to deliver policies (excluding consultancy) paid to third parties via a service delivery contract,4000138312,"64,000"
DEPARTMENT FOR EDUCATION,DEPARTMENT FOR EDUCATION,30/07/2013,Professional Services Other,Children's Services and Departmental Strategy Early Years Extended Schools and Special Needs Group,DISCLOSURE & BARRING SERVICE,Central Government,"Fees / expenses of professionals from the private sector, for example to implement advice or changes",4000138406,"162,624"
DEPARTMENT FOR EDUCATION,DEPARTMENT FOR EDUCATION,31/07/2013,Grants,Families Group,THE SHARE FOUNDATION 3RD PARTY TRUST,Public Sector,Grants to third sector organisations / not for profit organisations,4000138580,"186,600"
DEPARTMENT FOR EDUCATION,DEPARTMENT FOR EDUCATION,31/07/2013,Grants,Families Group,AFTER ADOPTION,VCS,Grants to third sector organisations / not for profit organisations,4000138623,"26,566"
DEPARTMENT FOR EDUCATION,DEPARTMENT FOR EDUCATION,31/07/2013,Grants,Families Group,TRAFFORD MB COUNCIL,Public Sector,Grants to local authorities within AEF/AEG (aggregate external funding/aggregate exchequer grant),4000138656,"58,637"
DEPARTMENT FOR EDUCATION,DEPARTMENT FOR EDUCATION,31/07/2013,Grants,Families Group,BOOK TRUST,VCS,Grants to third sector organisations / not for profit organisations,4000138668,"722,679"
DEPARTMENT FOR EDUCATION,DEPARTMENT FOR EDUCATION,31/07/2013,Grants,Children's Services and Departmental Strategy Early Years Extended Schools and Special Needs Group,NASEN,VCS,Grants to third sector organisations / not for profit organisations,4000138733,"45,206"
DEPARTMENT FOR EDUCATION,DEPARTMENT FOR EDUCATION,22/07/2013,Grants,Curriculum and General Qualifications Reform Group,THE HOLOCAUST EDUCATIONAL TRUST,VCS,Grants to third sector organisations / not for profit organisations,1001191,"387,500"
DEPARTMENT FOR EDUCATION,TEACHERS PENSION SCHEME,01/07/2013,Funding to Pay Teachers' Pensions,Workforce Group,CAPITA TP HSBC,Commercial,Funding to pay Teachers' Pensions,1001636,"46,410"
DEPARTMENT FOR EDUCATION,TEACHERS PENSION SCHEME,01/07/2013,Funding to Pay Teachers' Pensions,Workforce Group,CAPITA TP HSBC,Commercial,Funding to pay Teachers' Pensions,1001637,"114,225"
DEPARTMENT FOR EDUCATION,TEACHERS PENSION SCHEME,01/07/2013,Funding to Pay Teachers' Pensions,Workforce Group,CAPITA TP NATWEST,Commercial,Funding to pay Teachers' Pensions,1001638,"75,279,957"
DEPARTMENT FOR EDUCATION,TEACHERS PENSION SCHEME,01/07/2013,Funding to Pay Teachers' Pensions,Workforce Group,CAPITA TP NATWEST,Commercial,Funding to pay Teachers' Pensions,1001639,"19,385,149"
DEPARTMENT FOR EDUCATION,TEACHERS PENSION SCHEME,03/07/2013,Funding to Pay Teachers' Pensions,Workforce Group,CAPITA TP HSBC,Commercial,Funding to pay Teachers' Pensions,1001640,"26,041"
DEPARTMENT FOR EDUCATION,TEACHERS PENSION SCHEME,03/07/2013,Funding to Pay Teachers' Pensions,Workforce Group,CAPITA TP NATWEST,Commercial,Funding to pay Teachers' Pensions,1001641,"25,421,896"
DEPARTMENT FOR EDUCATION,TEACHERS PENSION SCHEME,03/07/2013,Funding to Pay Teachers' Pensions,Workforce Group,CAPITA TP NATWEST,Commercial,Funding to pay Teachers' Pensions,1001643,"18,519,038"
DEPARTMENT FOR EDUCATION,TEACHERS PENSION SCHEME,08/07/2013,Funding to Pay Teachers' Pensions,Workforce Group,CAPITA TP HSBC,Commercial,Funding to pay Teachers' Pensions,1001644,"359,418"
DEPARTMENT FOR EDUCATION,TEACHERS PENSION SCHEME,08/07/2013,Funding to Pay Teachers' Pensions,Workforce Group,CAPITA TP NATWEST,Commercial,Funding to pay Teachers' Pensions,1001645,"52,644,589"
DEPARTMENT FOR EDUCATION,TEACHERS PENSION SCHEME,08/07/2013,Funding to Pay Teachers' Pensions,Workforce Group,CAPITA TP HSBC,Commercial,Funding to pay Teachers' Pensions,1001647,"29,331"
DEPARTMENT FOR EDUCATION,TEACHERS PENSION SCHEME,08/07/2013,Funding to Pay Teachers' Pensions,Workforce Group,CAPITA TP NATWEST,Commercial,Funding to pay Teachers' Pensions,1001648,"18,778,586"
DEPARTMENT FOR EDUCATION,TEACHERS PENSION SCHEME,08/07/2013,Funding to Pay Teachers' Pensions,Workforce Group,CAPITA TP NATWEST,Commercial,Funding to pay Teachers' Pensions,1001649,"18,602,771"
DEPARTMENT FOR EDUCATION,TEACHERS PENSION SCHEME,09/07/2013,Funding to Pay Teachers' Pensions,Workforce Group,CAPITA TP HSBC,Commercial,Funding to pay Teachers' Pensions,1001650,"43,456"
DEPARTMENT FOR EDUCATION,TEACHERS PENSION SCHEME,09/07/2013,Funding to Pay Teachers' Pensions,Workforce Group,CAPITA TP NATWEST,Commercial,Funding to pay Teachers' Pensions,1001651,"19,428,720"
DEPARTMENT FOR EDUCATION,TEACHERS PENSION SCHEME,10/07/2013,Funding to Pay Teachers' Pensions,Workforce Group,CAPITA TP HSBC,Commercial,Funding to pay Teachers' Pensions,1001652,"576,492"
DEPARTMENT FOR EDUCATION,TEACHERS PENSION SCHEME,10/07/2013,Funding to Pay Teachers' Pensions,Workforce Group,CAPITA TP NATWEST,Commercial,Funding to pay Teachers' Pensions,1001653,"18,854,189"
DEPARTMENT FOR EDUCATION,TEACHERS PENSION SCHEME,12/07/2013,Funding to Pay Teachers' Pensions,Workforce Group,CAPITA TP HSBC,Commercial,Funding to pay Teachers' Pensions,1001654,"147,247"
DEPARTMENT FOR EDUCATION,TEACHERS PENSION SCHEME,12/07/2013,Funding to Pay Teachers' Pensions,Workforce Group,CAPITA TP HSBC,Commercial,Funding to pay Teachers' Pensions,1001655,"160,690"
DEPARTMENT FOR EDUCATION,TEACHERS PENSION SCHEME,12/07/2013,Funding to Pay Teachers' Pensions,Workforce Group,CAPITA TP NATWEST,Commercial,Funding to pay Teachers' Pensions,1001656,"18,720,466"
DEPARTMENT FOR EDUCATION,TEACHERS PENSION SCHEME,12/07/2013,Funding to Pay Teachers' Pensions,Workforce Group,CAPITA TP NATWEST,Commercial,Funding to pay Teachers' Pensions,1001657,"19,369,659"
DEPARTMENT FOR EDUCATION,TEACHERS PENSION SCHEME,16/07/2013,Funding to Pay Teachers' Pensions,Workforce Group,CAPITA TP HSBC,Commercial,Funding to pay Teachers' Pensions,1001659,"475,726"
DEPARTMENT FOR EDUCATION,TEACHERS PENSION SCHEME,16/07/2013,Funding to Pay Teachers' Pensions,Workforce Group,CAPITA TP NATWEST,Commercial,Funding to pay Teachers' Pensions,1001660,"20,193,776"
DEPARTMENT FOR EDUCATION,TEACHERS PENSION SCHEME,16/07/2013,Funding to Pay Teachers' Pensions,Workforce Group,CAPITA TP NATWEST,Commercial,Funding to pay Teachers' Pensions,1001661,"50,283,483"
DEPARTMENT FOR EDUCATION,TEACHERS PENSION SCHEME,18/07/2013,Funding to Pay Teachers' Pensions,Workforce Group,CAPITA TP HSBC,Commercial,Funding to pay Teachers' Pensions,1001663,"370,364"
DEPARTMENT FOR EDUCATION,TEACHERS PENSION SCHEME,18/07/2013,Funding to Pay Teachers' Pensions,Workforce Group,CAPITA TP NATWEST,Commercial,Funding to pay Teachers' Pensions,1001664,"18,407,656"
DEPARTMENT FOR EDUCATION,TEACHERS PENSION SCHEME,22/07/2013,Funding to Pay Teachers' Pensions,Workforce Group,CAPITA TP HSBC,Commercial,Funding to pay Teachers' Pensions,1001666,"173,996"
DEPARTMENT FOR EDUCATION,TEACHERS PENSION SCHEME,22/07/2013,Funding to Pay Teachers' Pensions,Workforce Group,CAPITA TP NATWEST,Commercial,Funding to pay Teachers' Pensions,1001667,"19,062,095"
DEPARTMENT FOR EDUCATION,TEACHERS PENSION SCHEME,22/07/2013,Funding to Pay Teachers' Pensions,Workforce Group,CAPITA TP NATWEST,Commercial,Funding to pay Teachers' Pensions,1001668,"17,985,543"
DEPARTMENT FOR EDUCATION,TEACHERS PENSION SCHEME,23/07/2013,Funding to Pay Teachers' Pensions,Workforce Group,CAPITA TP HSBC,Commercial,Funding to pay Teachers' Pensions,1001669,"112,641"
DEPARTMENT FOR EDUCATION,TEACHERS PENSION SCHEME,23/07/2013,Funding to Pay Teachers' Pensions,Workforce Group,CAPITA TP NATWEST,Commercial,Funding to pay Teachers' Pensions,1001670,"52,181,141"
DEPARTMENT FOR EDUCATION,TEACHERS PENSION SCHEME,23/07/2013,Funding to Pay Teachers' Pensions,Workforce Group,CAPITA TP HSBC,Commercial,Funding to pay Teachers' Pensions,1001671,"49,934"
DEPARTMENT FOR EDUCATION,TEACHERS PENSION SCHEME,23/07/2013,Funding to Pay Teachers' Pensions,Workforce Group,CAPITA TP NATWEST,Commercial,Funding to pay Teachers' Pensions,1001672,"104,806,825"
DEPARTMENT FOR EDUCATION,TEACHERS PENSION SCHEME,29/07/2013,Funding to Pay Teachers' Pensions,Workforce Group,CAPITA TP HSBC,Commercial,Funding to pay Teachers' Pensions,1001673,"117,017"
DEPARTMENT FOR EDUCATION,TEACHERS PENSION SCHEME,29/07/2013,Funding to Pay Teachers' Pensions,Workforce Group,CAPITA TP HSBC,Commercial,Funding to pay Teachers' Pensions,1001674,"146,982"
DEPARTMENT FOR EDUCATION,TEACHERS PENSION SCHEME,29/07/2013,Funding to Pay Teachers' Pensions,Workforce Group,CAPITA TP HSBC,Commercial,Funding to pay Teachers' Pensions,1001675,"514,345"
DEPARTMENT FOR EDUCATION,TEACHERS PENSION SCHEME,29/07/2013,Funding to Pay Teachers' Pensions,Workforce Group,CAPITA TP NATWEST,Commercial,Funding to pay Teachers' Pensions,1001676,"19,132,422"
DEPARTMENT FOR EDUCATION,TEACHERS PENSION SCHEME,29/07/2013,Funding to Pay Teachers' Pensions,Workforce Group,CAPITA TP NATWEST,Commercial,Funding to pay Teachers' Pensions,1001677,"18,959,993"
DEPARTMENT FOR EDUCATION,TEACHERS PENSION SCHEME,29/07/2013,Funding to Pay Teachers' Pensions,Workforce Group,CAPITA TP NATWEST,Commercial,Funding to pay Teachers' Pensions,1001678,"17,469,788"
DEPARTMENT FOR EDUCATION,TEACHERS PENSION SCHEME,30/07/2013,Funding to Pay Teachers' Pensions,Workforce Group,CAPITA TP HSBC,Commercial,Funding to pay Teachers' Pensions,1001679,"258,023"
DEPARTMENT FOR EDUCATION,TEACHERS PENSION SCHEME,30/07/2013,Funding to Pay Teachers' Pensions,Workforce Group,CAPITA TP NATWEST,Commercial,Funding to pay Teachers' Pensions,1001680,"66,491,610"
DEPARTMENT FOR EDUCATION,TEACHERS PENSION SCHEME,30/07/2013,Funding to Pay Teachers' Pensions,Workforce Group,CAPITA TP HSBC,Commercial,Funding to pay Teachers' Pensions,1001681,"80,366"
DEPARTMENT FOR EDUCATION,TEACHERS PENSION SCHEME,30/07/2013,Funding to Pay Teachers' Pensions,Workforce Group,CAPITA TP NATWEST,Commercial,Funding to pay Teachers' Pensions,1001682,"18,696,991"
DEPARTMENT FOR EDUCATION,TEACHERS PENSION SCHEME,31/07/2013,Funding to Pay Teachers' Pensions,Workforce Group,CAPITA TP HSBC,Commercial,Funding to pay Teachers' Pensions,1001683,"172,548"
DEPARTMENT FOR EDUCATION,TEACHERS PENSION SCHEME,31/07/2013,Funding to Pay Teachers' Pensions,Workforce Group,CAPITA TP NATWEST,Commercial,Funding to pay Teachers' Pensions,1001684,"18,289,058"
DEPARTMENT FOR EDUCATION,DEPARTMENT FOR EDUCATION,01/07/2013,Grants,Participation and Vocational Education Group,CHALLENGER TROOP,VCS,Grants to third sector organisations / not for profit organisations,4000133293,"68,253"
DEPARTMENT FOR EDUCATION,DEPARTMENT FOR EDUCATION,01/07/2013,Personnel Related,Education Strategy Performance Analysis Group,HMRC,Central Government,Staff subscriptions including publications and organisation subscription charges,4000133396,"6,478"
DEPARTMENT FOR EDUCATION,DEPARTMENT FOR EDUCATION,01/07/2013,Personnel Related,Education Strategy Performance Analysis Group,HMRC,Central Government,Staff subscriptions including publications and organisation subscription charges,4000133396,"1,586"
DEPARTMENT FOR EDUCATION,DEPARTMENT FOR EDUCATION,01/07/2013,Programme costs,Teachers Group,CAPITA LIFE & PENSIONS SERVICES LTD,Commercial,Funding to deliver policies (excluding consultancy) paid to third parties via a service delivery contract,4000133413,"32,620"
DEPARTMENT FOR EDUCATION,DEPARTMENT FOR EDUCATION,03/07/2013,Programme costs,Curriculum and General Qualifications Reform Group,TRIBAL EDUCATION LIMITED,Commercial,Funding to deliver policies (excluding consultancy) paid to third parties via a service delivery contract,4000133663,"202,084"
DEPARTMENT FOR EDUCATION,DEPARTMENT FOR EDUCATION,03/07/2013,ICT,Education Strategy Performance Analysis Group,SOFTWARE FOR DATA ANALYSIS LTD,Commercial,ICT Services,4000133665,"80,000"
DEPARTMENT FOR EDUCATION,DEPARTMENT FOR EDUCATION,04/07/2013,Grants,Participation and Vocational Education Group,SKILL FORCE DEVELOPMENT,VCS,Grants to third sector organisations / not for profit organisations,4000134362,"55,909"
DEPARTMENT FOR EDUCATION,DEPARTMENT FOR EDUCATION,04/07/2013,Grants,Participation and Vocational Education Group,KNOWSLEY SKILLS ACADEMY,Public Sector,Grants to third sector organisations / not for profit organisations,4000134374,"29,159"
DEPARTMENT FOR EDUCATION,DEPARTMENT FOR EDUCATION,04/07/2013,Grants,Participation and Vocational Education Group,COMMANDO JOES,Commercial,Grants to third sector organisations / not for profit organisations,4000134375,"54,709"
DEPARTMENT FOR EDUCATION,DEPARTMENT FOR EDUCATION,05/07/2013,Professional Services Other,Participation and Vocational Education Group,INSTITUTE FOR EMPLOYMENT STUDIES,VCS,Research and evaluation activities,4000134402,"28,140"
DEPARTMENT FOR EDUCATION,DEPARTMENT FOR EDUCATION,05/07/2013,Programme costs,Curriculum and General Qualifications Reform Group,EDGE HILL UNIVERSITY,Public Sector,Funding to deliver policies (excluding consultancy) paid to third parties via a service delivery contract,4000134440,"66,262"
DEPARTMENT FOR EDUCATION,DEPARTMENT FOR EDUCATION,05/07/2013,Programme costs,Participation and Vocational Education Group,RURAL PAYMENTS AGENCY,Central Government,Funding to deliver policies (excluding consultancy) paid to third parties via a service delivery contract,4000134511,"60,390"
DEPARTMENT FOR EDUCATION,DEPARTMENT FOR EDUCATION,08/07/2013,Grants,Education Strategy Performance Analysis Group,GREATER LONDON AUTHORITY,Public Sector,Grants to third sector organisations / not for profit organisations,4000134569,"380,000"
DEPARTMENT FOR EDUCATION,DEPARTMENT FOR EDUCATION,09/07/2013,Programme costs,Education Strategy Performance Analysis Group,RESEARCH MACHINES PLC,Commercial,Funding to deliver policies (excluding consultancy) paid to third parties via a service delivery contract,4000134781,"475,642"
DEPARTMENT FOR EDUCATION,DEPARTMENT FOR EDUCATION,10/07/2013,Professional Services Other,Participation and Vocational Education Group,TNS BMRB,Public Sector,Research and evaluation activities,4000134987,"60,000"
DEPARTMENT FOR EDUCATION,DEPARTMENT FOR EDUCATION,12/07/2013,Communications,Education Strategy Performance Analysis Group,SCISYS UK LTD,Commercial,Marketing services,4000135338,"25,000"
DEPARTMENT FOR EDUCATION,DEPARTMENT FOR EDUCATION,12/07/2013,Grants,Participation and Vocational Education Group,SKILL FORCE DEVELOPMENT,VCS,Grants to third sector organisations / not for profit organisations,4000135374,"31,606"
DEPARTMENT FOR EDUCATION,DEPARTMENT FOR EDUCATION,16/07/2013,Professional Services Consultancy and Contingent Labour,Curriculum and General Qualifications Reform Group,MATHEMATICS IN EDUCATION & INDUSTRY,VCS,"Advisory services including fees, travel and expenses",4000135550,360
DEPARTMENT FOR EDUCATION,DEPARTMENT FOR EDUCATION,16/07/2013,Programme costs,Curriculum and General Qualifications Reform Group,MATHEMATICS IN EDUCATION & INDUSTRY,VCS,Funding to deliver policies (excluding consultancy) paid to third parties via a service delivery contract,4000135550,"331,500"
DEPARTMENT FOR EDUCATION,DEPARTMENT FOR EDUCATION,16/07/2013,Professional Services Consultancy and Contingent Labour,Curriculum and General Qualifications Reform Group,MATHEMATICS IN EDUCATION & INDUSTRY,VCS,"Advisory services including fees, travel and expenses",4000135550,"5,496"
DEPARTMENT FOR EDUCATION,DEPARTMENT FOR EDUCATION,16/07/2013,ICT,Education Strategy Performance Analysis Group,SOFTWARE FOR DATA ANALYSIS LTD,Commercial,ICT Services,4000135643,"80,000"
DEPARTMENT FOR EDUCATION,DEPARTMENT FOR EDUCATION,16/07/2013,Travel,Education Strategy Performance Analysis Group,REDFERN TRAVEL LTD,Commercial,"Staff business travel including air, coach, ferry, rail and taxi",4000135658,"12,819"
DEPARTMENT FOR EDUCATION,DEPARTMENT FOR EDUCATION,16/07/2013,Travel,Teachers Group,REDFERN TRAVEL LTD,Commercial,"Staff business travel including air, coach, ferry, rail and taxi",4000135658,"1,072"
DEPARTMENT FOR EDUCATION,DEPARTMENT FOR EDUCATION,16/07/2013,Personnel Related,Teachers Group,REDFERN TRAVEL LTD,Commercial,Subsistence and lodging allowances for official duty,4000135658,-1
DEPARTMENT FOR EDUCATION,DEPARTMENT FOR EDUCATION,16/07/2013,Travel,Education Strategy Performance Analysis Group,REDFERN TRAVEL LTD,Commercial,"Staff business travel including air, coach, ferry, rail and taxi",4000135658,24
DEPARTMENT FOR EDUCATION,DEPARTMENT FOR EDUCATION,16/07/2013,Travel,Education Standards Directorate,REDFERN TRAVEL LTD,Commercial,"Staff business travel including air, coach, ferry, rail and taxi",4000135658,165
DEPARTMENT FOR EDUCATION,DEPARTMENT FOR EDUCATION,16/07/2013,Travel,Education Strategy Performance Analysis Group,REDFERN TRAVEL LTD,Commercial,"Staff business travel including air, coach, ferry, rail and taxi",4000135658,98
DEPARTMENT FOR EDUCATION,DEPARTMENT FOR EDUCATION,16/07/2013,Travel,Education Strategy Performance Analysis Group,REDFERN TRAVEL LTD,Commercial,"Staff business travel including air, coach, ferry, rail and taxi",4000135658,248
DEPARTMENT FOR EDUCATION,DEPARTMENT FOR EDUCATION,16/07/2013,Travel,Education Strategy Performance Analysis Group,REDFERN TRAVEL LTD,Commercial,"Staff business travel including air, coach, ferry, rail and taxi",4000135658,404
DEPARTMENT FOR EDUCATION,DEPARTMENT FOR EDUCATION,16/07/2013,Travel,Education Strategy Performance Analysis Group,REDFERN TRAVEL LTD,Commercial,"Staff business travel including air, coach, ferry, rail and taxi",4000135658,287
DEPARTMENT FOR EDUCATION,DEPARTMENT FOR EDUCATION,16/07/2013,Travel,Education Strategy Performance Analysis Group,REDFERN TRAVEL LTD,Commercial,"Staff business travel including air, coach, ferry, rail and taxi",4000135658,104
DEPARTMENT FOR EDUCATION,DEPARTMENT FOR EDUCATION,16/07/2013,Travel,Curriculum and General Qualifications Reform Group,REDFERN TRAVEL LTD,Commercial,"Staff business travel including air, coach, ferry, rail and taxi",4000135658,267
DEPARTMENT FOR EDUCATION,DEPARTMENT FOR EDUCATION,16/07/2013,Travel,Curriculum and General Qualifications Reform Group,REDFERN TRAVEL LTD,Commercial,"Staff business travel including air, coach, ferry, rail and taxi",4000135658,"1,946"
DEPARTMENT FOR EDUCATION,DEPARTMENT FOR EDUCATION,16/07/2013,Travel,Curriculum and General Qualifications Reform Group,REDFERN TRAVEL LTD,Commercial,"Staff business travel including air, coach, ferry, rail and taxi",4000135658,"4,083"
DEPARTMENT FOR EDUCATION,DEPARTMENT FOR EDUCATION,16/07/2013,Travel,Curriculum and General Qualifications Reform Group,REDFERN TRAVEL LTD,Commercial,"Staff business travel including air, coach, ferry, rail and taxi",4000135658,248
DEPARTMENT FOR EDUCATION,DEPARTMENT FOR EDUCATION,16/07/2013,Travel,Participation and Vocational Education Group,REDFERN TRAVEL LTD,Commercial,"Staff business travel including air, coach, ferry, rail and taxi",4000135658,"1,130"
DEPARTMENT FOR EDUCATION,DEPARTMENT FOR EDUCATION,16/07/2013,Travel,Education Strategy Performance Analysis Group,REDFERN TRAVEL LTD,Commercial,"Staff business travel including air, coach, ferry, rail and taxi",4000135658,"4,924"
DEPARTMENT FOR EDUCATION,DEPARTMENT FOR EDUCATION,16/07/2013,Travel,Curriculum and General Qualifications Reform Group,REDFERN TRAVEL LTD,Commercial,"Staff business travel including air, coach, ferry, rail and taxi",4000135658,"2,111"
DEPARTMENT FOR EDUCATION,DEPARTMENT FOR EDUCATION,16/07/2013,Travel,Education Strategy Performance Analysis Group,REDFERN TRAVEL LTD,Commercial,"Staff business travel including air, coach, ferry, rail and taxi",4000135658,"1,216"
DEPARTMENT FOR EDUCATION,DEPARTMENT FOR EDUCATION,16/07/2013,Travel,Participation and Vocational Education Group,REDFERN TRAVEL LTD,Commercial,"Staff business travel including air, coach, ferry, rail and taxi",4000135658,"2,177"
DEPARTMENT FOR EDUCATION,DEPARTMENT FOR EDUCATION,16/07/2013,Travel,Education Strategy Performance Analysis Group,REDFERN TRAVEL LTD,Commercial,"Staff business travel including air, coach, ferry, rail and taxi",4000135658,"4,804"
DEPARTMENT FOR EDUCATION,DEPARTMENT FOR EDUCATION,16/07/2013,Travel,Education Strategy Performance Analysis Group,REDFERN TRAVEL LTD,Commercial,"Staff business travel including air, coach, ferry, rail and taxi",4000135658,108
DEPARTMENT FOR EDUCATION,DEPARTMENT FOR EDUCATION,16/07/2013,Travel,Education Strategy Performance Analysis Group,REDFERN TRAVEL LTD,Commercial,"Staff business travel including air, coach, ferry, rail and taxi",4000135658,"1,425"
DEPARTMENT FOR EDUCATION,DEPARTMENT FOR EDUCATION,16/07/2013,Travel,Participation and Vocational Education Group,REDFERN TRAVEL LTD,Commercial,"Staff business travel including air, coach, ferry, rail and taxi",4000135658,159
DEPARTMENT FOR EDUCATION,DEPARTMENT FOR EDUCATION,16/07/2013,Travel,Curriculum and General Qualifications Reform Group,REDFERN TRAVEL LTD,Commercial,"Staff business travel including air, coach, ferry, rail and taxi",4000135658,708
DEPARTMENT FOR EDUCATION,DEPARTMENT FOR EDUCATION,16/07/2013,Travel,Participation and Vocational Education Group,REDFERN TRAVEL LTD,Commercial,"Staff business travel including air, coach, ferry, rail and taxi",4000135658,54
DEPARTMENT FOR EDUCATION,DEPARTMENT FOR EDUCATION,16/07/2013,Travel,Participation and Vocational Education Group,REDFERN TRAVEL LTD,Commercial,"Staff business travel including air, coach, ferry, rail and taxi",4000135658,"4,861"
DEPARTMENT FOR EDUCATION,DEPARTMENT FOR EDUCATION,16/07/2013,Travel,Participation and Vocational Education Group,REDFERN TRAVEL LTD,Commercial,"Staff business travel including air, coach, ferry, rail and taxi",4000135658,"1,975"
DEPARTMENT FOR EDUCATION,DEPARTMENT FOR EDUCATION,16/07/2013,Travel,Participation and Vocational Education Group,REDFERN TRAVEL LTD,Commercial,"Staff business travel including air, coach, ferry, rail and taxi",4000135658,"2,823"
DEPARTMENT FOR EDUCATION,DEPARTMENT FOR EDUCATION,16/07/2013,Travel,Teachers Group,REDFERN TRAVEL LTD,Commercial,"Staff business travel including air, coach, ferry, rail and taxi",4000135658,885
DEPARTMENT FOR EDUCATION,DEPARTMENT FOR EDUCATION,16/07/2013,Travel,Teachers Group,REDFERN TRAVEL LTD,Commercial,"Staff business travel including air, coach, ferry, rail and taxi",4000135658,"3,429"
DEPARTMENT FOR EDUCATION,DEPARTMENT FOR EDUCATION,16/07/2013,Personnel Related,Teachers Group,REDFERN TRAVEL LTD,Commercial,Subsistence and lodging allowances for official duty,4000135658,1
DEPARTMENT FOR EDUCATION,DEPARTMENT FOR EDUCATION,16/07/2013,Travel,Teachers Group,REDFERN TRAVEL LTD,Commercial,"Staff business travel including air, coach, ferry, rail and taxi",4000135658,"3,270"
DEPARTMENT FOR EDUCATION,DEPARTMENT FOR EDUCATION,16/07/2013,Personnel Related,Teachers Group,REDFERN TRAVEL LTD,Commercial,Subsistence and lodging allowances for official duty,4000135658,0
DEPARTMENT FOR EDUCATION,DEPARTMENT FOR EDUCATION,16/07/2013,Travel,Teachers Group,REDFERN TRAVEL LTD,Commercial,"Staff business travel including air, coach, ferry, rail and taxi",4000135658,"3,177"
DEPARTMENT FOR EDUCATION,DEPARTMENT FOR EDUCATION,16/07/2013,Travel,Curriculum and General Qualifications Reform Group,REDFERN TRAVEL LTD,Commercial,"Staff business travel including air, coach, ferry, rail and taxi",4000135658,274
DEPARTMENT FOR EDUCATION,DEPARTMENT FOR EDUCATION,17/07/2013,Communications,Curriculum and General Qualifications Reform Group,PROLOG,Commercial,Marketing services,4000135836,103
DEPARTMENT FOR EDUCATION,DEPARTMENT FOR EDUCATION,18/07/2013,Grants,Curriculum and General Qualifications Reform Group,UNIVERSITY OF CAMBRIDGE,Public Sector,Grants to third sector organisations / not for profit organisations,4000136080,"257,252"
DEPARTMENT FOR EDUCATION,DEPARTMENT FOR EDUCATION,19/07/2013,Programme costs,Teachers Group,CAPITA LIFE & PENSIONS SERVICES LTD,Commercial,Funding to deliver policies (excluding consultancy) paid to third parties via a service delivery contract,4000136161,"1,029,818"
DEPARTMENT FOR EDUCATION,DEPARTMENT FOR EDUCATION,19/07/2013,Programme costs,Teachers Group,GOVERNMENT ACTUARYS DEPARTMENT GAD,Central Government,Funding to deliver policies (excluding consultancy) paid to third parties via a service delivery contract,4000136197,"50,789"
DEPARTMENT FOR EDUCATION,DEPARTMENT FOR EDUCATION,19/07/2013,ICT,Education Strategy Performance Analysis Group,ATKINS LTD,Commercial,ICT Services,4000136220,"125,793"
DEPARTMENT FOR EDUCATION,DEPARTMENT FOR EDUCATION,23/07/2013,Programme costs,Teachers Group,BABCOCK 4S LTD,Commercial,Funding to deliver policies (excluding consultancy) paid to third parties via a service delivery contract,4000136784,"47,913"
DEPARTMENT FOR EDUCATION,DEPARTMENT FOR EDUCATION,24/07/2013,Grants,Participation and Vocational Education Group,THE HAMMOND SCHOOL,Public Sector,Grants to third sector organisations / not for profit organisations,4000137074,"200,000"
DEPARTMENT FOR EDUCATION,DEPARTMENT FOR EDUCATION,24/07/2013,Grants,Participation and Vocational Education Group,THE ROYAL BALLET SCHOOL,Public Sector,Grants to third sector organisations / not for profit organisations,4000137075,"1,500,000"
DEPARTMENT FOR EDUCATION,DEPARTMENT FOR EDUCATION,24/07/2013,Grants,Participation and Vocational Education Group,CHETHAMS SCHOOL OF MUSIC,Public Sector,Grants to third sector organisations / not for profit organisations,4000137076,"1,900,000"
DEPARTMENT FOR EDUCATION,DEPARTMENT FOR EDUCATION,25/07/2013,Grants,Curriculum and General Qualifications Reform Group,JANET UK,Public Sector,Grants to third sector organisations / not for profit organisations,4000137348,"262,076"
DEPARTMENT FOR EDUCATION,DEPARTMENT FOR EDUCATION,25/07/2013,Grants,Participation and Vocational Education Group,CHALLENGER TROOP,VCS,Grants to third sector organisations / not for profit organisations,4000137365,"45,886"
DEPARTMENT FOR EDUCATION,DEPARTMENT FOR EDUCATION,25/07/2013,Grants,Participation and Vocational Education Group,COMMANDO JOES,Commercial,Grants to third sector organisations / not for profit organisations,4000137367,"7,000"
DEPARTMENT FOR EDUCATION,DEPARTMENT FOR EDUCATION,25/07/2013,Grants,Participation and Vocational Education Group,COMMANDO JOES,Commercial,Grants to third sector organisations / not for profit organisations,4000137367,"51,115"
DEPARTMENT FOR EDUCATION,DEPARTMENT FOR EDUCATION,25/07/2013,Grants,Participation and Vocational Education Group,SKILL FORCE DEVELOPMENT,VCS,Grants to third sector organisations / not for profit organisations,4000137546,"71,998"
DEPARTMENT FOR EDUCATION,DEPARTMENT FOR EDUCATION,26/07/2013,ICT,Education Strategy Performance Analysis Group,CAPGEMINI UK PLC,Commercial,ICT Services,4000137803,"111,532"
DEPARTMENT FOR EDUCATION,DEPARTMENT FOR EDUCATION,26/07/2013,Programme costs,Curriculum and General Qualifications Reform Group,MATHEMATICS IN EDUCATION & INDUSTRY,VCS,Funding to deliver policies (excluding consultancy) paid to third parties via a service delivery contract,4000137866,"230,000"
DEPARTMENT FOR EDUCATION,DEPARTMENT FOR EDUCATION,29/07/2013,ICT,Education Strategy Performance Analysis Group,VODAFONE CORPORATE,Commercial,Telecoms Facilities and Services,4000138092,426
DEPARTMENT FOR EDUCATION,DEPARTMENT FOR EDUCATION,29/07/2013,ICT,Teachers Group,VODAFONE CORPORATE,Commercial,Telecoms Facilities and Services,4000138092,466
DEPARTMENT FOR EDUCATION,DEPARTMENT FOR EDUCATION,29/07/2013,ICT,Education Standards Directorate,VODAFONE CORPORATE,Commercial,Telecoms Facilities and Services,4000138092,39
DEPARTMENT FOR EDUCATION,DEPARTMENT FOR EDUCATION,29/07/2013,ICT,Education Strategy Performance Analysis Group,VODAFONE CORPORATE,Commercial,Telecoms Facilities and Services,4000138092,38
DEPARTMENT FOR EDUCATION,DEPARTMENT FOR EDUCATION,29/07/2013,ICT,Education Strategy Performance Analysis Group,VODAFONE CORPORATE,Commercial,Telecoms Facilities and Services,4000138092,38
DEPARTMENT FOR EDUCATION,DEPARTMENT FOR EDUCATION,29/07/2013,ICT,Curriculum and General Qualifications Reform Group,VODAFONE CORPORATE,Commercial,Telecoms Facilities and Services,4000138092,261
DEPARTMENT FOR EDUCATION,DEPARTMENT FOR EDUCATION,29/07/2013,ICT,Curriculum and General Qualifications Reform Group,VODAFONE CORPORATE,Commercial,Telecoms Facilities and Services,4000138092,523
DEPARTMENT FOR EDUCATION,DEPARTMENT FOR EDUCATION,29/07/2013,ICT,Curriculum and General Qualifications Reform Group,VODAFONE CORPORATE,Commercial,Telecoms Facilities and Services,4000138092,39
DEPARTMENT FOR EDUCATION,DEPARTMENT FOR EDUCATION,29/07/2013,ICT,Participation and Vocational Education Group,VODAFONE CORPORATE,Commercial,Telecoms Facilities and Services,4000138092,314
DEPARTMENT FOR EDUCATION,DEPARTMENT FOR EDUCATION,29/07/2013,ICT,Education Strategy Performance Analysis Group,VODAFONE CORPORATE,Commercial,Telecoms Facilities and Services,4000138092,564
DEPARTMENT FOR EDUCATION,DEPARTMENT FOR EDUCATION,29/07/2013,ICT,Curriculum and General Qualifications Reform Group,VODAFONE CORPORATE,Commercial,Telecoms Facilities and Services,4000138092,272
DEPARTMENT FOR EDUCATION,DEPARTMENT FOR EDUCATION,29/07/2013,ICT,Education Strategy Performance Analysis Group,VODAFONE CORPORATE,Commercial,Telecoms Facilities and Services,4000138092,326
DEPARTMENT FOR EDUCATION,DEPARTMENT FOR EDUCATION,29/07/2013,ICT,Participation and Vocational Education Group,VODAFONE CORPORATE,Commercial,Telecoms Facilities and Services,4000138092,77
DEPARTMENT FOR EDUCATION,DEPARTMENT FOR EDUCATION,29/07/2013,ICT,Education Strategy Performance Analysis Group,VODAFONE CORPORATE,Commercial,Telecoms Facilities and Services,4000138092,39
DEPARTMENT FOR EDUCATION,DEPARTMENT FOR EDUCATION,29/07/2013,ICT,Participation and Vocational Education Group,VODAFONE CORPORATE,Commercial,Telecoms Facilities and Services,4000138092,79
DEPARTMENT FOR EDUCATION,DEPARTMENT FOR EDUCATION,29/07/2013,ICT,Curriculum and General Qualifications Reform Group,VODAFONE CORPORATE,Commercial,Telecoms Facilities and Services,4000138092,233
DEPARTMENT FOR EDUCATION,DEPARTMENT FOR EDUCATION,29/07/2013,ICT,Participation and Vocational Education Group,VODAFONE CORPORATE,Commercial,Telecoms Facilities and Services,4000138092,65
DEPARTMENT FOR EDUCATION,DEPARTMENT FOR EDUCATION,29/07/2013,ICT,Participation and Vocational Education Group,VODAFONE CORPORATE,Commercial,Telecoms Facilities and Services,4000138092,336
DEPARTMENT FOR EDUCATION,DEPARTMENT FOR EDUCATION,29/07/2013,ICT,Participation and Vocational Education Group,VODAFONE CORPORATE,Commercial,Telecoms Facilities and Services,4000138092,208
DEPARTMENT FOR EDUCATION,DEPARTMENT FOR EDUCATION,29/07/2013,ICT,Participation and Vocational Education Group,VODAFONE CORPORATE,Commercial,Telecoms Facilities and Services,4000138092,362
DEPARTMENT FOR EDUCATION,DEPARTMENT FOR EDUCATION,29/07/2013,ICT,Teachers Group,VODAFONE CORPORATE,Commercial,Telecoms Facilities and Services,4000138092,604
DEPARTMENT FOR EDUCATION,DEPARTMENT FOR EDUCATION,29/07/2013,ICT,Teachers Group,VODAFONE CORPORATE,Commercial,Telecoms Facilities and Services,4000138092,238
DEPARTMENT FOR EDUCATION,DEPARTMENT FOR EDUCATION,29/07/2013,ICT,Teachers Group,VODAFONE CORPORATE,Commercial,Telecoms Facilities and Services,4000138092,118
DEPARTMENT FOR EDUCATION,DEPARTMENT FOR EDUCATION,29/07/2013,ICT,Teachers Group,VODAFONE CORPORATE,Commercial,Telecoms Facilities and Services,4000138092,379
DEPARTMENT FOR EDUCATION,DEPARTMENT FOR EDUCATION,29/07/2013,ICT,Teachers Group,VODAFONE CORPORATE,Commercial,Telecoms Facilities and Services,4000138092,38
DEPARTMENT FOR EDUCATION,DEPARTMENT FOR EDUCATION,29/07/2013,Travel,Participation and Vocational Education Group,CREATIVE CHOICE,Public Sector,Hosting conferences including programme activity such as conferences for teachers,4000138189,"80,441"
DEPARTMENT FOR EDUCATION,DEPARTMENT FOR EDUCATION,29/07/2013,Grants,Participation and Vocational Education Group,KNOWSLEY SKILLS ACADEMY,Public Sector,Grants to third sector organisations / not for profit organisations,4000138199,"30,471"
DEPARTMENT FOR EDUCATION,DEPARTMENT FOR EDUCATION,29/07/2013,Grants,Participation and Vocational Education Group,SKILL FORCE DEVELOPMENT,VCS,Grants to third sector organisations / not for profit organisations,4000138281,"26,325"
DEPARTMENT FOR EDUCATION,DEPARTMENT FOR EDUCATION,29/07/2013,Programme costs,Curriculum and General Qualifications Reform Group,TRIBAL EDUCATION LIMITED,Commercial,Funding to deliver policies (excluding consultancy) paid to third parties via a service delivery contract,4000138283,"261,115"
DEPARTMENT FOR EDUCATION,DEPARTMENT FOR EDUCATION,04/07/2013,Professional Services Consultancy and Contingent Labour,Finance and Commercial Group,CAPITA RESOURCING LTD,Commercial,Costs related to temporary workers,4000134241,"2,340"
DEPARTMENT FOR EDUCATION,DEPARTMENT FOR EDUCATION,05/07/2013,Professional Services Consultancy and Contingent Labour,Finance and Commercial Group,PRICE WATERHOUSE COOPERS LLP,Commercial,"Fees / expenses of professionals from the private sector such as auditors, accountants, lawyers, etc. engaged to provide advice or opinion on how to affect something",4000134442,"77,861"
DEPARTMENT FOR EDUCATION,DEPARTMENT FOR EDUCATION,16/07/2013,Travel,Finance and Commercial Group,REDFERN TRAVEL LTD,Commercial,"Staff business travel including air, coach, ferry, rail and taxi",4000135658,"32,066"
DEPARTMENT FOR EDUCATION,DEPARTMENT FOR EDUCATION,16/07/2013,Personnel Related,Finance and Commercial Group,REDFERN TRAVEL LTD,Commercial,Subsistence and lodging allowances for official duty,4000135658,2
DEPARTMENT FOR EDUCATION,DEPARTMENT FOR EDUCATION,16/07/2013,Travel,Finance and Commercial Group,REDFERN TRAVEL LTD,Commercial,"Staff business travel including air, coach, ferry, rail and taxi",4000135658,67
DEPARTMENT FOR EDUCATION,DEPARTMENT FOR EDUCATION,16/07/2013,Travel,Finance and Commercial Group,REDFERN TRAVEL LTD,Commercial,"Staff business travel including air, coach, ferry, rail and taxi",4000135658,134
DEPARTMENT FOR EDUCATION,DEPARTMENT FOR EDUCATION,16/07/2013,Travel,ALB Reform Group,REDFERN TRAVEL LTD,Commercial,"Staff business travel including air, coach, ferry, rail and taxi",4000135658,"2,898"
DEPARTMENT FOR EDUCATION,DEPARTMENT FOR EDUCATION,16/07/2013,Personnel Related,ALB Reform Group,REDFERN TRAVEL LTD,Commercial,Subsistence and lodging allowances for official duty,4000135658,4
DEPARTMENT FOR EDUCATION,DEPARTMENT FOR EDUCATION,16/07/2013,Travel,Finance and Commercial Group,REDFERN TRAVEL LTD,Commercial,"Staff business travel including air, coach, ferry, rail and taxi",4000135658,464
DEPARTMENT FOR EDUCATION,DEPARTMENT FOR EDUCATION,16/07/2013,Travel,Finance and Commercial Group,REDFERN TRAVEL LTD,Commercial,"Staff business travel including air, coach, ferry, rail and taxi",4000135658,735
DEPARTMENT FOR EDUCATION,DEPARTMENT FOR EDUCATION,16/07/2013,Travel,Finance and Commercial Group,REDFERN TRAVEL LTD,Commercial,"Staff business travel including air, coach, ferry, rail and taxi",4000135658,"6,822"
DEPARTMENT FOR EDUCATION,DEPARTMENT FOR EDUCATION,17/07/2013,Professional Services Consultancy and Contingent Labour,Finance and Commercial Group,CAPITA RESOURCING LTD,Commercial,Costs related to temporary workers,4000135835,"6,384"
DEPARTMENT FOR EDUCATION,DEPARTMENT FOR EDUCATION,18/07/2013,Professional Services Consultancy and Contingent Labour,Finance and Commercial Group,CAPITA RESOURCING LTD,Commercial,Costs related to temporary workers,4000135917,"10,933"
DEPARTMENT FOR EDUCATION,DEPARTMENT FOR EDUCATION,25/07/2013,Professional Services Consultancy and Contingent Labour,Finance and Commercial Group,CAPITA RESOURCING LTD,Commercial,Costs related to temporary workers,4000137609,"6,708"
DEPARTMENT FOR EDUCATION,DEPARTMENT FOR EDUCATION,26/07/2013,Communications,Finance and Commercial Group,CAPGEMINI UK PLC,Commercial,Marketing services,4000137803,"1,406"
DEPARTMENT FOR EDUCATION,DEPARTMENT FOR EDUCATION,29/07/2013,ICT,Finance and Commercial Group,VODAFONE CORPORATE,Commercial,Telecoms Facilities and Services,4000138092,14
DEPARTMENT FOR EDUCATION,DEPARTMENT FOR EDUCATION,29/07/2013,ICT,Finance and Commercial Group,VODAFONE CORPORATE,Commercial,Telecoms Facilities and Services,4000138092,80
DEPARTMENT FOR EDUCATION,DEPARTMENT FOR EDUCATION,29/07/2013,ICT,Finance and Commercial Group,VODAFONE CORPORATE,Commercial,Telecoms Facilities and Services,4000138092,38
DEPARTMENT FOR EDUCATION,DEPARTMENT FOR EDUCATION,29/07/2013,ICT,Finance and Commercial Group,VODAFONE CORPORATE,Commercial,Telecoms Facilities and Services,4000138092,39
DEPARTMENT FOR EDUCATION,DEPARTMENT FOR EDUCATION,29/07/2013,ICT,Finance and Commercial Group,VODAFONE CORPORATE,Commercial,Telecoms Facilities and Services,4000138092,"3,455"
DEPARTMENT FOR EDUCATION,DEPARTMENT FOR EDUCATION,29/07/2013,ICT,Finance and Commercial Group,VODAFONE CORPORATE,Commercial,Telecoms Facilities and Services,4000138092,39
DEPARTMENT FOR EDUCATION,DEPARTMENT FOR EDUCATION,29/07/2013,ICT,Finance and Commercial Group,VODAFONE CORPORATE,Commercial,Telecoms Facilities and Services,4000138092,39
DEPARTMENT FOR EDUCATION,DEPARTMENT FOR EDUCATION,29/07/2013,ICT,Finance and Commercial Group,VODAFONE CORPORATE,Commercial,Telecoms Facilities and Services,4000138092,14
DEPARTMENT FOR EDUCATION,DEPARTMENT FOR EDUCATION,29/07/2013,ICT,ALB Reform Group,VODAFONE CORPORATE,Commercial,Telecoms Facilities and Services,4000138092,334
DEPARTMENT FOR EDUCATION,DEPARTMENT FOR EDUCATION,29/07/2013,ICT,Finance and Commercial Group,VODAFONE CORPORATE,Commercial,Telecoms Facilities and Services,4000138092,39
DEPARTMENT FOR EDUCATION,DEPARTMENT FOR EDUCATION,29/07/2013,ICT,Finance and Commercial Group,VODAFONE CORPORATE,Commercial,Telecoms Facilities and Services,4000138092,39
DEPARTMENT FOR EDUCATION,DEPARTMENT FOR EDUCATION,29/07/2013,ICT,Finance and Commercial Group,VODAFONE CORPORATE,Commercial,Telecoms Facilities and Services,4000138092,363
DEPARTMENT FOR EDUCATION,DEPARTMENT FOR EDUCATION,16/07/2013,Travel,Finance and Commercial Group - Property Asset Management,REDFERN TRAVEL LTD,Commercial,"Staff business travel including air, coach, ferry, rail and taxi",4000135658,"5,894"
DEPARTMENT FOR EDUCATION,DEPARTMENT FOR EDUCATION,16/07/2013,Travel,Finance and Commercial Group,REDFERN TRAVEL LTD,Commercial,"Staff business travel including air, coach, ferry, rail and taxi",4000135658,"3,252"
DEPARTMENT FOR EDUCATION,DEPARTMENT FOR EDUCATION,16/07/2013,Personnel Related,Finance and Commercial Group,REDFERN TRAVEL LTD,Commercial,Admin fee for official duty,4000135658,1
DEPARTMENT FOR EDUCATION,DEPARTMENT FOR EDUCATION,16/07/2013,Travel,Finance and Commercial Group - Property Asset Management,REDFERN TRAVEL LTD,Commercial,"Staff business travel including air, coach, ferry, rail and taxi",4000135658,80
DEPARTMENT FOR EDUCATION,DEPARTMENT FOR EDUCATION,18/07/2013,Facilities,Finance and Commercial Group - Property Asset Management,GVA GRIMLEY LTD,Commercial,Business Rates,4000136012,"704,437"
DEPARTMENT FOR EDUCATION,DEPARTMENT FOR EDUCATION,18/07/2013,Energy and Fuels,Finance and Commercial Group - Property Asset Management,EDF ENERGY LTD,Commercial,Electricity supply,4000136096,"118,454"
DEPARTMENT FOR EDUCATION,DEPARTMENT FOR EDUCATION,23/07/2013,Facilities,Finance and Commercial Group - Property Asset Management,INTERSERVE FACILITIES MANAGEMENT LTD,Commercial,"Building maintenance and repair, including repainting, replacing flooring, etc.",4000136710,"625,484"
DEPARTMENT FOR EDUCATION,DEPARTMENT FOR EDUCATION,23/07/2013,Facilities,Finance and Commercial Group - Property Asset Management,INTERSERVE FACILITIES MANAGEMENT LTD,Commercial,"Building maintenance and repair, including repainting, replacing flooring, etc.",4000136710,"84,624"
DEPARTMENT FOR EDUCATION,DEPARTMENT FOR EDUCATION,29/07/2013,ICT,Finance and Commercial Group - Property Asset Management,VODAFONE CORPORATE,Commercial,Telecoms Facilities and Services,4000138092,38
DEPARTMENT FOR EDUCATION,DEPARTMENT FOR EDUCATION,29/07/2013,ICT,Finance and Commercial Group - Property Asset Management,VODAFONE CORPORATE,Commercial,Telecoms Facilities and Services,4000138092,39
DEPARTMENT FOR EDUCATION,DEPARTMENT FOR EDUCATION,29/07/2013,ICT,Finance and Commercial Group - Property Asset Management,VODAFONE CORPORATE,Commercial,Telecoms Facilities and Services,4000138092,77
DEPARTMENT FOR EDUCATION,DEPARTMENT FOR EDUCATION,29/07/2013,ICT,Finance and Commercial Group - Property Asset Management,VODAFONE CORPORATE,Commercial,Telecoms Facilities and Services,4000138092,78
DEPARTMENT FOR EDUCATION,DEPARTMENT FOR EDUCATION,29/07/2013,ICT,Finance and Commercial Group - Property Asset Management,VODAFONE CORPORATE,Commercial,Telecoms Facilities and Services,4000138092,39
DEPARTMENT FOR EDUCATION,DEPARTMENT FOR EDUCATION,29/07/2013,ICT,Finance and Commercial Group - Property Asset Management,VODAFONE CORPORATE,Commercial,Telecoms Facilities and Services,4000138092,"1,037"
DEPARTMENT FOR EDUCATION,DEPARTMENT FOR EDUCATION,29/07/2013,ICT,Finance and Commercial Group,VODAFONE CORPORATE,Commercial,Telecoms Facilities and Services,4000138092,396
DEPARTMENT FOR EDUCATION,DEPARTMENT FOR EDUCATION,29/07/2013,ICT,Finance and Commercial Group - Property Asset Management,VODAFONE CORPORATE,Commercial,Telecoms Facilities and Services,4000138092,23
DEPARTMENT FOR EDUCATION,DEPARTMENT FOR EDUCATION,29/07/2013,Facilities,Finance and Commercial Group - Property Asset Management,EC HARRIS LLP,Commercial,"Cost of professional fees, for the Design, M&E/Building Fabric Due Diligence and Project Management for the reconfiguration of proposed alternative Whitehall accommodation.",4000138186,"89,769"
DEPARTMENT FOR EDUCATION,DEPARTMENT FOR EDUCATION,29/07/2013,Facilities,Finance and Commercial Group - Property Asset Management,INTERSERVE FACILITIES MANAGEMENT LTD,Commercial,"Building maintenance and repair, including repainting, replacing flooring, etc.",4000138303,"37,502"
DEPARTMENT FOR EDUCATION,DEPARTMENT FOR EDUCATION,31/07/2013,Facilities,Finance and Commercial Group - Property Asset Management,INTERSERVE FACILITIES MANAGEMENT LTD,Commercial,"Building maintenance and repair, including repainting, replacing flooring, etc.",4000138683,"29,889"
DEPARTMENT FOR EDUCATION,DEPARTMENT FOR EDUCATION,01/07/2013,Grants,Free School Group,BATH STUDIO SCHOOL,Public Sector,"Grants paid to organisations including agencies, arms length bodies and educational establishments",1001163,"90,000"
DEPARTMENT FOR EDUCATION,DEPARTMENT FOR EDUCATION,01/07/2013,Grants,Academies Delivery Group,MANCHESTER COLLEGE EDUCATION TRUST,Public Sector,"Grants paid to organisations including agencies, arms length bodies and educational establishments",1001164,"30,000"
DEPARTMENT FOR EDUCATION,DEPARTMENT FOR EDUCATION,01/07/2013,Grants,Academies Delivery Group,WOODARD ACADAMIES TRUST,Public Sector,"Grants paid to organisations including agencies, arms length bodies and educational establishments",1001165,"60,000"
DEPARTMENT FOR EDUCATION,DEPARTMENT FOR EDUCATION,03/07/2013,Grants,Free School Group,SOUTH WILTSHIRE UTC LTD,Public Sector,"Grants paid to organisations including agencies, arms length bodies and educational establishments",1001168,"90,000"
DEPARTMENT FOR EDUCATION,DEPARTMENT FOR EDUCATION,03/07/2013,Grants,Free School Group,CLEANTECH UTC,Public Sector,"Grants paid to organisations including agencies, arms length bodies and educational establishments",1001169,"60,000"
DEPARTMENT FOR EDUCATION,DEPARTMENT FOR EDUCATION,03/07/2013,Grants,Free School Group,SOUTH DEVON UTC,Public Sector,"Grants paid to organisations including agencies, arms length bodies and educational establishments",1001170,"60,000"
DEPARTMENT FOR EDUCATION,DEPARTMENT FOR EDUCATION,09/07/2013,Grants,Academies Delivery Group,CAWSTON GRANGE PRIMARY SCHOOL,Public Sector,"Grants paid to organisations including agencies, arms length bodies and educational establishments",1001178,"25,000"
DEPARTMENT FOR EDUCATION,DEPARTMENT FOR EDUCATION,10/07/2013,Grants,Free School Group,EAST LONDON UTC LTD,Commercial,"Grants paid to organisations including agencies, arms length bodies and educational establishments",1001180,"60,000"
DEPARTMENT FOR EDUCATION,DEPARTMENT FOR EDUCATION,10/07/2013,Grants,Free School Group,UNITED LEARNING TRUST,Public Sector,"Grants paid to organisations including agencies, arms length bodies and educational establishments",1001181,"100,000"
DEPARTMENT FOR EDUCATION,DEPARTMENT FOR EDUCATION,10/07/2013,Grants,Free School Group,LUTTERWORTH COLLEGE,Public Sector,"Grants paid to organisations including agencies, arms length bodies and educational establishments",1001182,"90,000"
DEPARTMENT FOR EDUCATION,DEPARTMENT FOR EDUCATION,11/07/2013,Grants,Free School Group,WEST NOTTINGHAMSHIRE EDUCATIONAL TRUST,Public Sector,"Grants paid to organisations including agencies, arms length bodies and educational establishments",1001183,"90,000"
DEPARTMENT FOR EDUCATION,DEPARTMENT FOR EDUCATION,11/07/2013,Grants,Free School Group,MANCHESTER CREATIVE STUDIO,Public Sector,"Grants paid to organisations including agencies, arms length bodies and educational establishments",1001184,"90,000"
DEPARTMENT FOR EDUCATION,DEPARTMENT FOR EDUCATION,11/07/2013,Grants,Free School Group,GREATER MANCHESTER SUSTAINABLE ENGINEERING UTC,Public Sector,"Grants paid to organisations including agencies, arms length bodies and educational establishments",1001185,"90,000"
DEPARTMENT FOR EDUCATION,DEPARTMENT FOR EDUCATION,11/07/2013,Grants,Free School Group,WARRINGTON COLLEGIATE EDUCATION TRUST,Public Sector,"Grants paid to organisations including agencies, arms length bodies and educational establishments",1001186,"90,000"
DEPARTMENT FOR EDUCATION,DEPARTMENT FOR EDUCATION,23/07/2013,Grants,Academies Delivery Group,JEFFERYS EDUCATION TRUST,Public Sector,"Grants paid to organisations including agencies, arms length bodies and educational establishments",1001193,"40,000"
DEPARTMENT FOR EDUCATION,DEPARTMENT FOR EDUCATION,29/07/2013,Grants,Free School Group,THE HEIGHTS PRIMARY SCHOOL,Public Sector,"Grants paid to organisations including agencies, arms length bodies and educational establishments",1001196,"66,000"
DEPARTMENT FOR EDUCATION,DEPARTMENT FOR EDUCATION,29/07/2013,Grants,Free School Group,KENTON SCHOOLS ACADEMY TRUST,Public Sector,"Grants paid to organisations including agencies, arms length bodies and educational establishments",1001197,"90,000"
DEPARTMENT FOR EDUCATION,DEPARTMENT FOR EDUCATION,29/07/2013,Grants,Free School Group,KNUTSFORD ACADEMY TRUST,Public Sector,"Grants paid to organisations including agencies, arms length bodies and educational establishments",1001198,"90,000"
DEPARTMENT FOR EDUCATION,DEPARTMENT FOR EDUCATION,30/07/2013,Grants,Free School Group,THE MARCO POLO ACADEMY TRUST,Public Sector,"Grants paid to organisations including agencies, arms length bodies and educational establishments",1001202,"66,000"
DEPARTMENT FOR EDUCATION,DEPARTMENT FOR EDUCATION,30/07/2013,Grants,Free School Group,BELLEVUE EDUCATION TRUST,Public Sector,"Grants paid to organisations including agencies, arms length bodies and educational establishments",1001203,"66,000"
DEPARTMENT FOR EDUCATION,DEPARTMENT FOR EDUCATION,30/07/2013,Grants,Free School Group,BELLEVUE EDUCATION TRUST,Public Sector,"Grants paid to organisations including agencies, arms length bodies and educational establishments",1001204,"66,000"
DEPARTMENT FOR EDUCATION,DEPARTMENT FOR EDUCATION,30/07/2013,Grants,Free School Group,SECKFORD FOUNDATION FREE SCHOOLS TRUST,Public Sector,"Grants paid to organisations including agencies, arms length bodies and educational establishments",1001205,"90,000"
DEPARTMENT FOR EDUCATION,DEPARTMENT FOR EDUCATION,30/07/2013,Grants,Free School Group,CFBT SCHOOLS TRUST,Public Sector,"Grants paid to organisations including agencies, arms length bodies and educational establishments",1001206,"222,000"
DEPARTMENT FOR EDUCATION,DEPARTMENT FOR EDUCATION,31/07/2013,Grants,Free School Group,INNOVATION ACADEMIES TRUST,Public Sector,"Grants paid to organisations including agencies, arms length bodies and educational establishments",1001208,"90,000"
DEPARTMENT FOR EDUCATION,DEPARTMENT FOR EDUCATION,31/07/2013,Grants,Free School Group,DAVID ROSS EDUCATION TRUST,Public Sector,"Grants paid to organisations including agencies, arms length bodies and educational establishments",1001210,"60,000"
DEPARTMENT FOR EDUCATION,DEPARTMENT FOR EDUCATION,31/07/2013,Grants,Free School Group,BURTON & SOUTH DERBYSHIRE UTC,Public Sector,"Grants paid to organisations including agencies, arms length bodies and educational establishments",1001211,"60,000"
DEPARTMENT FOR EDUCATION,DEPARTMENT FOR EDUCATION,31/07/2013,Grants,Free School Group,MILTON KEYNES EDUCATION TRUST,Public Sector,"Grants paid to organisations including agencies, arms length bodies and educational establishments",1001212,"66,000"
DEPARTMENT FOR EDUCATION,DEPARTMENT FOR EDUCATION,31/07/2013,Grants,Free School Group,JUBILEE PRIMARY SCHOOL,Public Sector,"Grants paid to organisations including agencies, arms length bodies and educational establishments",1001213,"66,000"
DEPARTMENT FOR EDUCATION,DEPARTMENT FOR EDUCATION,31/07/2013,Grants,Free School Group,PHOENIX FREE SCHOOL OF OLDHAM,Public Sector,"Grants paid to organisations including agencies, arms length bodies and educational establishments",1001214,"90,000"
DEPARTMENT FOR EDUCATION,DEPARTMENT FOR EDUCATION,31/07/2013,Grants,Free School Group,INSPIRATION TRUST,VCS,"Grants paid to organisations including agencies, arms length bodies and educational establishments",1001215,"90,000"
DEPARTMENT FOR EDUCATION,DEPARTMENT FOR EDUCATION,31/07/2013,Grants,Free School Group,BELLEVUE EDUCATION TRUST,Public Sector,"Grants paid to organisations including agencies, arms length bodies and educational establishments",1001216,"66,000"
DEPARTMENT FOR EDUCATION,DEPARTMENT FOR EDUCATION,31/07/2013,Grants,Free School Group,OASIS COMMUNITY LEARNING,Public Sector,"Grants paid to organisations including agencies, arms length bodies and educational establishments",1001217,"246,000"
DEPARTMENT FOR EDUCATION,DEPARTMENT FOR EDUCATION,31/07/2013,Grants,Free School Group,CHAPELTOWN ACADEMY LTD,Public Sector,"Grants paid to organisations including agencies, arms length bodies and educational establishments",1001218,"75,000"
DEPARTMENT FOR EDUCATION,DEPARTMENT FOR EDUCATION,31/07/2013,Grants,Free School Group,THE PHOENIX FAMILY OF SCHOOLS ACADEMY TRUST,Public Sector,"Grants paid to organisations including agencies, arms length bodies and educational establishments",1001219,"66,000"
DEPARTMENT FOR EDUCATION,DEPARTMENT FOR EDUCATION,31/07/2013,Grants,Free School Group,THE GORSE ACADEMIES TRUST,Public Sector,"Grants paid to organisations including agencies, arms length bodies and educational establishments",1001220,"90,000"
DEPARTMENT FOR EDUCATION,DEPARTMENT FOR EDUCATION,01/07/2013,Grants,Office of the Schools Commissioner Group,THE ROWAN LEARNING TRUST,Public Sector,"Grants paid to organisations including agencies, arms length bodies and educational establishments",4000133206,"75,200"
DEPARTMENT FOR EDUCATION,DEPARTMENT FOR EDUCATION,01/07/2013,Grants,Academies Delivery Group,ACADEMY ENTERPRISE TRUST,Public Sector,"Grants paid to organisations including agencies, arms length bodies and educational establishments",4000133249,"17,777"
DEPARTMENT FOR EDUCATION,DEPARTMENT FOR EDUCATION,01/07/2013,Grants,Academies Delivery Group,CREATIVE EDUCATION ACADEMIES TRUST,Public Sector,"Grants paid to organisations including agencies, arms length bodies and educational establishments",4000133280,"29,500"
DEPARTMENT FOR EDUCATION,DEPARTMENT FOR EDUCATION,01/07/2013,Grants,Academies Delivery Group,WAKEFIELD CITY ACADEMY,Public Sector,"Grants paid to organisations including agencies, arms length bodies and educational establishments",4000133353,"60,000"
DEPARTMENT FOR EDUCATION,DEPARTMENT FOR EDUCATION,01/07/2013,Grants,Free School Group,READING UTA SCHOOL TRUST,Public Sector,"Grants paid to organisations including agencies, arms length bodies and educational establishments",4000133356,"38,492"
DEPARTMENT FOR EDUCATION,DEPARTMENT FOR EDUCATION,01/07/2013,Grants,Academies Delivery Group,CRABTREE INFANTS SCHOOL,Public Sector,"Grants paid to organisations including agencies, arms length bodies and educational establishments",4000133358,"25,000"
DEPARTMENT FOR EDUCATION,DEPARTMENT FOR EDUCATION,01/07/2013,Personnel Related,Education Funding Group,HMRC,Central Government,Staff subscriptions including publications and organisation subscription charges,4000133396,"17,451"
DEPARTMENT FOR EDUCATION,DEPARTMENT FOR EDUCATION,02/07/2013,Grants,Academies Delivery Group,WIRRAL COUNCIL,Public Sector,"Grants paid to organisations including agencies, arms length bodies and educational establishments",4000133426,"25,000"
DEPARTMENT FOR EDUCATION,DEPARTMENT FOR EDUCATION,02/07/2013,Grants,Academies Delivery Group,SCHOOL PARTNERSHIP TRUST ACADEMIES,Public Sector,"Grants paid to organisations including agencies, arms length bodies and educational establishments",4000133441,"130,000"
DEPARTMENT FOR EDUCATION,DEPARTMENT FOR EDUCATION,02/07/2013,Grants,Academies Delivery Group,BEECHWOOD JUNIOR SCHOOL,Public Sector,"Grants paid to organisations including agencies, arms length bodies and educational establishments",4000133460,"25,000"
DEPARTMENT FOR EDUCATION,DEPARTMENT FOR EDUCATION,02/07/2013,Grants,Academies Delivery Group,WAYFIELD COMMUNITY PRIMARY SCHOOL & NURSERY,Public Sector,"Grants paid to organisations including agencies, arms length bodies and educational establishments",4000133467,"25,000"
DEPARTMENT FOR EDUCATION,DEPARTMENT FOR EDUCATION,02/07/2013,Grants,Academies Delivery Group,CLEEVE PRIMARY SCHOOL,Public Sector,"Grants paid to organisations including agencies, arms length bodies and educational establishments",4000133468,"25,000"
DEPARTMENT FOR EDUCATION,DEPARTMENT FOR EDUCATION,02/07/2013,Grants,Academies Delivery Group,BILLING BROOK SCHOOL,Public Sector,"Grants paid to organisations including agencies, arms length bodies and educational establishments",4000133469,"25,000"
DEPARTMENT FOR EDUCATION,DEPARTMENT FOR EDUCATION,02/07/2013,Grants,Academies Delivery Group,ST TERESA CATHOLIC PRIMARY SCHOOL,Public Sector,"Grants paid to organisations including agencies, arms length bodies and educational establishments",4000133470,"25,000"
DEPARTMENT FOR EDUCATION,DEPARTMENT FOR EDUCATION,02/07/2013,Grants,Academies Delivery Group,GIFFARD CATHOLIC SCHOOL,Public Sector,"Grants paid to organisations including agencies, arms length bodies and educational establishments",4000133471,"25,000"
DEPARTMENT FOR EDUCATION,DEPARTMENT FOR EDUCATION,02/07/2013,Grants,Academies Delivery Group,SS MARY & JOHNS CATHOLIC SCHOOL,Public Sector,"Grants paid to organisations including agencies, arms length bodies and educational establishments",4000133478,"25,000"
DEPARTMENT FOR EDUCATION,DEPARTMENT FOR EDUCATION,02/07/2013,Grants,Academies Delivery Group,ST EDMUNDS RC SCHOOL WOLVERHAMPTON,Public Sector,"Grants paid to organisations including agencies, arms length bodies and educational establishments",4000133479,"25,000"
DEPARTMENT FOR EDUCATION,DEPARTMENT FOR EDUCATION,02/07/2013,Grants,Academies Delivery Group,ST MICHAELS RC PRIMARY SCHOOL WOLVERHAMPTON,Public Sector,"Grants paid to organisations including agencies, arms length bodies and educational establishments",4000133480,"25,000"
DEPARTMENT FOR EDUCATION,DEPARTMENT FOR EDUCATION,02/07/2013,Grants,Academies Delivery Group,ENDSLEIGH HOLY CHILD RC PRIMARY SCHOOL,Public Sector,"Grants paid to organisations including agencies, arms length bodies and educational establishments",4000133481,"25,000"
DEPARTMENT FOR EDUCATION,DEPARTMENT FOR EDUCATION,02/07/2013,Grants,Academies Delivery Group,ST MARY QUEEN OF MARTRS RC PRIMARY SCHOOL,Public Sector,"Grants paid to organisations including agencies, arms length bodies and educational establishments",4000133482,"25,000"
DEPARTMENT FOR EDUCATION,DEPARTMENT FOR EDUCATION,02/07/2013,Grants,Academies Delivery Group,HIGHFIELD INFANT SCHOOL,Public Sector,"Grants paid to organisations including agencies, arms length bodies and educational establishments",4000133489,"25,000"
DEPARTMENT FOR EDUCATION,DEPARTMENT FOR EDUCATION,02/07/2013,Grants,Academies Delivery Group,ALEXANDRA JUNIOR SCHOOL,Public Sector,"Grants paid to organisations including agencies, arms length bodies and educational establishments",4000133490,"25,000"
DEPARTMENT FOR EDUCATION,DEPARTMENT FOR EDUCATION,02/07/2013,Grants,Academies Delivery Group,MANOR OAK PRIMARY SCHOOL,Public Sector,"Grants paid to organisations including agencies, arms length bodies and educational establishments",4000133491,"25,000"
DEPARTMENT FOR EDUCATION,DEPARTMENT FOR EDUCATION,02/07/2013,Grants,Academies Delivery Group,RAGLAN PRIMARY SCHOOL,Public Sector,"Grants paid to organisations including agencies, arms length bodies and educational establishments",4000133493,"25,000"
DEPARTMENT FOR EDUCATION,DEPARTMENT FOR EDUCATION,02/07/2013,Grants,Academies Delivery Group,MONTSAYE ACADEMY,Public Sector,"Grants paid to organisations including agencies, arms length bodies and educational establishments",4000133496,"39,900"
DEPARTMENT FOR EDUCATION,DEPARTMENT FOR EDUCATION,02/07/2013,Grants,Academies Delivery Group,BEAVER ROAD PRIMARY SCHOOL,Public Sector,"Grants paid to organisations including agencies, arms length bodies and educational establishments",4000133500,"25,000"
DEPARTMENT FOR EDUCATION,DEPARTMENT FOR EDUCATION,02/07/2013,Grants,Academies Delivery Group,HIGHFIELD JUNIOR SCHOOL,Public Sector,"Grants paid to organisations including agencies, arms length bodies and educational establishments",4000133510,"25,000"
DEPARTMENT FOR EDUCATION,DEPARTMENT FOR EDUCATION,02/07/2013,Grants,Academies Delivery Group,HAYBROOK COLLEGE PRU,Public Sector,"Grants paid to organisations including agencies, arms length bodies and educational establishments",4000133514,"35,000"
DEPARTMENT FOR EDUCATION,DEPARTMENT FOR EDUCATION,02/07/2013,Grants,Academies Delivery Group,FARNBOROUGH PRIMARY SCHOOL,Public Sector,"Grants paid to organisations including agencies, arms length bodies and educational establishments",4000133527,"25,000"
DEPARTMENT FOR EDUCATION,DEPARTMENT FOR EDUCATION,02/07/2013,Grants,Academies Delivery Group,ALEXANDRA INFANT SCHOOL,Public Sector,"Grants paid to organisations including agencies, arms length bodies and educational establishments",4000133566,"25,000"
DEPARTMENT FOR EDUCATION,DEPARTMENT FOR EDUCATION,03/07/2013,Grants,Academies Delivery Group,NOTTINGHAMSHIRE COUNTY COUNCIL,Public Sector,To clear budget deficit liability of a maintained school to facilitate conversion to an academy.,4000133637,"783,501"
DEPARTMENT FOR EDUCATION,DEPARTMENT FOR EDUCATION,03/07/2013,Grants,Academies Delivery Group,WOLVERHAMPTON CITY COUNCIL,Public Sector,To clear budget deficit liability of a maintained school to facilitate conversion to an academy.,4000133664,"57,656"
DEPARTMENT FOR EDUCATION,DEPARTMENT FOR EDUCATION,03/07/2013,Grants,Academies Delivery Group,ST MARYS COLLEGE,Public Sector,"Grants paid to organisations including agencies, arms length bodies and educational establishments",4000133695,"25,000"
DEPARTMENT FOR EDUCATION,DEPARTMENT FOR EDUCATION,03/07/2013,Grants,Academies Delivery Group,LEICESTERSHIRE COUNTY COUNCIL,Public Sector,To clear budget deficit liability of a maintained school to facilitate conversion to an academy.,4000133782,"154,808"
DEPARTMENT FOR EDUCATION,DEPARTMENT FOR EDUCATION,03/07/2013,Grants,Academies Delivery Group,BIRMINGHAM CITY COUNCIL,Public Sector,To clear budget deficit liability of a maintained school to facilitate conversion to an academy.,4000133882,"40,577"
DEPARTMENT FOR EDUCATION,DEPARTMENT FOR EDUCATION,03/07/2013,Grants,Office of the Schools Commissioner Group,ROCHESTER DIOCESAN BOARD OF EDUCATION,Public Sector,"Grants paid to organisations including agencies, arms length bodies and educational establishments",4000133901,"71,651"
DEPARTMENT FOR EDUCATION,DEPARTMENT FOR EDUCATION,04/07/2013,Grants,Free School Group,PLYMOUTH SCHOOL OF CREATIVE ARTS,Public Sector,"Grants paid to organisations including agencies, arms length bodies and educational establishments",4000134200,"60,000"
DEPARTMENT FOR EDUCATION,DEPARTMENT FOR EDUCATION,04/07/2013,Grants,Free School Group,PARKFIELD SCHOOL,Public Sector,"Grants paid to organisations including agencies, arms length bodies and educational establishments",4000134201,"45,807"
DEPARTMENT FOR EDUCATION,DEPARTMENT FOR EDUCATION,04/07/2013,Grants,Free School Group,SOUTH ESSEX COMMUNITY SCHOOL LTD,Public Sector,"Grants paid to organisations including agencies, arms length bodies and educational establishments",4000134205,"42,999"
DEPARTMENT FOR EDUCATION,DEPARTMENT FOR EDUCATION,04/07/2013,Grants,Free School Group,THE HEYFORDIAN SCHOOL TRUST,Public Sector,"Grants paid to organisations including agencies, arms length bodies and educational establishments",4000134207,"60,000"
DEPARTMENT FOR EDUCATION,DEPARTMENT FOR EDUCATION,04/07/2013,Grants,Free School Group,THE MALTINGS COLLEGE,Public Sector,"Grants paid to organisations including agencies, arms length bodies and educational establishments",4000134208,"43,700"
DEPARTMENT FOR EDUCATION,DEPARTMENT FOR EDUCATION,04/07/2013,Grants,Free School Group,BRISTOL CATHEDRAL SCHOOL,Public Sector,"Grants paid to organisations including agencies, arms length bodies and educational establishments",4000134209,"44,000"
DEPARTMENT FOR EDUCATION,DEPARTMENT FOR EDUCATION,04/07/2013,Grants,Free School Group,THE ROSEDALE HEWENS ACADEMIES TRUST,Public Sector,"Grants paid to organisations including agencies, arms length bodies and educational establishments",4000134210,"44,000"
DEPARTMENT FOR EDUCATION,DEPARTMENT FOR EDUCATION,04/07/2013,Grants,Free School Group,SAMUEL WARD ACADEMY TRUST,Public Sector,"Grants paid to organisations including agencies, arms length bodies and educational establishments",4000134219,"44,000"
DEPARTMENT FOR EDUCATION,DEPARTMENT FOR EDUCATION,04/07/2013,Grants,Free School Group,WEST LONDON FREE SCHOOL ACADEMY TRUST,Public Sector,"Grants paid to organisations including agencies, arms length bodies and educational establishments",4000134224,"44,000"
DEPARTMENT FOR EDUCATION,DEPARTMENT FOR EDUCATION,04/07/2013,Grants,Free School Group,THE ARCHER ACADEMY,Public Sector,"Grants paid to organisations including agencies, arms length bodies and educational establishments",4000134235,"60,000"
DEPARTMENT FOR EDUCATION,DEPARTMENT FOR EDUCATION,04/07/2013,Grants,Free School Group,THE ROBERT OWEN ACADEMIES TRUST,Public Sector,"Grants paid to organisations including agencies, arms length bodies and educational establishments",4000134237,"60,000"
DEPARTMENT FOR EDUCATION,DEPARTMENT FOR EDUCATION,04/07/2013,Grants,Free School Group,WEST NEWCASTLE ACADEMY,Public Sector,"Grants paid to organisations including agencies, arms length bodies and educational establishments",4000134238,"44,000"
DEPARTMENT FOR EDUCATION,DEPARTMENT FOR EDUCATION,04/07/2013,Grants,Free School Group,DURHAM FREE SCHOOL LTD,Public Sector,"Grants paid to organisations including agencies, arms length bodies and educational establishments",4000134239,"60,000"
DEPARTMENT FOR EDUCATION,DEPARTMENT FOR EDUCATION,04/07/2013,Grants,Free School Group,COMBERTON ACADEMY TRUST,Public Sector,"Grants paid to organisations including agencies, arms length bodies and educational establishments",4000134243,"60,000"
DEPARTMENT FOR EDUCATION,DEPARTMENT FOR EDUCATION,04/07/2013,Grants,Free School Group,KINGS COLLEGE LONDON,Public Sector,"Grants paid to organisations including agencies, arms length bodies and educational establishments",4000134244,"40,000"
DEPARTMENT FOR EDUCATION,DEPARTMENT FOR EDUCATION,04/07/2013,Grants,Free School Group,EAST LONDON UTC LTD,Commercial,"Grants paid to organisations including agencies, arms length bodies and educational establishments",4000134248,"30,000"
DEPARTMENT FOR EDUCATION,DEPARTMENT FOR EDUCATION,04/07/2013,Grants,Free School Group,SPARKWELL ALL SAINTS PRIMARY TRUST,Public Sector,"Grants paid to organisations including agencies, arms length bodies and educational establishments",4000134272,"44,000"
DEPARTMENT FOR EDUCATION,DEPARTMENT FOR EDUCATION,04/07/2013,Grants,Free School Group,HOLYPORT FREE SCHOOL,Public Sector,"Grants paid to organisations including agencies, arms length bodies and educational establishments",4000134273,"60,000"
DEPARTMENT FOR EDUCATION,DEPARTMENT FOR EDUCATION,04/07/2013,Grants,Free School Group,WOOTTON ACADEMY TRUST,Public Sector,"Grants paid to organisations including agencies, arms length bodies and educational establishments",4000134274,"55,050"
DEPARTMENT FOR EDUCATION,DEPARTMENT FOR EDUCATION,04/07/2013,Grants,Free School Group,NISHKAM SCHOOL TRUST,Public Sector,"Grants paid to organisations including agencies, arms length bodies and educational establishments",4000134276,"60,000"
DEPARTMENT FOR EDUCATION,DEPARTMENT FOR EDUCATION,04/07/2013,Grants,Free School Group,EAST LONDON SCIENCE SCHOOL TRUST,Public Sector,"Grants paid to organisations including agencies, arms length bodies and educational establishments",4000134277,"60,000"
DEPARTMENT FOR EDUCATION,DEPARTMENT FOR EDUCATION,04/07/2013,Grants,Free School Group,SIR THOMAS FREMANTLE SCHOOL,Public Sector,"Grants paid to organisations including agencies, arms length bodies and educational establishments",4000134278,"60,000"
DEPARTMENT FOR EDUCATION,DEPARTMENT FOR EDUCATION,04/07/2013,Grants,Free School Group,THE LONGSIGHT COMMUNITY PRIMARY SCHOOL ACADEMY TRUST,Public Sector,"Grants paid to organisations including agencies, arms length bodies and educational establishments",4000134279,"44,000"
DEPARTMENT FOR EDUCATION,DEPARTMENT FOR EDUCATION,04/07/2013,Grants,Free School Group,STEINER ACADEMY EXETER TRUST,Public Sector,"Grants paid to organisations including agencies, arms length bodies and educational establishments",4000134280,"60,000"
DEPARTMENT FOR EDUCATION,DEPARTMENT FOR EDUCATION,04/07/2013,Grants,Free School Group,STAMP EDUCATION LTD,Public Sector,"Grants paid to organisations including agencies, arms length bodies and educational establishments",4000134281,"53,310"
DEPARTMENT FOR EDUCATION,DEPARTMENT FOR EDUCATION,04/07/2013,Grants,Free School Group,STOCKPORT TECHNICAL SCHOOL,Public Sector,"Grants paid to organisations including agencies, arms length bodies and educational establishments",4000134282,"60,000"
DEPARTMENT FOR EDUCATION,DEPARTMENT FOR EDUCATION,04/07/2013,Grants,Free School Group,ROUTE 39 ACADEMY TRUST LTD,Public Sector,"Grants paid to organisations including agencies, arms length bodies and educational establishments",4000134283,"60,000"
DEPARTMENT FOR EDUCATION,DEPARTMENT FOR EDUCATION,04/07/2013,Grants,Free School Group,GURU NANAK SIKH ACADEMY LTD,Public Sector,"Grants paid to organisations including agencies, arms length bodies and educational establishments",4000134284,"44,000"
DEPARTMENT FOR EDUCATION,DEPARTMENT FOR EDUCATION,04/07/2013,Grants,Free School Group,SUSSEX EDUCATION TRUST LTD,Public Sector,"Grants paid to organisations including agencies, arms length bodies and educational establishments",4000134286,"60,000"
DEPARTMENT FOR EDUCATION,DEPARTMENT FOR EDUCATION,04/07/2013,Grants,Free School Group,THE ST MARYLEBONE C OF E BRIDGE SCHOOL TRUST,Public Sector,"Grants paid to organisations including agencies, arms length bodies and educational establishments",4000134290,"42,646"
DEPARTMENT FOR EDUCATION,DEPARTMENT FOR EDUCATION,04/07/2013,Grants,Free School Group,CONTINU PLUS ACADEMY TRUST,Public Sector,"Grants paid to organisations including agencies, arms length bodies and educational establishments",4000134291,"87,636"
DEPARTMENT FOR EDUCATION,DEPARTMENT FOR EDUCATION,04/07/2013,Grants,Free School Group,THE LEEDS JEWISH FREE SCHOOL,Public Sector,"Grants paid to organisations including agencies, arms length bodies and educational establishments",4000134292,"60,000"
DEPARTMENT FOR EDUCATION,DEPARTMENT FOR EDUCATION,04/07/2013,Grants,Free School Group,KHALSA ECUATION TRUST,Public Sector,"Grants paid to organisations including agencies, arms length bodies and educational establishments",4000134293,"44,000"
DEPARTMENT FOR EDUCATION,DEPARTMENT FOR EDUCATION,04/07/2013,Grants,Free School Group,ST MARTINS ACADEMY,Public Sector,"Grants paid to organisations including agencies, arms length bodies and educational establishments",4000134294,"44,000"
DEPARTMENT FOR EDUCATION,DEPARTMENT FOR EDUCATION,04/07/2013,Grants,Free School Group,COLLECTIVE SPIRIT OLDHAM,Public Sector,"Grants paid to organisations including agencies, arms length bodies and educational establishments",4000134295,"60,000"
DEPARTMENT FOR EDUCATION,DEPARTMENT FOR EDUCATION,04/07/2013,Grants,Free School Group,HAMPTON ST MARY ACADEMY TRUST,Public Sector,"Grants paid to organisations including agencies, arms length bodies and educational establishments",4000134296,"44,000"
DEPARTMENT FOR EDUCATION,DEPARTMENT FOR EDUCATION,04/07/2013,Grants,Free School Group,SEVENOAKS CHRISTIAN SCHOOL LTD,Public Sector,"Grants paid to organisations including agencies, arms length bodies and educational establishments",4000134297,"60,000"
DEPARTMENT FOR EDUCATION,DEPARTMENT FOR EDUCATION,04/07/2013,Grants,Free School Group,TOOTING PRIMARY,Public Sector,"Grants paid to organisations including agencies, arms length bodies and educational establishments",4000134298,"44,000"
DEPARTMENT FOR EDUCATION,DEPARTMENT FOR EDUCATION,04/07/2013,Grants,Free School Group,SIR ISAAC NEWTON FREE SCHOOL,Public Sector,"Grants paid to organisations including agencies, arms length bodies and educational establishments",4000134305,"52,678"
DEPARTMENT FOR EDUCATION,DEPARTMENT FOR EDUCATION,04/07/2013,Grants,Free School Group,CFBT SCHOOLS TRUST,Public Sector,"Grants paid to organisations including agencies, arms length bodies and educational establishments",4000134311,"88,000"
DEPARTMENT FOR EDUCATION,DEPARTMENT FOR EDUCATION,04/07/2013,Grants,Free School Group,HERON HALL ACADEMY,Public Sector,"Grants paid to organisations including agencies, arms length bodies and educational establishments",4000134312,"60,000"
DEPARTMENT FOR EDUCATION,DEPARTMENT FOR EDUCATION,04/07/2013,Grants,Free School Group,THE NEW GENERATION SCHOOLS TRUST,Public Sector,"Grants paid to organisations including agencies, arms length bodies and educational establishments",4000134317,"44,000"
DEPARTMENT FOR EDUCATION,DEPARTMENT FOR EDUCATION,04/07/2013,Grants,Free School Group,ALTERNATIVE PROVISOIN FREE SCHOOL THETFORD LTD,Public Sector,"Grants paid to organisations including agencies, arms length bodies and educational establishments",4000134318,"34,366"
DEPARTMENT FOR EDUCATION,DEPARTMENT FOR EDUCATION,04/07/2013,Grants,Free School Group,STEM ACADEMY TRUST,Public Sector,"Grants paid to organisations including agencies, arms length bodies and educational establishments",4000134319,"55,370"
DEPARTMENT FOR EDUCATION,DEPARTMENT FOR EDUCATION,04/07/2013,Grants,Free School Group,GREENWOOD DALE FOUNDATION TRUST,Public Sector,"Grants paid to organisations including agencies, arms length bodies and educational establishments",4000134320,"60,000"
DEPARTMENT FOR EDUCATION,DEPARTMENT FOR EDUCATION,04/07/2013,Grants,Free School Group,GILDREDGE HOUSE FREE SCHOOL TRUST,Public Sector,"Grants paid to organisations including agencies, arms length bodies and educational establishments",4000134324,"85,000"
DEPARTMENT FOR EDUCATION,DEPARTMENT FOR EDUCATION,04/07/2013,Grants,Academies Delivery Group,BELVEDERE JUNIOR SCHOOL,Public Sector,"Grants paid to organisations including agencies, arms length bodies and educational establishments",4000134328,"29,008"
DEPARTMENT FOR EDUCATION,DEPARTMENT FOR EDUCATION,04/07/2013,Grants,Free School Group,BALHAM FREE PRIMARY SCHOOL,Public Sector,"Grants paid to organisations including agencies, arms length bodies and educational establishments",4000134329,"44,000"
DEPARTMENT FOR EDUCATION,DEPARTMENT FOR EDUCATION,04/07/2013,Grants,Free School Group,HARRIS FEDERATION OF SOUTH LONDON SCHOOLS,Public Sector,"Grants paid to organisations including agencies, arms length bodies and educational establishments",4000134330,"40,311"
DEPARTMENT FOR EDUCATION,DEPARTMENT FOR EDUCATION,04/07/2013,Grants,Free School Group,RUSSELL EDUCATION TRUST,Public Sector,"Grants paid to organisations including agencies, arms length bodies and educational establishments",4000134332,"120,000"
DEPARTMENT FOR EDUCATION,DEPARTMENT FOR EDUCATION,04/07/2013,Grants,Free School Group,WOLVERYHAMPTON SANGAT EDUCATION TRUST,Public Sector,"Grants paid to organisations including agencies, arms length bodies and educational establishments",4000134337,"44,000"
DEPARTMENT FOR EDUCATION,DEPARTMENT FOR EDUCATION,04/07/2013,Grants,Free School Group,THE WELLS FREE SCHOOL,Public Sector,"Grants paid to organisations including agencies, arms length bodies and educational establishments",4000134340,"44,000"
DEPARTMENT FOR EDUCATION,DEPARTMENT FOR EDUCATION,04/07/2013,Grants,Free School Group,THE NEW JEWISH PRIMARY SCHOOL FINCHLEY,Public Sector,"Grants paid to organisations including agencies, arms length bodies and educational establishments",4000134346,"44,000"
DEPARTMENT FOR EDUCATION,DEPARTMENT FOR EDUCATION,04/07/2013,Grants,Free School Group,COMPASS FREE SCHOOL,Public Sector,"Grants paid to organisations including agencies, arms length bodies and educational establishments",4000134347,"45,609"
DEPARTMENT FOR EDUCATION,DEPARTMENT FOR EDUCATION,04/07/2013,Grants,Free School Group,ATHERTON COMMUNITY SCHOOL,Public Sector,"Grants paid to organisations including agencies, arms length bodies and educational establishments",4000134348,"44,000"
DEPARTMENT FOR EDUCATION,DEPARTMENT FOR EDUCATION,04/07/2013,Grants,Free School Group,NEW ISLINGTON FREE SCHOOL,Public Sector,"Grants paid to organisations including agencies, arms length bodies and educational establishments",4000134350,"44,000"
DEPARTMENT FOR EDUCATION,DEPARTMENT FOR EDUCATION,04/07/2013,Grants,Free School Group,RIVERVIEW FREE SCHOOL,Public Sector,"Grants paid to organisations including agencies, arms length bodies and educational establishments",4000134351,"100,000"
DEPARTMENT FOR EDUCATION,DEPARTMENT FOR EDUCATION,04/07/2013,Grants,Free School Group,THE EDUCATION VILLAGE ACADEMY TRUST,Public Sector,"Grants paid to organisations including agencies, arms length bodies and educational establishments",4000134352,"44,000"
DEPARTMENT FOR EDUCATION,DEPARTMENT FOR EDUCATION,04/07/2013,Grants,Free School Group,NAS THAMES VALLEY FREE SCHOOL,Public Sector,"Grants paid to organisations including agencies, arms length bodies and educational establishments",4000134353,"60,000"
DEPARTMENT FOR EDUCATION,DEPARTMENT FOR EDUCATION,04/07/2013,Grants,Free School Group,THE UNIVERSITY OF BIRMINGHAM SCHOOL & SIXTH FORM,Public Sector,"Grants paid to organisations including agencies, arms length bodies and educational establishments",4000134354,"35,000"
DEPARTMENT FOR EDUCATION,DEPARTMENT FOR EDUCATION,04/07/2013,Grants,Free School Group,OASIS COMMUNITY LEARNING,Public Sector,"Grants paid to organisations including agencies, arms length bodies and educational establishments",4000134356,"60,000"
DEPARTMENT FOR EDUCATION,DEPARTMENT FOR EDUCATION,04/07/2013,Grants,Free School Group,UNITED LEARNING TRUST,Public Sector,"Grants paid to organisations including agencies, arms length bodies and educational establishments",4000134364,"60,000"
DEPARTMENT FOR EDUCATION,DEPARTMENT FOR EDUCATION,04/07/2013,Grants,Free School Group,HABERDASHERS ASKES FEDERATION,Public Sector,"Grants paid to organisations including agencies, arms length bodies and educational establishments",4000134365,"44,000"
DEPARTMENT FOR EDUCATION,DEPARTMENT FOR EDUCATION,04/07/2013,Grants,Free School Group,UNIVERSITY OF CHESTER ACADEMIES TRUST,Public Sector,"Grants paid to organisations including agencies, arms length bodies and educational establishments",4000134367,"44,000"
DEPARTMENT FOR EDUCATION,DEPARTMENT FOR EDUCATION,04/07/2013,Grants,Free School Group,TAUHEEDUL ISLAM BOYS HIGH SCHOOL,Public Sector,"Grants paid to organisations including agencies, arms length bodies and educational establishments",4000134369,"88,000"
DEPARTMENT FOR EDUCATION,DEPARTMENT FOR EDUCATION,04/07/2013,Grants,Free School Group,THE HEIGHTS ALTERNATIVE PROVISION FREE SCHOOL,Public Sector,"Grants paid to organisations including agencies, arms length bodies and educational establishments",4000134373,"38,034"
DEPARTMENT FOR EDUCATION,DEPARTMENT FOR EDUCATION,04/07/2013,Grants,Free School Group,SOUTH LONDON JEWISH PRIMARY SCHOOL,Public Sector,"Grants paid to organisations including agencies, arms length bodies and educational establishments",4000134376,"44,000"
DEPARTMENT FOR EDUCATION,DEPARTMENT FOR EDUCATION,04/07/2013,Grants,Free School Group,REACH LEARNING,Public Sector,"Grants paid to organisations including agencies, arms length bodies and educational establishments",4000134382,"60,000"
DEPARTMENT FOR EDUCATION,DEPARTMENT FOR EDUCATION,04/07/2013,Grants,Free School Group,THE MARINE ACADEMY TRUST,Public Sector,"Grants paid to organisations including agencies, arms length bodies and educational establishments",4000134383,"44,000"
DEPARTMENT FOR EDUCATION,DEPARTMENT FOR EDUCATION,04/07/2013,Grants,Free School Group,NEW HACKNEY SCHOOL,Public Sector,"Grants paid to organisations including agencies, arms length bodies and educational establishments",4000134384,"60,000"
DEPARTMENT FOR EDUCATION,DEPARTMENT FOR EDUCATION,04/07/2013,Grants,Free School Group,THE OLIVE TREE PRIMARY SCHOOL BOLTON LTD,Public Sector,"Grants paid to organisations including agencies, arms length bodies and educational establishments",4000134385,"44,000"
DEPARTMENT FOR EDUCATION,DEPARTMENT FOR EDUCATION,04/07/2013,Grants,Free School Group,ARK SCHOOLS,Public Sector,"Grants paid to organisations including agencies, arms length bodies and educational establishments",4000134387,"104,000"
DEPARTMENT FOR EDUCATION,DEPARTMENT FOR EDUCATION,04/07/2013,Grants,Free School Group,HARROW ALTERNATIVE PROVISION ACADEMY TRUST,Public Sector,"Grants paid to organisations including agencies, arms length bodies and educational establishments",4000134388,"42,340"
DEPARTMENT FOR EDUCATION,DEPARTMENT FOR EDUCATION,04/07/2013,Grants,Free School Group,HADLOW COLLEGE RURAL COMMUNITY SCHOOL,Public Sector,"Grants paid to organisations including agencies, arms length bodies and educational establishments",4000134389,"60,000"
DEPARTMENT FOR EDUCATION,DEPARTMENT FOR EDUCATION,04/07/2013,Grants,Free School Group,ACTIVE EDUCATION ACADEMY TRUST,Public Sector,"Grants paid to organisations including agencies, arms length bodies and educational establishments",4000134390,"44,000"
DEPARTMENT FOR EDUCATION,DEPARTMENT FOR EDUCATION,08/07/2013,Grants,Academies Delivery Group,OUR SCHOOL FEDERATION,Public Sector,"Grants paid to organisations including agencies, arms length bodies and educational establishments",4000134539,"100,000"
DEPARTMENT FOR EDUCATION,DEPARTMENT FOR EDUCATION,08/07/2013,Grants,Academies Delivery Group,ST CHRISTOPHERS COFE MULTI ACADEMY TRUST,Public Sector,"Grants paid to organisations including agencies, arms length bodies and educational establishments",4000134540,"90,000"
DEPARTMENT FOR EDUCATION,DEPARTMENT FOR EDUCATION,08/07/2013,Grants,Academies Delivery Group,ACADEMY TRANSFORMATION TRUST,Public Sector,"Grants paid to organisations including agencies, arms length bodies and educational establishments",4000134584,"120,000"
DEPARTMENT FOR EDUCATION,DEPARTMENT FOR EDUCATION,08/07/2013,Grants,Academies Delivery Group,PLYMOUTH CITY COUNCIL,Public Sector,"Grants paid to organisations including agencies, arms length bodies and educational establishments",4000134637,"25,000"
DEPARTMENT FOR EDUCATION,DEPARTMENT FOR EDUCATION,08/07/2013,Grants,Academies Delivery Group,UNITED LEARNING TRUST,Public Sector,"Grants paid to organisations including agencies, arms length bodies and educational establishments",4000134638,"90,000"
DEPARTMENT FOR EDUCATION,DEPARTMENT FOR EDUCATION,08/07/2013,Grants,Academies Delivery Group,WADEBRIDGE PRIMARY SCHOOL,Public Sector,"Grants paid to organisations including agencies, arms length bodies and educational establishments",4000134648,"25,000"
DEPARTMENT FOR EDUCATION,DEPARTMENT FOR EDUCATION,08/07/2013,Grants,Academies Delivery Group,ROTHERHAM MBC,Public Sector,"Grants paid to organisations including agencies, arms length bodies and educational establishments",4000134651,"25,000"
DEPARTMENT FOR EDUCATION,DEPARTMENT FOR EDUCATION,08/07/2013,Professional Services Other,Academies Delivery Group,VEREDUS C/O CAPITA RESOURCING LTD,Commercial,"Fees / expenses of professionals from the private sector, for example to implement advice or changes",4000134652,"66,288"
DEPARTMENT FOR EDUCATION,DEPARTMENT FOR EDUCATION,08/07/2013,Grants,Academies Delivery Group,E ACT,Public Sector,"Grants paid to organisations including agencies, arms length bodies and educational establishments",4000134654,"65,000"
DEPARTMENT FOR EDUCATION,DEPARTMENT FOR EDUCATION,08/07/2013,Grants,Academies Delivery Group,STOKE ON TRENT CITY COUNCIL,Public Sector,"Grants paid to organisations including agencies, arms length bodies and educational establishments",4000134656,"25,000"
DEPARTMENT FOR EDUCATION,DEPARTMENT FOR EDUCATION,08/07/2013,Grants,Academies Delivery Group,ST THOMAS MORE CATHOLIC COLLEGE,Public Sector,"Grants paid to organisations including agencies, arms length bodies and educational establishments",4000134717,"25,000"
DEPARTMENT FOR EDUCATION,DEPARTMENT FOR EDUCATION,08/07/2013,Grants,Academies Delivery Group,WHITEHAWK ACADEMY,Public Sector,"Grants paid to organisations including agencies, arms length bodies and educational establishments",4000134737,"120,000"
DEPARTMENT FOR EDUCATION,DEPARTMENT FOR EDUCATION,10/07/2013,Grants,Office of the Schools Commissioner Group,DIOCESE OF GUILDFORD,Public Sector,"Grants paid to organisations including agencies, arms length bodies and educational establishments",4000134929,"90,000"
DEPARTMENT FOR EDUCATION,DEPARTMENT FOR EDUCATION,10/07/2013,Grants,Office of the Schools Commissioner Group,YORK DIOCESAN BOARD OF FINANCE,Public Sector,"Grants paid to organisations including agencies, arms length bodies and educational establishments",4000134946,"82,600"
DEPARTMENT FOR EDUCATION,DEPARTMENT FOR EDUCATION,10/07/2013,Grants,Free School Group,TWYFORD CE ACADEMIES TRUST,Public Sector,"Grants paid to organisations including agencies, arms length bodies and educational establishments",4000134957,"73,155"
DEPARTMENT FOR EDUCATION,DEPARTMENT FOR EDUCATION,10/07/2013,Grants,Office of the Schools Commissioner Group,OXFORD DIOCESAN SCHOOL TRUST,Public Sector,"Grants paid to organisations including agencies, arms length bodies and educational establishments",4000134959,"112,000"
DEPARTMENT FOR EDUCATION,DEPARTMENT FOR EDUCATION,10/07/2013,Grants,Office of the Schools Commissioner Group,NEW HALL SCHOOL,Public Sector,"Grants paid to organisations including agencies, arms length bodies and educational establishments",4000135015,"73,257"
DEPARTMENT FOR EDUCATION,DEPARTMENT FOR EDUCATION,10/07/2013,Grants,Academies Delivery Group,SIR JOSEPH WILLIAMSONS MATHEMATICAL SCHOOL,Public Sector,"Grants paid to organisations including agencies, arms length bodies and educational establishments",4000135017,"49,676"
DEPARTMENT FOR EDUCATION,DEPARTMENT FOR EDUCATION,10/07/2013,Grants,Academies Delivery Group,ACADEMY ENTERPRISE TRUST,Public Sector,"Grants paid to organisations including agencies, arms length bodies and educational establishments",4000135021,"125,181"
DEPARTMENT FOR EDUCATION,DEPARTMENT FOR EDUCATION,10/07/2013,Grants,Academies Delivery Group,HABERDASHERS ASKES CRAYFORD ACADEMY,Public Sector,"Grants paid to organisations including agencies, arms length bodies and educational establishments",4000135024,"32,500"
DEPARTMENT FOR EDUCATION,DEPARTMENT FOR EDUCATION,11/07/2013,Grants,Academies Delivery Group,OASIS COMMUNITY LEARNING,Public Sector,"Grants paid to organisations including agencies, arms length bodies and educational establishments",4000135080,"65,000"
DEPARTMENT FOR EDUCATION,DEPARTMENT FOR EDUCATION,11/07/2013,Grants,Academies Delivery Group,THE EDUCATION SCHOOLS TRUST,Public Sector,"Grants paid to organisations including agencies, arms length bodies and educational establishments",4000135085,"90,000"
DEPARTMENT FOR EDUCATION,DEPARTMENT FOR EDUCATION,11/07/2013,Grants,Academies Delivery Group,ORMISTON ACADEMIES TRUST,Public Sector,"Grants paid to organisations including agencies, arms length bodies and educational establishments",4000135114,"90,000"
DEPARTMENT FOR EDUCATION,DEPARTMENT FOR EDUCATION,11/07/2013,Grants,Academies Delivery Group,UNIVERSITY OF CHESTER ACADEMIES TRUST,Public Sector,"Grants paid to organisations including agencies, arms length bodies and educational establishments",4000135130,"35,000"
DEPARTMENT FOR EDUCATION,DEPARTMENT FOR EDUCATION,11/07/2013,Grants,Academies Delivery Group,INSPIRATION TRUST,VCS,"Grants paid to organisations including agencies, arms length bodies and educational establishments",4000135158,"65,000"
DEPARTMENT FOR EDUCATION,DEPARTMENT FOR EDUCATION,11/07/2013,Grants,Academies Delivery Group,SUNNYSIDE PRIMARY SCHOOL,Public Sector,"Grants paid to organisations including agencies, arms length bodies and educational establishments",4000135159,"50,000"
DEPARTMENT FOR EDUCATION,DEPARTMENT FOR EDUCATION,11/07/2013,Grants,Academies Delivery Group,ST MARIA GORETTI CATHOLIC PRIMARY SCHOOL,Public Sector,"Grants paid to organisations including agencies, arms length bodies and educational establishments",4000135160,"25,000"
DEPARTMENT FOR EDUCATION,DEPARTMENT FOR EDUCATION,11/07/2013,Grants,Academies Delivery Group,ST AUGUSTINES CATHOLIC PRIMARY SCHOOL,Public Sector,"Grants paid to organisations including agencies, arms length bodies and educational establishments",4000135161,"25,000"
DEPARTMENT FOR EDUCATION,DEPARTMENT FOR EDUCATION,11/07/2013,Grants,Academies Delivery Group,OUR LADYS CATHOLIC PRIMARY SCHOOL,Public Sector,"Grants paid to organisations including agencies, arms length bodies and educational establishments",4000135162,"25,000"
DEPARTMENT FOR EDUCATION,DEPARTMENT FOR EDUCATION,11/07/2013,Grants,Academies Delivery Group,HULL COLLABORATIVE ACADEMY TRUST,Public Sector,"Grants paid to organisations including agencies, arms length bodies and educational establishments",4000135169,"65,000"
DEPARTMENT FOR EDUCATION,DEPARTMENT FOR EDUCATION,11/07/2013,Grants,Academies Delivery Group,WITTON PARK HIGH SCHOOL,Public Sector,"Grants paid to organisations including agencies, arms length bodies and educational establishments",4000135170,"25,000"
DEPARTMENT FOR EDUCATION,DEPARTMENT FOR EDUCATION,11/07/2013,Grants,Academies Delivery Group,SHREWSBURY ACADEMIES TRUST,Public Sector,"Grants paid to organisations including agencies, arms length bodies and educational establishments",4000135171,"65,000"
DEPARTMENT FOR EDUCATION,DEPARTMENT FOR EDUCATION,11/07/2013,Grants,Academies Delivery Group,CHESTERTON ACADEMY TRUST,Public Sector,"Grants paid to organisations including agencies, arms length bodies and educational establishments",4000135173,"90,000"
DEPARTMENT FOR EDUCATION,DEPARTMENT FOR EDUCATION,11/07/2013,Grants,Academies Delivery Group,RAWMARSH SANDHILL SCHOOL,Public Sector,"Grants paid to organisations including agencies, arms length bodies and educational establishments",4000135180,"25,000"
DEPARTMENT FOR EDUCATION,DEPARTMENT FOR EDUCATION,11/07/2013,Grants,Academies Delivery Group,GABLE HALL SCHOOL,Public Sector,"Grants paid to organisations including agencies, arms length bodies and educational establishments",4000135213,"65,000"
DEPARTMENT FOR EDUCATION,DEPARTMENT FOR EDUCATION,12/07/2013,Grants,Academies Delivery Group,EASTERSIDE PRIMARY SCHOOL,Public Sector,"Grants paid to organisations including agencies, arms length bodies and educational establishments",4000135232,"25,000"
DEPARTMENT FOR EDUCATION,DEPARTMENT FOR EDUCATION,12/07/2013,Grants,Academies Delivery Group,PARKROYAL PRIMARY SCHOOL,Public Sector,"Grants paid to organisations including agencies, arms length bodies and educational establishments",4000135233,"25,000"
DEPARTMENT FOR EDUCATION,DEPARTMENT FOR EDUCATION,12/07/2013,Grants,Academies Delivery Group,VIEWLEY HILL PRIMARY SCHOOL,Public Sector,"Grants paid to organisations including agencies, arms length bodies and educational establishments",4000135240,"25,000"
DEPARTMENT FOR EDUCATION,DEPARTMENT FOR EDUCATION,12/07/2013,Grants,Academies Delivery Group,HEMLINGTON HALL PRIMARY SCHOOL,Public Sector,"Grants paid to organisations including agencies, arms length bodies and educational establishments",4000135241,"25,000"
DEPARTMENT FOR EDUCATION,DEPARTMENT FOR EDUCATION,12/07/2013,Grants,Academies Delivery Group,MARDEN PRIMARY SCHOOL,Public Sector,"Grants paid to organisations including agencies, arms length bodies and educational establishments",4000135242,"25,000"
DEPARTMENT FOR EDUCATION,DEPARTMENT FOR EDUCATION,12/07/2013,Grants,Academies Delivery Group,BISHOP CLEARY CATHOLIC MULTI ACADEMY TRUST,Public Sector,"Grants paid to organisations including agencies, arms length bodies and educational establishments",4000135243,"50,000"
DEPARTMENT FOR EDUCATION,DEPARTMENT FOR EDUCATION,12/07/2013,Grants,Academies Delivery Group,ROSE WOOD PRIMARY SCHOOL,Public Sector,"Grants paid to organisations including agencies, arms length bodies and educational establishments",4000135244,"25,000"
DEPARTMENT FOR EDUCATION,DEPARTMENT FOR EDUCATION,12/07/2013,Grants,Academies Delivery Group,WADEBRIDGE PRIMARY SCHOOL,Public Sector,"Grants paid to organisations including agencies, arms length bodies and educational establishments",4000135318,"40,000"
DEPARTMENT FOR EDUCATION,DEPARTMENT FOR EDUCATION,12/07/2013,Grants,Academies Delivery Group,PASSMORES SCHOOL,Public Sector,"Grants paid to organisations including agencies, arms length bodies and educational establishments",4000135358,"65,000"
DEPARTMENT FOR EDUCATION,DEPARTMENT FOR EDUCATION,12/07/2013,Grants,Academies Delivery Group,ORMISTON ACADEMIES TRUST,Public Sector,"Grants paid to organisations including agencies, arms length bodies and educational establishments",4000135373,"90,000"
DEPARTMENT FOR EDUCATION,DEPARTMENT FOR EDUCATION,12/07/2013,Grants,Academies Delivery Group,UNITED LEARNING TRUST,Public Sector,"Grants paid to organisations including agencies, arms length bodies and educational establishments",4000135378,"65,000"
DEPARTMENT FOR EDUCATION,DEPARTMENT FOR EDUCATION,15/07/2013,Professional Services Other,Education Funding Group,ACL CONSULTING,Commercial,Research and evaluation activities,4000135396,"27,324"
DEPARTMENT FOR EDUCATION,DEPARTMENT FOR EDUCATION,15/07/2013,Grants,Office of the Schools Commissioner Group,NOTTINGHAM RC DIOCESE EDUCATION SERVICE TRUST,Public Sector,"Grants paid to organisations including agencies, arms length bodies and educational establishments",4000135405,"76,356"
DEPARTMENT FOR EDUCATION,DEPARTMENT FOR EDUCATION,16/07/2013,Grants,Academies Delivery Group,DAVID ROSS EDUCATION TRUST,Public Sector,"Grants paid to organisations including agencies, arms length bodies and educational establishments",4000135547,"40,000"
DEPARTMENT FOR EDUCATION,DEPARTMENT FOR EDUCATION,16/07/2013,Grants,Academies Delivery Group,E ACT,Public Sector,"Grants paid to organisations including agencies, arms length bodies and educational establishments",4000135549,"29,658"
DEPARTMENT FOR EDUCATION,DEPARTMENT FOR EDUCATION,16/07/2013,Grants,Academies Delivery Group,NOTTINGHAM RC DIOCESE EDUCATION SERVICE TRUST,Public Sector,"Grants paid to organisations including agencies, arms length bodies and educational establishments",4000135655,"200,000"
DEPARTMENT FOR EDUCATION,DEPARTMENT FOR EDUCATION,16/07/2013,Travel,Free School Group,REDFERN TRAVEL LTD,Commercial,"Staff business travel including air, coach, ferry, rail and taxi",4000135658,"17,737"
DEPARTMENT FOR EDUCATION,DEPARTMENT FOR EDUCATION,16/07/2013,Personnel Related,Free School Group,REDFERN TRAVEL LTD,Commercial,Subsistence and lodging allowances for official duty,4000135658,0
DEPARTMENT FOR EDUCATION,DEPARTMENT FOR EDUCATION,16/07/2013,Travel,System Reform Group,REDFERN TRAVEL LTD,Commercial,"Staff business travel including air, coach, ferry, rail and taxi",4000135658,"4,525"
DEPARTMENT FOR EDUCATION,DEPARTMENT FOR EDUCATION,16/07/2013,Personnel Related,System Reform Group,REDFERN TRAVEL LTD,Commercial,Subsistence and lodging allowances for official duty,4000135658,1
DEPARTMENT FOR EDUCATION,DEPARTMENT FOR EDUCATION,16/07/2013,Travel,Education Funding Group,REDFERN TRAVEL LTD,Commercial,"Staff business travel including air, coach, ferry, rail and taxi",4000135658,"6,278"
DEPARTMENT FOR EDUCATION,DEPARTMENT FOR EDUCATION,16/07/2013,Travel,System Reform Group,REDFERN TRAVEL LTD,Commercial,"Staff business travel including air, coach, ferry, rail and taxi",4000135658,"3,551"
DEPARTMENT FOR EDUCATION,DEPARTMENT FOR EDUCATION,16/07/2013,Travel,System Reform Group,REDFERN TRAVEL LTD,Commercial,"Staff business travel including air, coach, ferry, rail and taxi",4000135658,-113
DEPARTMENT FOR EDUCATION,DEPARTMENT FOR EDUCATION,16/07/2013,Travel,System Reform Group,REDFERN TRAVEL LTD,Commercial,"Staff business travel including air, coach, ferry, rail and taxi",4000135658,"7,787"
DEPARTMENT FOR EDUCATION,DEPARTMENT FOR EDUCATION,16/07/2013,Travel,System Reform Group,REDFERN TRAVEL LTD,Commercial,"Staff business travel including air, coach, ferry, rail and taxi",4000135658,"1,552"
DEPARTMENT FOR EDUCATION,DEPARTMENT FOR EDUCATION,16/07/2013,Travel,System Reform Group,REDFERN TRAVEL LTD,Commercial,"Staff business travel including air, coach, ferry, rail and taxi",4000135658,378
DEPARTMENT FOR EDUCATION,DEPARTMENT FOR EDUCATION,16/07/2013,Travel,Education Funding Group,REDFERN TRAVEL LTD,Commercial,"Staff business travel including air, coach, ferry, rail and taxi",4000135658,"1,541"
DEPARTMENT FOR EDUCATION,DEPARTMENT FOR EDUCATION,16/07/2013,Personnel Related,Education Funding Group,REDFERN TRAVEL LTD,Commercial,Subsistence and lodging allowances for official duty,4000135658,4
DEPARTMENT FOR EDUCATION,DEPARTMENT FOR EDUCATION,16/07/2013,Travel,Education Funding Group,REDFERN TRAVEL LTD,Commercial,"Staff business travel including air, coach, ferry, rail and taxi to attend training events",4000135658,1
DEPARTMENT FOR EDUCATION,DEPARTMENT FOR EDUCATION,16/07/2013,Travel,Education Funding Group,REDFERN TRAVEL LTD,Commercial,"Staff business travel including air, coach, ferry, rail and taxi",4000135658,"2,981"
DEPARTMENT FOR EDUCATION,DEPARTMENT FOR EDUCATION,16/07/2013,Travel,Infrastructure and Funding Directorate Support,REDFERN TRAVEL LTD,Commercial,"Staff business travel including air, coach, ferry, rail and taxi",4000135658,968
DEPARTMENT FOR EDUCATION,DEPARTMENT FOR EDUCATION,16/07/2013,Travel,Education Funding Group,REDFERN TRAVEL LTD,Commercial,"Staff business travel including air, coach, ferry, rail and taxi",4000135658,"6,048"
DEPARTMENT FOR EDUCATION,DEPARTMENT FOR EDUCATION,16/07/2013,Personnel Related,Education Funding Group,REDFERN TRAVEL LTD,Commercial,Subsistence and lodging allowances for official duty,4000135658,1
DEPARTMENT FOR EDUCATION,DEPARTMENT FOR EDUCATION,16/07/2013,Travel,Education Funding Group,REDFERN TRAVEL LTD,Commercial,"Staff business travel including air, coach, ferry, rail and taxi to attend training events",4000135658,1
DEPARTMENT FOR EDUCATION,DEPARTMENT FOR EDUCATION,16/07/2013,Travel,Free School Group,REDFERN TRAVEL LTD,Commercial,"Staff business travel including air, coach, ferry, rail and taxi",4000135658,529
DEPARTMENT FOR EDUCATION,DEPARTMENT FOR EDUCATION,16/07/2013,Travel,Academies Delivery Group,REDFERN TRAVEL LTD,Commercial,"Staff business travel including air, coach, ferry, rail and taxi",4000135658,"11,052"
DEPARTMENT FOR EDUCATION,DEPARTMENT FOR EDUCATION,16/07/2013,Travel,Office of the Schools Commissioner Group,REDFERN TRAVEL LTD,Commercial,"Staff business travel including air, coach, ferry, rail and taxi",4000135658,684
DEPARTMENT FOR EDUCATION,DEPARTMENT FOR EDUCATION,16/07/2013,Travel,Academies Delivery Group,REDFERN TRAVEL LTD,Commercial,"Staff business travel including air, coach, ferry, rail and taxi",4000135658,37
DEPARTMENT FOR EDUCATION,DEPARTMENT FOR EDUCATION,16/07/2013,Travel,Academies Delivery Group,REDFERN TRAVEL LTD,Commercial,"Staff business travel including air, coach, ferry, rail and taxi",4000135658,"6,906"
DEPARTMENT FOR EDUCATION,DEPARTMENT FOR EDUCATION,16/07/2013,Travel,Academies Delivery Group,REDFERN TRAVEL LTD,Commercial,"Staff business travel including air, coach, ferry, rail and taxi",4000135658,"4,134"
DEPARTMENT FOR EDUCATION,DEPARTMENT FOR EDUCATION,16/07/2013,Personnel Related,Academies Delivery Group,REDFERN TRAVEL LTD,Commercial,Subsistence and lodging allowances for official duty,4000135658,1
DEPARTMENT FOR EDUCATION,DEPARTMENT FOR EDUCATION,16/07/2013,Travel,Academies Delivery Group,REDFERN TRAVEL LTD,Commercial,"Staff business travel including air, coach, ferry, rail and taxi",4000135658,"5,834"
DEPARTMENT FOR EDUCATION,DEPARTMENT FOR EDUCATION,16/07/2013,Personnel Related,Academies Delivery Group,REDFERN TRAVEL LTD,Commercial,Subsistence and lodging allowances for official duty,4000135658,1
DEPARTMENT FOR EDUCATION,DEPARTMENT FOR EDUCATION,16/07/2013,Travel,Office of the Schools Commissioner Group,REDFERN TRAVEL LTD,Commercial,"Staff business travel including air, coach, ferry, rail and taxi",4000135658,"2,106"
DEPARTMENT FOR EDUCATION,DEPARTMENT FOR EDUCATION,16/07/2013,Travel,Free School Group,REDFERN TRAVEL LTD,Commercial,"Staff business travel including air, coach, ferry, rail and taxi",4000135658,"1,849"
DEPARTMENT FOR EDUCATION,DEPARTMENT FOR EDUCATION,16/07/2013,Travel,Free School Group,REDFERN TRAVEL LTD,Commercial,"Staff business travel including air, coach, ferry, rail and taxi",4000135658,645
DEPARTMENT FOR EDUCATION,DEPARTMENT FOR EDUCATION,16/07/2013,Travel,Free School Group,REDFERN TRAVEL LTD,Commercial,"Staff business travel including air, coach, ferry, rail and taxi",4000135658,"1,174"
DEPARTMENT FOR EDUCATION,DEPARTMENT FOR EDUCATION,16/07/2013,Travel,Free School Group,REDFERN TRAVEL LTD,Commercial,"Staff business travel including air, coach, ferry, rail and taxi",4000135658,964
DEPARTMENT FOR EDUCATION,DEPARTMENT FOR EDUCATION,16/07/2013,Professional Services Consultancy and Contingent Labour,Free School Group,REDFERN TRAVEL LTD,Commercial,"Fees / expenses of professionals from the private sector such as auditors, accountants, lawyers, etc. engaged to provide advice or opinion on how to affect something",4000135658,0
DEPARTMENT FOR EDUCATION,DEPARTMENT FOR EDUCATION,16/07/2013,Professional Services Other,Education Funding Group,MILLS & REEVE LLP,Commercial,"Fees / expenses of professionals from the private sector, for example to implement advice or changes",4000135686,"90,161"
DEPARTMENT FOR EDUCATION,DEPARTMENT FOR EDUCATION,16/07/2013,Grants,Academies Delivery Group,HARRIS FEDERATION,Public Sector,"Grants paid to organisations including agencies, arms length bodies and educational establishments",4000135709,"220,000"
DEPARTMENT FOR EDUCATION,DEPARTMENT FOR EDUCATION,17/07/2013,Grants,Academies Delivery Group,UNITED LEARNING TRUST,Public Sector,"Grants paid to organisations including agencies, arms length bodies and educational establishments",4000135792,"120,000"
DEPARTMENT FOR EDUCATION,DEPARTMENT FOR EDUCATION,17/07/2013,Grants,Academies Delivery Group,ARK SCHOOLS,Public Sector,"Grants paid to organisations including agencies, arms length bodies and educational establishments",4000135801,"62,691"
DEPARTMENT FOR EDUCATION,DEPARTMENT FOR EDUCATION,17/07/2013,Communications,System Reform Group,PROLOG,Commercial,Marketing services,4000135836,386
DEPARTMENT FOR EDUCATION,DEPARTMENT FOR EDUCATION,17/07/2013,Grants,Academies Delivery Group,NEW HALL SCHOOL,Public Sector,"Grants paid to organisations including agencies, arms length bodies and educational establishments",4000135874,"120,000"
DEPARTMENT FOR EDUCATION,DEPARTMENT FOR EDUCATION,18/07/2013,Grants,Academies Delivery Group,HOGARTH PRIMARY & NURSERY SCHOOL,Public Sector,"Grants paid to organisations including agencies, arms length bodies and educational establishments",4000135925,"25,000"
DEPARTMENT FOR EDUCATION,DEPARTMENT FOR EDUCATION,18/07/2013,Grants,Academies Delivery Group,WORCESTERSHIRE COUNTY COUNCIL,Public Sector,"Grants paid to organisations including agencies, arms length bodies and educational establishments",4000135930,"25,000"
DEPARTMENT FOR EDUCATION,DEPARTMENT FOR EDUCATION,18/07/2013,Grants,Academies Delivery Group,DIOCESE OF ELY MULTI ACADEMY TRUST,Public Sector,"Grants paid to organisations including agencies, arms length bodies and educational establishments",4000135937,"65,000"
DEPARTMENT FOR EDUCATION,DEPARTMENT FOR EDUCATION,18/07/2013,Grants,Academies Delivery Group,NASEBY CE PRIMARY SCHOOL,Public Sector,"Grants paid to organisations including agencies, arms length bodies and educational establishments",4000135938,"25,000"
DEPARTMENT FOR EDUCATION,DEPARTMENT FOR EDUCATION,18/07/2013,Grants,Academies Delivery Group,THE VILLAGE ACADEMY,Public Sector,"Grants paid to organisations including agencies, arms length bodies and educational establishments",4000135939,"65,000"
DEPARTMENT FOR EDUCATION,DEPARTMENT FOR EDUCATION,18/07/2013,Grants,Academies Delivery Group,CONNECTED LEARNING,Commercial,"Grants paid to organisations including agencies, arms length bodies and educational establishments",4000135940,"65,000"
DEPARTMENT FOR EDUCATION,DEPARTMENT FOR EDUCATION,18/07/2013,Grants,Academies Delivery Group,DUNSWELL PRIMARY SCHOOL,Public Sector,"Grants paid to organisations including agencies, arms length bodies and educational establishments",4000135956,"25,000"
DEPARTMENT FOR EDUCATION,DEPARTMENT FOR EDUCATION,18/07/2013,Grants,Academies Delivery Group,THE CORNELIUS VERMUYDEN SCHOOL,Public Sector,"Grants paid to organisations including agencies, arms length bodies and educational establishments",4000135957,"25,000"
DEPARTMENT FOR EDUCATION,DEPARTMENT FOR EDUCATION,18/07/2013,Grants,Academies Delivery Group,ASH GROVE PRIMARY SCHOOL,Public Sector,"Grants paid to organisations including agencies, arms length bodies and educational establishments",4000135958,"25,000"
DEPARTMENT FOR EDUCATION,DEPARTMENT FOR EDUCATION,18/07/2013,Grants,Academies Delivery Group,DAVID ROSS EDUCATION TRUST,Public Sector,"Grants paid to organisations including agencies, arms length bodies and educational establishments",4000135959,"25,000"
DEPARTMENT FOR EDUCATION,DEPARTMENT FOR EDUCATION,18/07/2013,Grants,Academies Delivery Group,CAVENDISH HIGH SCHOOL,Public Sector,"Grants paid to organisations including agencies, arms length bodies and educational establishments",4000135981,"25,000"
DEPARTMENT FOR EDUCATION,DEPARTMENT FOR EDUCATION,18/07/2013,Grants,Academies Delivery Group,THE DIOCESE OF COVENTRY,Public Sector,"Grants paid to organisations including agencies, arms length bodies and educational establishments",4000136009,"65,000"
DEPARTMENT FOR EDUCATION,DEPARTMENT FOR EDUCATION,18/07/2013,Grants,Free School Group,THE SIVERSTONE ACADEMY TRUST,Public Sector,"Grants paid to organisations including agencies, arms length bodies and educational establishments",4000136022,"46,194"
DEPARTMENT FOR EDUCATION,DEPARTMENT FOR EDUCATION,18/07/2013,Grants,Office of the Schools Commissioner Group,LITTLE MEAD ACADEMY TRUST,Public Sector,"Grants paid to organisations including agencies, arms length bodies and educational establishments",4000136030,"38,000"
DEPARTMENT FOR EDUCATION,DEPARTMENT FOR EDUCATION,18/07/2013,Grants,Office of the Schools Commissioner Group,PENDLE EDUCATION TRUST,Public Sector,"Grants paid to organisations including agencies, arms length bodies and educational establishments",4000136043,"45,700"
DEPARTMENT FOR EDUCATION,DEPARTMENT FOR EDUCATION,18/07/2013,Grants,Academies Delivery Group,THE CORNWALL ACADEMY TRUST,Public Sector,"Grants paid to organisations including agencies, arms length bodies and educational establishments",4000136044,"65,000"
DEPARTMENT FOR EDUCATION,DEPARTMENT FOR EDUCATION,18/07/2013,Grants,Academies Delivery Group,PERRY HALL PRIMARY SCHOOL,Public Sector,"Grants paid to organisations including agencies, arms length bodies and educational establishments",4000136066,"25,000"
DEPARTMENT FOR EDUCATION,DEPARTMENT FOR EDUCATION,18/07/2013,Grants,Academies Delivery Group,LANESEND PRIMARY SCHOOL,Public Sector,"Grants paid to organisations including agencies, arms length bodies and educational establishments",4000136074,"25,000"
DEPARTMENT FOR EDUCATION,DEPARTMENT FOR EDUCATION,18/07/2013,Grants,Academies Delivery Group,ACADEMY ENTERPRISE TRUST,Public Sector,Capital grants paid to a private sector organisation,4000136083,"33,614"
DEPARTMENT FOR EDUCATION,DEPARTMENT FOR EDUCATION,18/07/2013,Grants,Office of the Schools Commissioner Group,PORTSMOUTH & WINCHESTER DIOCESAN ACADEMIES TRUST,Public Sector,"Grants paid to organisations including agencies, arms length bodies and educational establishments",4000136084,"86,400"
DEPARTMENT FOR EDUCATION,DEPARTMENT FOR EDUCATION,19/07/2013,Grants,Academies Delivery Group,THE JCB ACADEMY,Public Sector,Capital grants paid to a private sector organisation,4000136218,"29,091"
DEPARTMENT FOR EDUCATION,DEPARTMENT FOR EDUCATION,19/07/2013,Grants,Academies Delivery Group,ARK SCHOOLS,Public Sector,"Grants paid to organisations including agencies, arms length bodies and educational establishments",4000136249,"120,000"
DEPARTMENT FOR EDUCATION,DEPARTMENT FOR EDUCATION,19/07/2013,Grants,Free School Group,SALISBURY SIXTH FORM COLLEGE,Public Sector,"Grants paid to organisations including agencies, arms length bodies and educational establishments",4000136293,"75,000"
DEPARTMENT FOR EDUCATION,DEPARTMENT FOR EDUCATION,24/07/2013,Grants,Academies Delivery Group,FOSSE WAY SCHOOL,Public Sector,"Grants paid to organisations including agencies, arms length bodies and educational establishments",4000136975,"65,000"
DEPARTMENT FOR EDUCATION,DEPARTMENT FOR EDUCATION,24/07/2013,Grants,Free School Group,THE DAVENTRY ACADEMY TRUST,Public Sector,"Grants paid to organisations including agencies, arms length bodies and educational establishments",4000137051,"53,273"
DEPARTMENT FOR EDUCATION,DEPARTMENT FOR EDUCATION,24/07/2013,Grants,Free School Group,STEINER ACADEMY BRISTOL LTD,Public Sector,"Grants paid to organisations including agencies, arms length bodies and educational establishments",4000137062,"90,000"
DEPARTMENT FOR EDUCATION,DEPARTMENT FOR EDUCATION,24/07/2013,Grants,Free School Group,ISLAND FREE SCHOOL,Public Sector,"Grants paid to organisations including agencies, arms length bodies and educational establishments",4000137063,"90,000"
DEPARTMENT FOR EDUCATION,DEPARTMENT FOR EDUCATION,24/07/2013,Grants,Academies Delivery Group,THE FERRERS SPECIALIST ARTS COLLEGE,Public Sector,"Grants paid to organisations including agencies, arms length bodies and educational establishments",4000137064,"25,000"
DEPARTMENT FOR EDUCATION,DEPARTMENT FOR EDUCATION,24/07/2013,Grants,Academies Delivery Group,KIRBY MUXLOE PRIMARY SCHOOL,Public Sector,"Grants paid to organisations including agencies, arms length bodies and educational establishments",4000137066,"25,000"
DEPARTMENT FOR EDUCATION,DEPARTMENT FOR EDUCATION,24/07/2013,Grants,Academies Delivery Group,HAWTHORN PRIMARY SCHOOL,Public Sector,"Grants paid to organisations including agencies, arms length bodies and educational establishments",4000137090,"25,000"
DEPARTMENT FOR EDUCATION,DEPARTMENT FOR EDUCATION,24/07/2013,Grants,Academies Delivery Group,LOXFORD SCHOOL OF SCIENCE & TECHNOLOGY,Public Sector,"Grants paid to organisations including agencies, arms length bodies and educational establishments",4000137091,"25,000"
DEPARTMENT FOR EDUCATION,DEPARTMENT FOR EDUCATION,24/07/2013,Grants,Academies Delivery Group,DAVID ROSS EDUCATION TRUST,Public Sector,"Grants paid to organisations including agencies, arms length bodies and educational establishments",4000137094,"25,000"
DEPARTMENT FOR EDUCATION,DEPARTMENT FOR EDUCATION,24/07/2013,Grants,Free School Group,COBHAM FREE SCHOOL,Public Sector,"Grants paid to organisations including agencies, arms length bodies and educational establishments",4000137117,"90,000"
DEPARTMENT FOR EDUCATION,DEPARTMENT FOR EDUCATION,24/07/2013,Grants,Academies Delivery Group,BARNEHURST JUNIOR SCHOOL,Public Sector,"Grants paid to organisations including agencies, arms length bodies and educational establishments",4000137212,"25,000"
DEPARTMENT FOR EDUCATION,DEPARTMENT FOR EDUCATION,24/07/2013,Grants,Academies Delivery Group,ROTHERHAM MBC,Public Sector,"Grants paid to organisations including agencies, arms length bodies and educational establishments",4000137242,"25,000"
DEPARTMENT FOR EDUCATION,DEPARTMENT FOR EDUCATION,24/07/2013,Grants,Academies Delivery Group,CITY OF STOKE ON TRENT,Public Sector,To clear budget deficit liability of a maintained school to facilitate conversion to an academy.,4000137250,"39,629"
DEPARTMENT FOR EDUCATION,DEPARTMENT FOR EDUCATION,24/07/2013,Grants,Academies Delivery Group,ST MARYS ACADEMY TRUST,Public Sector,"Grants paid to organisations including agencies, arms length bodies and educational establishments",4000137253,"65,000"
DEPARTMENT FOR EDUCATION,DEPARTMENT FOR EDUCATION,25/07/2013,Grants,System Reform Group,SCHOOL GOVERNORS ONE STOP SHOP,VCS,Grants to third sector organisations / not for profit organisations,4000137574,"207,366"
DEPARTMENT FOR EDUCATION,DEPARTMENT FOR EDUCATION,25/07/2013,Grants,Academies Delivery Group,THE ELLIOT FOUNDATION ACADEMIES TRUST,Public Sector,"Grants paid to organisations including agencies, arms length bodies and educational establishments",4000137676,"120,000"
DEPARTMENT FOR EDUCATION,DEPARTMENT FOR EDUCATION,26/07/2013,Grants,Free School Group,HARPERBURY FREE SCHOOL,Public Sector,"Grants paid to organisations including agencies, arms length bodies and educational establishments",4000137940,"90,000"
DEPARTMENT FOR EDUCATION,DEPARTMENT FOR EDUCATION,29/07/2013,ICT,Free School Group,VODAFONE CORPORATE,Commercial,Telecoms Facilities and Services,4000138092,"2,263"
DEPARTMENT FOR EDUCATION,DEPARTMENT FOR EDUCATION,29/07/2013,ICT,System Reform Group,VODAFONE CORPORATE,Commercial,Telecoms Facilities and Services,4000138092,488
DEPARTMENT FOR EDUCATION,DEPARTMENT FOR EDUCATION,29/07/2013,ICT,Education Funding Group,VODAFONE CORPORATE,Commercial,Telecoms Facilities and Services,4000138092,362
DEPARTMENT FOR EDUCATION,DEPARTMENT FOR EDUCATION,29/07/2013,ICT,System Reform Group,VODAFONE CORPORATE,Commercial,Telecoms Facilities and Services,4000138092,428
DEPARTMENT FOR EDUCATION,DEPARTMENT FOR EDUCATION,29/07/2013,ICT,System Reform Group,VODAFONE CORPORATE,Commercial,Telecoms Facilities and Services,4000138092,284
DEPARTMENT FOR EDUCATION,DEPARTMENT FOR EDUCATION,29/07/2013,ICT,System Reform Group,VODAFONE CORPORATE,Commercial,Telecoms Facilities and Services,4000138092,78
DEPARTMENT FOR EDUCATION,DEPARTMENT FOR EDUCATION,29/07/2013,ICT,System Reform Group,VODAFONE CORPORATE,Commercial,Telecoms Facilities and Services,4000138092,"1,385"
DEPARTMENT FOR EDUCATION,DEPARTMENT FOR EDUCATION,29/07/2013,ICT,System Reform Group,VODAFONE CORPORATE,Commercial,Telecoms Facilities and Services,4000138092,78
DEPARTMENT FOR EDUCATION,DEPARTMENT FOR EDUCATION,29/07/2013,ICT,System Reform Group,VODAFONE CORPORATE,Commercial,Telecoms Facilities and Services,4000138092,78
DEPARTMENT FOR EDUCATION,DEPARTMENT FOR EDUCATION,29/07/2013,ICT,Education Funding Group,VODAFONE CORPORATE,Commercial,Telecoms Facilities and Services,4000138092,93
DEPARTMENT FOR EDUCATION,DEPARTMENT FOR EDUCATION,29/07/2013,ICT,Education Funding Group,VODAFONE CORPORATE,Commercial,Telecoms Facilities and Services,4000138092,459
DEPARTMENT FOR EDUCATION,DEPARTMENT FOR EDUCATION,29/07/2013,ICT,Infrastructure and Funding Directorate Support,VODAFONE CORPORATE,Commercial,Telecoms Facilities and Services,4000138092,172
DEPARTMENT FOR EDUCATION,DEPARTMENT FOR EDUCATION,29/07/2013,ICT,Education Funding Group,VODAFONE CORPORATE,Commercial,Telecoms Facilities and Services,4000138092,44
DEPARTMENT FOR EDUCATION,DEPARTMENT FOR EDUCATION,29/07/2013,ICT,Free School Group,VODAFONE CORPORATE,Commercial,Telecoms Facilities and Services,4000138092,155
DEPARTMENT FOR EDUCATION,DEPARTMENT FOR EDUCATION,29/07/2013,ICT,Academies Delivery Group,VODAFONE CORPORATE,Commercial,Telecoms Facilities and Services,4000138092,"2,012"
DEPARTMENT FOR EDUCATION,DEPARTMENT FOR EDUCATION,29/07/2013,ICT,Office of the Schools Commissioner Group,VODAFONE CORPORATE,Commercial,Telecoms Facilities and Services,4000138092,754
DEPARTMENT FOR EDUCATION,DEPARTMENT FOR EDUCATION,29/07/2013,ICT,Academies Delivery Group,VODAFONE CORPORATE,Commercial,Telecoms Facilities and Services,4000138092,38
DEPARTMENT FOR EDUCATION,DEPARTMENT FOR EDUCATION,29/07/2013,ICT,Academies Delivery Group,VODAFONE CORPORATE,Commercial,Telecoms Facilities and Services,4000138092,"2,052"
DEPARTMENT FOR EDUCATION,DEPARTMENT FOR EDUCATION,29/07/2013,ICT,Academies Delivery Group,VODAFONE CORPORATE,Commercial,Telecoms Facilities and Services,4000138092,604
DEPARTMENT FOR EDUCATION,DEPARTMENT FOR EDUCATION,29/07/2013,ICT,Academies Delivery Group,VODAFONE CORPORATE,Commercial,Telecoms Facilities and Services,4000138092,120
DEPARTMENT FOR EDUCATION,DEPARTMENT FOR EDUCATION,29/07/2013,ICT,Office of the Schools Commissioner Group,VODAFONE CORPORATE,Commercial,Telecoms Facilities and Services,4000138092,290
DEPARTMENT FOR EDUCATION,DEPARTMENT FOR EDUCATION,29/07/2013,ICT,Free School Group,VODAFONE CORPORATE,Commercial,Telecoms Facilities and Services,4000138092,-1
DEPARTMENT FOR EDUCATION,DEPARTMENT FOR EDUCATION,29/07/2013,ICT,Free School Group,VODAFONE CORPORATE,Commercial,Telecoms Facilities and Services,4000138092,129
DEPARTMENT FOR EDUCATION,DEPARTMENT FOR EDUCATION,29/07/2013,ICT,Free School Group,VODAFONE CORPORATE,Commercial,Telecoms Facilities and Services,4000138092,11
DEPARTMENT FOR EDUCATION,DEPARTMENT FOR EDUCATION,29/07/2013,ICT,Free School Group,VODAFONE CORPORATE,Commercial,Telecoms Facilities and Services,4000138092,77
DEPARTMENT FOR EDUCATION,DEPARTMENT FOR EDUCATION,29/07/2013,ICT,Free School Group,VODAFONE CORPORATE,Commercial,Telecoms Facilities and Services,4000138092,38
DEPARTMENT FOR EDUCATION,DEPARTMENT FOR EDUCATION,29/07/2013,ICT,System Reform Group,VODAFONE CORPORATE,Commercial,Telecoms Facilities and Services,4000138092,58
DEPARTMENT FOR EDUCATION,DEPARTMENT FOR EDUCATION,29/07/2013,Grants,Academies Delivery Group,NORTHERN EDUCATION TRUST,Public Sector,"Grants paid to organisations including agencies, arms length bodies and educational establishments",4000138145,"200,000"
DEPARTMENT FOR EDUCATION,DEPARTMENT FOR EDUCATION,29/07/2013,Grants,Academies Delivery Group,HILLCREST PRIMARY SCHOOL,Public Sector,"Grants paid to organisations including agencies, arms length bodies and educational establishments",4000138225,"40,000"
DEPARTMENT FOR EDUCATION,DEPARTMENT FOR EDUCATION,30/07/2013,Grants,Academies Delivery Group,UNITED LEARNING TRUST,Public Sector,"Grants paid to organisations including agencies, arms length bodies and educational establishments",4000138369,"100,000"
DEPARTMENT FOR EDUCATION,DEPARTMENT FOR EDUCATION,30/07/2013,Grants,Academies Delivery Group,GREAT MISSENDEN C OF E COMBINED SCHOOL,Public Sector,"Grants paid to organisations including agencies, arms length bodies and educational establishments",4000138384,"25,000"
DEPARTMENT FOR EDUCATION,DEPARTMENT FOR EDUCATION,30/07/2013,Grants,Academies Delivery Group,CHELMSFORD DIOCESAN BOARD OF FINANCE,Public Sector,"Grants paid to organisations including agencies, arms length bodies and educational establishments",4000138397,"130,000"
DEPARTMENT FOR EDUCATION,DEPARTMENT FOR EDUCATION,30/07/2013,Grants,Academies Delivery Group,SKELTON PRIMARY SCHOOL,Public Sector,"Grants paid to organisations including agencies, arms length bodies and educational establishments",4000138398,"25,000"
DEPARTMENT FOR EDUCATION,DEPARTMENT FOR EDUCATION,30/07/2013,Grants,Academies Delivery Group,NET ACADEMIES TRUST,Public Sector,"Grants paid to organisations including agencies, arms length bodies and educational establishments",4000138399,"65,000"
DEPARTMENT FOR EDUCATION,DEPARTMENT FOR EDUCATION,30/07/2013,Grants,Academies Delivery Group,FURLEY PARK PRIMARY SCHOOL,Public Sector,"Grants paid to organisations including agencies, arms length bodies and educational establishments",4000138400,"25,000"
DEPARTMENT FOR EDUCATION,DEPARTMENT FOR EDUCATION,30/07/2013,Grants,Academies Delivery Group,NOTLEY HIGH SCHOOL & BRAINTREE SIXTH FORM,Public Sector,"Grants paid to organisations including agencies, arms length bodies and educational establishments",4000138404,"50,000"
DEPARTMENT FOR EDUCATION,DEPARTMENT FOR EDUCATION,30/07/2013,Grants,Academies Delivery Group,ATWOOD PRIMARY SCHOOL,Public Sector,"Grants paid to organisations including agencies, arms length bodies and educational establishments",4000138414,"25,000"
DEPARTMENT FOR EDUCATION,DEPARTMENT FOR EDUCATION,30/07/2013,Grants,Academies Delivery Group,ASPIRATIONS ACADEMIES TRUST,Public Sector,"Grants paid to organisations including agencies, arms length bodies and educational establishments",4000138416,"40,000"
DEPARTMENT FOR EDUCATION,DEPARTMENT FOR EDUCATION,30/07/2013,Grants,Academies Delivery Group,HARRIS FEDERATION,Public Sector,"Grants paid to organisations including agencies, arms length bodies and educational establishments",4000138490,"220,000"
DEPARTMENT FOR EDUCATION,DEPARTMENT FOR EDUCATION,30/07/2013,Grants,Academies Delivery Group,JEFFERYS EDUCATION TRUST,Public Sector,"Grants paid to organisations including agencies, arms length bodies and educational establishments",4000138491,"26,250"
DEPARTMENT FOR EDUCATION,DEPARTMENT FOR EDUCATION,30/07/2013,Grants,Academies Delivery Group,THE DIOCESE OF GLOUCESTER ACADEMIES TRUST,Public Sector,"Grants paid to organisations including agencies, arms length bodies and educational establishments",4000138503,"40,000"
DEPARTMENT FOR EDUCATION,DEPARTMENT FOR EDUCATION,30/07/2013,Grants,Academies Delivery Group,GEORGE SPENCER ACADEMY TRUST,Public Sector,"Grants paid to organisations including agencies, arms length bodies and educational establishments",4000138505,"25,000"
DEPARTMENT FOR EDUCATION,DEPARTMENT FOR EDUCATION,30/07/2013,Grants,Academies Delivery Group,HAMSTREET PRIMARY SCHOOL,Public Sector,"Grants paid to organisations including agencies, arms length bodies and educational establishments",4000138506,"25,000"
DEPARTMENT FOR EDUCATION,DEPARTMENT FOR EDUCATION,30/07/2013,Grants,Academies Delivery Group,ORIEL SCHOOL,Public Sector,"Grants paid to organisations including agencies, arms length bodies and educational establishments",4000138518,"25,000"
DEPARTMENT FOR EDUCATION,DEPARTMENT FOR EDUCATION,30/07/2013,Grants,Academies Delivery Group,HARRIS FEDERATION OF SOUTH LONDON SCHOOLS,Public Sector,"Grants paid to organisations including agencies, arms length bodies and educational establishments",4000138526,"30,000"
DEPARTMENT FOR EDUCATION,DEPARTMENT FOR EDUCATION,30/07/2013,Grants,Academies Delivery Group,OASIS COMMUNITY LEARNING,Public Sector,"Grants paid to organisations including agencies, arms length bodies and educational establishments",4000138535,"40,000"
DEPARTMENT FOR EDUCATION,DEPARTMENT FOR EDUCATION,30/07/2013,Grants,Academies Delivery Group,E ACT,Public Sector,"Grants paid to organisations including agencies, arms length bodies and educational establishments",4000138536,"60,000"
DEPARTMENT FOR EDUCATION,DEPARTMENT FOR EDUCATION,30/07/2013,Grants,Academies Delivery Group,BISHOP MILNER CATHOLIC SCHOOL,Public Sector,"Grants paid to organisations including agencies, arms length bodies and educational establishments",4000138554,"50,000"
DEPARTMENT FOR EDUCATION,DEPARTMENT FOR EDUCATION,30/07/2013,Grants,Academies Delivery Group,HASTINGS ACADEMIES TRUST,Public Sector,"Grants paid to organisations including agencies, arms length bodies and educational establishments",4000138556,"65,000"
DEPARTMENT FOR EDUCATION,DEPARTMENT FOR EDUCATION,31/07/2013,Grants,Free School Group,CAMBRIDGE UTC,Public Sector,"Grants paid to organisations including agencies, arms length bodies and educational establishments",4000138579,"30,000"
DEPARTMENT FOR EDUCATION,DEPARTMENT FOR EDUCATION,31/07/2013,Grants,Free School Group,HARLOW UTC LTD,Public Sector,"Grants paid to organisations including agencies, arms length bodies and educational establishments",4000138581,"30,000"
DEPARTMENT FOR EDUCATION,DEPARTMENT FOR EDUCATION,31/07/2013,Grants,Free School Group,LINCOLN UTC,Public Sector,"Grants paid to organisations including agencies, arms length bodies and educational establishments",4000138611,"30,000"
DEPARTMENT FOR EDUCATION,DEPARTMENT FOR EDUCATION,31/07/2013,Grants,Free School Group,ENERGY COAST UTC,Public Sector,"Grants paid to organisations including agencies, arms length bodies and educational establishments",4000138630,"30,000"
DEPARTMENT FOR EDUCATION,DEPARTMENT FOR EDUCATION,31/07/2013,Grants,Free School Group,THE SASH SCHOOL,Public Sector,"Grants paid to organisations including agencies, arms length bodies and educational establishments",4000138631,"30,000"
DEPARTMENT FOR EDUCATION,DEPARTMENT FOR EDUCATION,31/07/2013,Grants,Academies Delivery Group,THE ROWAN LEARNING TRUST,Public Sector,"Grants paid to organisations including agencies, arms length bodies and educational establishments",4000138634,"75,000"
DEPARTMENT FOR EDUCATION,DEPARTMENT FOR EDUCATION,31/07/2013,Grants,Free School Group,COLLABORATIVE TRAINING SOLUTIONS,Public Sector,"Grants paid to organisations including agencies, arms length bodies and educational establishments",4000138635,"30,000"
DEPARTMENT FOR EDUCATION,DEPARTMENT FOR EDUCATION,31/07/2013,Grants,Free School Group,UTC SWINDON,Public Sector,"Grants paid to organisations including agencies, arms length bodies and educational establishments",4000138636,"30,000"
DEPARTMENT FOR EDUCATION,DEPARTMENT FOR EDUCATION,31/07/2013,Grants,Free School Group,THE BUCKINGHAMSHIRE ACADEMY TRUST,Public Sector,"Grants paid to organisations including agencies, arms length bodies and educational establishments",4000138640,"38,252"
DEPARTMENT FOR EDUCATION,DEPARTMENT FOR EDUCATION,31/07/2013,Grants,Free School Group,WMG ACADEMY FOR YOUNG ENGINEERS,Public Sector,"Grants paid to organisations including agencies, arms length bodies and educational establishments",4000138642,"30,000"
DEPARTMENT FOR EDUCATION,DEPARTMENT FOR EDUCATION,31/07/2013,Grants,Free School Group,CENTRAL BEDFORDSHIRE ACADEMY TRUST,Public Sector,"Grants paid to organisations including agencies, arms length bodies and educational establishments",4000138643,"45,983"
DEPARTMENT FOR EDUCATION,DEPARTMENT FOR EDUCATION,31/07/2013,Grants,Free School Group,CREATIVE INDUSTRIES UTC,Public Sector,"Grants paid to organisations including agencies, arms length bodies and educational establishments",4000138644,"30,000"
DEPARTMENT FOR EDUCATION,DEPARTMENT FOR EDUCATION,31/07/2013,Grants,Free School Group,WEST MIDLANDS CONSTRUCTION UTC,Public Sector,"Grants paid to organisations including agencies, arms length bodies and educational establishments",4000138653,"30,000"
DEPARTMENT FOR EDUCATION,DEPARTMENT FOR EDUCATION,31/07/2013,Grants,Academies Delivery Group,ACADEMY ENTERPRISE TRUST,Public Sector,"Grants paid to organisations including agencies, arms length bodies and educational establishments",4000138665,"128,907"
DEPARTMENT FOR EDUCATION,DEPARTMENT FOR EDUCATION,31/07/2013,Grants,Free School Group,LYNCH HILL SCHOOL PRIMARY ACADEMY,Public Sector,"Grants paid to organisations including agencies, arms length bodies and educational establishments",4000138684,"30,000"
DEPARTMENT FOR EDUCATION,DEPARTMENT FOR EDUCATION,31/07/2013,Grants,Academies Delivery Group,ASPIRATION ACADEMIES TRUST,Public Sector,"Grants paid to organisations including agencies, arms length bodies and educational establishments",4000138701,"100,000"
DEPARTMENT FOR EDUCATION,DEPARTMENT FOR EDUCATION,31/07/2013,Grants,Free School Group,NORFOLK UTC,Public Sector,"Grants paid to organisations including agencies, arms length bodies and educational establishments",4000138713,"30,000"
DEPARTMENT FOR EDUCATION,DEPARTMENT FOR EDUCATION,31/07/2013,Grants,Academies Delivery Group,REACH 2 LTD,Commercial,"Grants paid to organisations including agencies, arms length bodies and educational establishments",4000138715,"60,000"
DEPARTMENT FOR EDUCATION,DEPARTMENT FOR EDUCATION,31/07/2013,Grants,Free School Group,HEATHROW AVIATION ENGINEERING UTC,Public Sector,"Grants paid to organisations including agencies, arms length bodies and educational establishments",4000138723,"30,000"
DEPARTMENT FOR EDUCATION,DEPARTMENT FOR EDUCATION,31/07/2013,Grants,Free School Group,KHALSA SECONDARY SCHOOL,Public Sector,"Grants paid to organisations including agencies, arms length bodies and educational establishments",4000138736,"60,000"
DEPARTMENT FOR EDUCATION,DEPARTMENT FOR EDUCATION,31/07/2013,Professional Services Other,System Reform Group,DLA PIPER UK LLP,Commercial,Legal services provided externally (excluding Treasury Solicitor) ,4000138751,"47,964"
DEPARTMENT FOR EDUCATION,DEPARTMENT FOR EDUCATION,16/07/2013,Travel,Legal Advisers Office,REDFERN TRAVEL LTD,Commercial,"Staff business travel including air, coach, ferry, rail and taxi",4000135658,773
DEPARTMENT FOR EDUCATION,DEPARTMENT FOR EDUCATION,29/07/2013,ICT,Legal Advisers Office,VODAFONE CORPORATE,Commercial,Telecoms Facilities and Services,4000138092,150
DEPARTMENT FOR EDUCATION,NATIONAL COLLEGE FOR SCHOOL LEADERSHIP AGENCY,18/07/2013,Programme costs,Membership Directorate,STEPHEN LEWIS ASSOCIATES LTD,Commercial,Funding to deliver policies (excluding consultancy) paid to third parties via a service delivery contract,3000178,"25,261"
DEPARTMENT FOR EDUCATION,NATIONAL COLLEGE FOR SCHOOL LEADERSHIP AGENCY,01/07/2013,Grants,Teaching Schools Directorate,THE KINGFISHER COMMUNITY SCHOOL TS ACCOUNT,Public Sector,"Grants paid to organisations including agencies, arms length bodies and educational establishments",4000133185,"33,000"
DEPARTMENT FOR EDUCATION,NATIONAL COLLEGE FOR SCHOOL LEADERSHIP AGENCY,01/07/2013,Grants,Teaching Schools Directorate,SWAVESEY VILLAGE COLLEGE TS ACCOUNT,Public Sector,"Grants paid to organisations including agencies, arms length bodies and educational establishments",4000133186,"33,000"
DEPARTMENT FOR EDUCATION,NATIONAL COLLEGE FOR SCHOOL LEADERSHIP AGENCY,01/07/2013,Grants,Teaching Schools Directorate,SOUTHFIELDS ACADEMY TS ACCOUNT,Public Sector,"Grants paid to organisations including agencies, arms length bodies and educational establishments",4000133187,"33,000"
DEPARTMENT FOR EDUCATION,NATIONAL COLLEGE FOR SCHOOL LEADERSHIP AGENCY,01/07/2013,Grants,Teaching Schools Directorate,THE ORCHARD TS ACCOUNT,Public Sector,"Grants paid to organisations including agencies, arms length bodies and educational establishments",4000133188,"33,000"
DEPARTMENT FOR EDUCATION,NATIONAL COLLEGE FOR SCHOOL LEADERSHIP AGENCY,01/07/2013,Grants,Teaching Schools Directorate,THE FALLIBROOME ACADEMY,Public Sector,"Grants paid to organisations including agencies, arms length bodies and educational establishments",4000133190,"33,000"
DEPARTMENT FOR EDUCATION,NATIONAL COLLEGE FOR SCHOOL LEADERSHIP AGENCY,01/07/2013,Grants,Teaching Schools Directorate,THE REDHILL ACADEMY,Public Sector,"Grants paid to organisations including agencies, arms length bodies and educational establishments",4000133194,"33,000"
DEPARTMENT FOR EDUCATION,NATIONAL COLLEGE FOR SCHOOL LEADERSHIP AGENCY,01/07/2013,Grants,Teaching Schools Directorate,THOMAS TELFORD SCHOOL,Public Sector,"Grants paid to organisations including agencies, arms length bodies and educational establishments",4000133195,"33,000"
DEPARTMENT FOR EDUCATION,NATIONAL COLLEGE FOR SCHOOL LEADERSHIP AGENCY,01/07/2013,Grants,Teaching Schools Directorate,THE ROCHESTER GRAMMAR SCHOOL,Public Sector,"Grants paid to organisations including agencies, arms length bodies and educational establishments",4000133196,"33,000"
DEPARTMENT FOR EDUCATION,NATIONAL COLLEGE FOR SCHOOL LEADERSHIP AGENCY,01/07/2013,Grants,Teaching Schools Directorate,VALENTINES HIGH SCHOOL,Public Sector,"Grants paid to organisations including agencies, arms length bodies and educational establishments",4000133197,"33,000"
DEPARTMENT FOR EDUCATION,NATIONAL COLLEGE FOR SCHOOL LEADERSHIP AGENCY,01/07/2013,Grants,Teaching Schools Directorate,THORNDEN SCHOOL,Public Sector,"Grants paid to organisations including agencies, arms length bodies and educational establishments",4000133199,"33,000"
DEPARTMENT FOR EDUCATION,NATIONAL COLLEGE FOR SCHOOL LEADERSHIP AGENCY,01/07/2013,Grants,Teaching Schools Directorate,FOREST WAY TEACHING SCHOOL ALLIANCE,Public Sector,"Grants paid to organisations including agencies, arms length bodies and educational establishments",4000133202,"33,000"
DEPARTMENT FOR EDUCATION,NATIONAL COLLEGE FOR SCHOOL LEADERSHIP AGENCY,01/07/2013,Grants,Teaching Schools Directorate,CHESTERTON PRIMARY SCHOOL TS ACCOUNT,Public Sector,"Grants paid to organisations including agencies, arms length bodies and educational establishments",4000133203,"33,000"
DEPARTMENT FOR EDUCATION,NATIONAL COLLEGE FOR SCHOOL LEADERSHIP AGENCY,01/07/2013,Grants,Teaching Schools Directorate,THE BILLERICAY SCHOOL,Public Sector,"Grants paid to organisations including agencies, arms length bodies and educational establishments",4000133211,"33,000"
DEPARTMENT FOR EDUCATION,NATIONAL COLLEGE FOR SCHOOL LEADERSHIP AGENCY,01/07/2013,Grants,Teaching Schools Directorate,ELMRIDGE PRIMARY SCHOOL TS ACCOUNT,Public Sector,"Grants paid to organisations including agencies, arms length bodies and educational establishments",4000133221,"33,000"
DEPARTMENT FOR EDUCATION,NATIONAL COLLEGE FOR SCHOOL LEADERSHIP AGENCY,01/07/2013,Grants,Teaching Schools Directorate,LAWRENCE SHERIFF SCHOOL,Public Sector,"Grants paid to organisations including agencies, arms length bodies and educational establishments",4000133225,"33,000"
DEPARTMENT FOR EDUCATION,NATIONAL COLLEGE FOR SCHOOL LEADERSHIP AGENCY,01/07/2013,Grants,System Leadership Directorate,GEORGE SPENCER ACADEMY,Public Sector,Grants to third sector organisations / not for profit organisations,4000133226,450
DEPARTMENT FOR EDUCATION,NATIONAL COLLEGE FOR SCHOOL LEADERSHIP AGENCY,01/07/2013,Grants,Teaching Schools Directorate,GEORGE SPENCER ACADEMY,Public Sector,"Grants paid to organisations including agencies, arms length bodies and educational establishments",4000133226,"33,000"
DEPARTMENT FOR EDUCATION,NATIONAL COLLEGE FOR SCHOOL LEADERSHIP AGENCY,01/07/2013,Grants,Teaching Schools Directorate,THE WEYDON SCHOOL TS ACCOUNT,Public Sector,"Grants paid to organisations including agencies, arms length bodies and educational establishments",4000133232,"33,000"
DEPARTMENT FOR EDUCATION,NATIONAL COLLEGE FOR SCHOOL LEADERSHIP AGENCY,01/07/2013,Grants,Teaching Schools Directorate,BONNER PRIMARY SCHOOL,Public Sector,"Grants paid to organisations including agencies, arms length bodies and educational establishments",4000133234,"33,000"
DEPARTMENT FOR EDUCATION,NATIONAL COLLEGE FOR SCHOOL LEADERSHIP AGENCY,01/07/2013,Grants,Teaching Schools Directorate,FAIRFIELDS SCHOOL,Public Sector,"Grants paid to organisations including agencies, arms length bodies and educational establishments",4000133235,"33,000"
DEPARTMENT FOR EDUCATION,NATIONAL COLLEGE FOR SCHOOL LEADERSHIP AGENCY,01/07/2013,Grants,Teaching Schools Directorate,SHIREMOOR PRIMARY,Public Sector,"Grants paid to organisations including agencies, arms length bodies and educational establishments",4000133238,"33,000"
DEPARTMENT FOR EDUCATION,NATIONAL COLLEGE FOR SCHOOL LEADERSHIP AGENCY,01/07/2013,Grants,Teaching Schools Directorate,MANOR PRIMARY SCHOOL,Public Sector,"Grants paid to organisations including agencies, arms length bodies and educational establishments",4000133240,"33,000"
DEPARTMENT FOR EDUCATION,NATIONAL COLLEGE FOR SCHOOL LEADERSHIP AGENCY,01/07/2013,Grants,Teaching Schools Directorate,GREET PRIMARY SCHOOL,Public Sector,"Grants paid to organisations including agencies, arms length bodies and educational establishments",4000133241,"33,000"
DEPARTMENT FOR EDUCATION,NATIONAL COLLEGE FOR SCHOOL LEADERSHIP AGENCY,01/07/2013,Grants,Teaching Schools Directorate,HARRISON PRIMARY SCHOOL,Public Sector,"Grants paid to organisations including agencies, arms length bodies and educational establishments",4000133242,"33,000"
DEPARTMENT FOR EDUCATION,NATIONAL COLLEGE FOR SCHOOL LEADERSHIP AGENCY,01/07/2013,Grants,Teaching Schools Directorate,HARRIS CITY ACADEMY,Public Sector,"Grants paid to organisations including agencies, arms length bodies and educational establishments",4000133243,"33,000"
DEPARTMENT FOR EDUCATION,NATIONAL COLLEGE FOR SCHOOL LEADERSHIP AGENCY,01/07/2013,Grants,Teaching Schools Directorate,ALTRINCHAM GRAMMAR SCHOOL FOR GIRLS,Public Sector,"Grants paid to organisations including agencies, arms length bodies and educational establishments",4000133245,"33,000"
DEPARTMENT FOR EDUCATION,NATIONAL COLLEGE FOR SCHOOL LEADERSHIP AGENCY,01/07/2013,Grants,Teaching Schools Directorate,DENBIGH SCHOOL,Public Sector,"Grants paid to organisations including agencies, arms length bodies and educational establishments",4000133247,"33,000"
DEPARTMENT FOR EDUCATION,NATIONAL COLLEGE FOR SCHOOL LEADERSHIP AGENCY,01/07/2013,Grants,Teaching Schools Directorate,ACADEMY ENTERPRISE TRUST,Public Sector,"Grants paid to organisations including agencies, arms length bodies and educational establishments",4000133249,"33,000"
DEPARTMENT FOR EDUCATION,NATIONAL COLLEGE FOR SCHOOL LEADERSHIP AGENCY,01/07/2013,Grants,Teaching Schools Directorate,BARTLEY GREEN SCHOOL,Public Sector,"Grants paid to organisations including agencies, arms length bodies and educational establishments",4000133250,"33,000"
DEPARTMENT FOR EDUCATION,NATIONAL COLLEGE FOR SCHOOL LEADERSHIP AGENCY,01/07/2013,Grants,Teaching Schools Directorate,SELE FIRST SCHOOL TS ACCOUNT,Public Sector,"Grants paid to organisations including agencies, arms length bodies and educational establishments",4000133252,"33,000"
DEPARTMENT FOR EDUCATION,NATIONAL COLLEGE FOR SCHOOL LEADERSHIP AGENCY,01/07/2013,Grants,Teaching Schools Directorate,SEVEN KINGS HIGH SCHOOL TS ACCOUNT,Public Sector,"Grants paid to organisations including agencies, arms length bodies and educational establishments",4000133253,"33,000"
DEPARTMENT FOR EDUCATION,NATIONAL COLLEGE FOR SCHOOL LEADERSHIP AGENCY,01/07/2013,Grants,Teaching Schools Directorate,THE BRIDGE SCHOOL TS ACCOUNT,Public Sector,"Grants paid to organisations including agencies, arms length bodies and educational establishments",4000133255,"33,000"
DEPARTMENT FOR EDUCATION,NATIONAL COLLEGE FOR SCHOOL LEADERSHIP AGENCY,01/07/2013,Grants,Teaching Schools Directorate,ASHTON ON MERSEY SCHOOL TS ACCOUNT,Public Sector,"Grants paid to organisations including agencies, arms length bodies and educational establishments",4000133257,"33,000"
DEPARTMENT FOR EDUCATION,NATIONAL COLLEGE FOR SCHOOL LEADERSHIP AGENCY,01/07/2013,Grants,Teaching Schools Directorate,WEST HILL SCHOOL,Public Sector,"Grants paid to organisations including agencies, arms length bodies and educational establishments",4000133262,"33,000"
DEPARTMENT FOR EDUCATION,NATIONAL COLLEGE FOR SCHOOL LEADERSHIP AGENCY,01/07/2013,Grants,Teaching Schools Directorate,THE COTGRAVE CANDLEBY LANE SCHOOL TS ACCOUNT,Public Sector,"Grants paid to organisations including agencies, arms length bodies and educational establishments",4000133263,"33,000"
DEPARTMENT FOR EDUCATION,NATIONAL COLLEGE FOR SCHOOL LEADERSHIP AGENCY,01/07/2013,Grants,Teaching Schools Directorate,THE LOYNE SPECIALIST SCHOOL TS ACCOUNT,Public Sector,"Grants paid to organisations including agencies, arms length bodies and educational establishments",4000133264,"33,000"
DEPARTMENT FOR EDUCATION,NATIONAL COLLEGE FOR SCHOOL LEADERSHIP AGENCY,01/07/2013,Grants,Teaching Schools Directorate,TREETOPS SPECIAL SCHOOL TS ACCOUNT,Public Sector,"Grants paid to organisations including agencies, arms length bodies and educational establishments",4000133265,"33,000"
DEPARTMENT FOR EDUCATION,NATIONAL COLLEGE FOR SCHOOL LEADERSHIP AGENCY,01/07/2013,Grants,Teaching Schools Directorate,WESTCLIFF HIGH SCHOOL FOR GIRLS TS ACCOUNT,Public Sector,"Grants paid to organisations including agencies, arms length bodies and educational establishments",4000133266,"33,000"
DEPARTMENT FOR EDUCATION,NATIONAL COLLEGE FOR SCHOOL LEADERSHIP AGENCY,01/07/2013,Grants,Teaching Schools Directorate,WARREN ROAD PRIMARY SCHOOL TS ACCOUNT,Public Sector,"Grants paid to organisations including agencies, arms length bodies and educational establishments",4000133271,"33,000"
DEPARTMENT FOR EDUCATION,NATIONAL COLLEGE FOR SCHOOL LEADERSHIP AGENCY,01/07/2013,Grants,Teaching Schools Directorate,THE PRIORY SCHOOL TS ACCOUNT,Public Sector,"Grants paid to organisations including agencies, arms length bodies and educational establishments",4000133272,"33,000"
DEPARTMENT FOR EDUCATION,NATIONAL COLLEGE FOR SCHOOL LEADERSHIP AGENCY,01/07/2013,Grants,Teaching Schools Directorate,ST JOSEPHS SCHOOL,Public Sector,"Grants paid to organisations including agencies, arms length bodies and educational establishments",4000133274,"33,000"
DEPARTMENT FOR EDUCATION,NATIONAL COLLEGE FOR SCHOOL LEADERSHIP AGENCY,01/07/2013,Grants,Teaching Schools Directorate,THE WOODROFFE SCHOOL,Public Sector,"Grants paid to organisations including agencies, arms length bodies and educational establishments",4000133275,"33,000"
DEPARTMENT FOR EDUCATION,NATIONAL COLLEGE FOR SCHOOL LEADERSHIP AGENCY,01/07/2013,Grants,Teaching Schools Directorate,THE WROXHAM SCHOOL,Public Sector,"Grants paid to organisations including agencies, arms length bodies and educational establishments",4000133276,"33,000"
DEPARTMENT FOR EDUCATION,NATIONAL COLLEGE FOR SCHOOL LEADERSHIP AGENCY,01/07/2013,Grants,Teaching Schools Directorate,ST JOHN THE BAPTIST SCHOOL,Public Sector,"Grants paid to organisations including agencies, arms length bodies and educational establishments",4000133277,"33,000"
DEPARTMENT FOR EDUCATION,NATIONAL COLLEGE FOR SCHOOL LEADERSHIP AGENCY,01/07/2013,Grants,Teaching Schools Directorate,WHITLEY BAY HIGH SCHOOL,Public Sector,"Grants paid to organisations including agencies, arms length bodies and educational establishments",4000133279,"33,000"
DEPARTMENT FOR EDUCATION,NATIONAL COLLEGE FOR SCHOOL LEADERSHIP AGENCY,01/07/2013,Grants,Teaching Schools Directorate,COMBERTON ACADEMY TRUST,Public Sector,"Grants paid to organisations including agencies, arms length bodies and educational establishments",4000133281,"33,000"
DEPARTMENT FOR EDUCATION,NATIONAL COLLEGE FOR SCHOOL LEADERSHIP AGENCY,01/07/2013,Grants,Teaching Schools Directorate,ST MARYLEBONE CE SCHOOL,Public Sector,"Grants paid to organisations including agencies, arms length bodies and educational establishments",4000133282,"33,000"
DEPARTMENT FOR EDUCATION,NATIONAL COLLEGE FOR SCHOOL LEADERSHIP AGENCY,01/07/2013,Grants,Teaching Schools Directorate,ST JOHN VIANNEY SCHOOL TS,Public Sector,"Grants paid to organisations including agencies, arms length bodies and educational establishments",4000133294,"33,000"
DEPARTMENT FOR EDUCATION,NATIONAL COLLEGE FOR SCHOOL LEADERSHIP AGENCY,01/07/2013,Grants,Teaching Schools Directorate,THE BISHOPS STORTFORD HIGH SCHOOL TS,Public Sector,"Grants paid to organisations including agencies, arms length bodies and educational establishments",4000133295,"33,000"
DEPARTMENT FOR EDUCATION,NATIONAL COLLEGE FOR SCHOOL LEADERSHIP AGENCY,01/07/2013,Grants,Teaching Schools Directorate,MAIDEN ERLEGH SCHOOL,Public Sector,"Grants paid to organisations including agencies, arms length bodies and educational establishments",4000133297,"33,000"
DEPARTMENT FOR EDUCATION,NATIONAL COLLEGE FOR SCHOOL LEADERSHIP AGENCY,01/07/2013,Grants,Teaching Schools Directorate,WOODBERRY DOWN COMMUNITY PRIMARY SCHOOL,Public Sector,"Grants paid to organisations including agencies, arms length bodies and educational establishments",4000133298,"33,000"
DEPARTMENT FOR EDUCATION,NATIONAL COLLEGE FOR SCHOOL LEADERSHIP AGENCY,01/07/2013,Grants,Teaching Schools Directorate,THE MEAD COMMUNITY PRIMARY SCHOOL,Public Sector,"Grants paid to organisations including agencies, arms length bodies and educational establishments",4000133311,"33,000"
DEPARTMENT FOR EDUCATION,NATIONAL COLLEGE FOR SCHOOL LEADERSHIP AGENCY,01/07/2013,Grants,Teaching Schools Directorate,ESHER COFE HIGH SCHOOL,Public Sector,"Grants paid to organisations including agencies, arms length bodies and educational establishments",4000133312,"33,000"
DEPARTMENT FOR EDUCATION,NATIONAL COLLEGE FOR SCHOOL LEADERSHIP AGENCY,01/07/2013,Grants,Teaching Schools Directorate,SALTFORD COFE PRIMARY SCHOOL,Public Sector,"Grants paid to organisations including agencies, arms length bodies and educational establishments",4000133314,"33,000"
DEPARTMENT FOR EDUCATION,NATIONAL COLLEGE FOR SCHOOL LEADERSHIP AGENCY,01/07/2013,Grants,Teaching Schools Directorate,SOUTHGATE SCHOOL,Public Sector,"Grants paid to organisations including agencies, arms length bodies and educational establishments",4000133315,"33,000"
DEPARTMENT FOR EDUCATION,NATIONAL COLLEGE FOR SCHOOL LEADERSHIP AGENCY,01/07/2013,Grants,Teaching Schools Directorate,SACRED HEART CATHOLIC HIGH SCHOOL,Public Sector,"Grants paid to organisations including agencies, arms length bodies and educational establishments",4000133317,"33,000"
DEPARTMENT FOR EDUCATION,NATIONAL COLLEGE FOR SCHOOL LEADERSHIP AGENCY,01/07/2013,Grants,Teaching Schools Directorate,WICKERSLEY SCHOOL AND SPORTS COLLEGE,Public Sector,"Grants paid to organisations including agencies, arms length bodies and educational establishments",4000133319,"33,000"
DEPARTMENT FOR EDUCATION,NATIONAL COLLEGE FOR SCHOOL LEADERSHIP AGENCY,01/07/2013,Grants,Teaching Schools Directorate,CORNGREAVES PRIMARY SCHOOL,Public Sector,"Grants paid to organisations including agencies, arms length bodies and educational establishments",4000133327,"33,000"
DEPARTMENT FOR EDUCATION,NATIONAL COLLEGE FOR SCHOOL LEADERSHIP AGENCY,01/07/2013,Grants,Teaching Schools Directorate,FAIRLAWN PRIMARY SCHOOL,Public Sector,"Grants paid to organisations including agencies, arms length bodies and educational establishments",4000133337,"33,000"
DEPARTMENT FOR EDUCATION,NATIONAL COLLEGE FOR SCHOOL LEADERSHIP AGENCY,01/07/2013,Grants,Teaching Schools Directorate,WEST RAYNHAM CHURCH OF ENGLAND PRIMARY SCHOOL,Public Sector,"Grants paid to organisations including agencies, arms length bodies and educational establishments",4000133338,"33,000"
DEPARTMENT FOR EDUCATION,NATIONAL COLLEGE FOR SCHOOL LEADERSHIP AGENCY,01/07/2013,Grants,Teaching Schools Directorate,JOHN CABOT FEDERATION,Public Sector,"Grants paid to organisations including agencies, arms length bodies and educational establishments",4000133345,"33,000"
DEPARTMENT FOR EDUCATION,NATIONAL COLLEGE FOR SCHOOL LEADERSHIP AGENCY,01/07/2013,Grants,Teaching Schools Directorate,OLD FORD PRIMARY SCHOOL,Public Sector,"Grants paid to organisations including agencies, arms length bodies and educational establishments",4000133351,"33,000"
DEPARTMENT FOR EDUCATION,NATIONAL COLLEGE FOR SCHOOL LEADERSHIP AGENCY,01/07/2013,Grants,Teaching Schools Directorate,WAKEFIELD CITY ACADEMY,Public Sector,"Grants paid to organisations including agencies, arms length bodies and educational establishments",4000133353,"33,000"
